Workbook

Sheet Orçamento
O3: UNIDADE ESCOLAR | V3: CÓDIGO INEP
O4: CENTRO DE ENSINO EM PERÍODO INTEGRAL JOAQUIM EDSON DE CAMARGO | V4: 52035182
A6: Nmax | M6: Ajustar altura? | O6: OBRA | S6: DATA | V6: CIDADE
A7: =MAX($C$18:$C$648) -> 4 | M7: NÃO | O7: REFORMA E AMPLIAÇÃO | S7: 2020-04-08 | V7: GOIÂNIA
O9: CRE | R9: ENDEREÇO | V9: REFERÊNCIA AGETOP
O10: GOIÂNIA | R10: RUA SANTIAGO QD. 232 S/N PCA JARDIM DA INFÂNC, JD NOVO MUNDO, CEP:74705-060 | V10: DEZ/18 | W10: NÃO DESONERADA
O12: ÁREA EXISTENTE (M²) | R12: ÁREA A CONSTRUIR (M²) | S12: ÁREA TOTAL CONSTRUÍDA (M²) | V12: REFERÊNCIA SINAPI
O13: 1884.9 | R13: 197.09 | S13: 2081.99 | V13: FEV/19 | W13: NÃO DESONERADA
L15: FILTRO | O15: PLANILHA ORÇAMENTÁRIA
A16: Nível E | B16: Save Nivel | C16: Nível C | D16: Altura | E16: n1 | F16: n2 | G16: n3 | H16: n4 | I16: n5 | J16: Czero | K16: Cnível | L16: ↓ | M16: Nível | N16: Nível Corrigido | O16: ITEM | P16: TABELA | Q16: CODIGO | R16: DESCRIÇÃO DOS SERVIÇOS | S16: UNID | T16: QUANT | U16: MAT | V16: MO | W16: T.SERVIÇO | X16: OBSERVAÇÕES¹ | Y16: TROCAR PREÇO? | Z16: FONTE | AA16: CÓDIGO | AB16: DESCRIÇÃO DO SERVIÇO | AC16: UNID | AD16: MAT | AE16: MO
A17: =CHOOSE(1+LOG(1+2*(ORÇAMENTO.Nivel="Nível 1")+4*(ORÇAMENTO.Nivel="Nível 2")+8*(ORÇAMENTO.Nivel="Nível 3")+16*(ORÇAMENTO.Nivel="Nível 4")+32*(ORÇAMENTO.Nivel="Serviço"),2),0,1,2,3,4,"S") -> S | B17: =IF(OR(C17="s",C17=0),OFFSET(B17,-1,0),C17) -> Save Nivel | C17: =IF(OFFSET(C17,-1,0)="L",1,IF(OFFSET(C17,-1,0)=1,2,IF(OR(A17="s",A17=0),"S",IF(AND(OFFSET(C17,-1,0)=2,A17=4),3,IF(AND(OR(OFFSET(C17,-1,0)="s",OFFSET(C17,-1,0)=0),A17<>"s",A17>OFFSET(B17,-1,0)),OFFSET(B17,-1,0),A17))))) -> S | D17: =IF(OR(C17="S",C17=0),0,IF(ISERROR(K17),J17,SMALL(J17:K17,1))) -> 0 | E17: =IF($C17=1,OFFSET(E17,-1,0)+1,OFFSET(E17,-1,0)) -> n1 | F17: =IF($C17=1,0,IF($C17=2,OFFSET(F17,-1,0)+1,OFFSET(F17,-1,0))) -> n2 | G17: =IF(AND($C17<=2,$C17<>0),0,IF($C17=3,OFFSET(G17,-1,0)+1,OFFSET(G17,-1,0))) -> n3 | H17: =IF(AND($C17<=3,$C17<>0),0,IF($C17=4,OFFSET(H17,-1,0)+1,OFFSET(H17,-1,0))) -> n4 | I17: =IF(AND($C17<=4,$C17<>0),0,IF(AND($C17="S",$W17>0),OFFSET(I17,-1,0)+1,OFFSET(I17,-1,0))) -> n5 | J17: =IF(OR($C17="S",$C17=0),0,MATCH(0,OFFSET($D17,1,$C17,ROW($C$648)-ROW($C17)),0)) -> 0 | K17: =IF(OR($C17="S",$C17=0),0,MATCH(OFFSET($D17,0,$C17)+1,OFFSET($D17,1,$C17,ROW($C$648)-ROW($C17)),0)) -> 0 | M17: Serviço | N17: Serviço | O17: - | P17: SINAPI | R17: (sem código) | S17: - | U17: 0 | V17: 0 | W17: 0 | AB17: =IFERROR(IF(OR($C17=0,$C17=1,$C17=2,$C17=3,$C17=4),R17,VLOOKUP($AA17,INDIRECT($Z17),2,FALSE)),"(sem código)") -> (sem código) | AC17: =IFERROR(VLOOKUP(AA17,INDIRECT(Z17),3,FALSE()),"-") -> - | AD17: =IFERROR(VLOOKUP($AA17,INDIRECT($Z17),IF($W$10="DESONERADA",4,7),FALSE()),0) -> 0 | AE17: =IFERROR(VLOOKUP($AA17,INDIRECT($Z17),IF($W$10="DESONERADA",5,8),FALSE()),0) -> 0
A18: 0 | C18: L | D18: =COUNTA(OFFSET(D18,1,0):D$648) -> 629 | E18: =LEFT(O19,1)-1 -> 0 | L18: F | M18: LOTE | N18: LOTE | O18: REFORMA E AMPLIAÇÃO - CENTRO DE ENSINO EM PERÍODO INTEGRAL JOAQUIM EDSON DE CAMARGO | W18: 0 | Y18: =O18 -> REFORMA E AMPLIAÇÃO - CENTRO DE ENSINO EM PERÍODO INTEGRAL JOAQUIM EDSON DE CAMARGO
A19: 1 | B19: =IF(OR(C19="s",C19=0),OFFSET(B19,-1,0),C19) -> 1 | C19: =IF(OFFSET(C19,-1,0)="L",1,IF(OFFSET(C19,-1,0)=1,2,IF(OR(A19="s",A19=0),"S",IF(AND(OFFSET(C19,-1,0)=2,A19=4),3,IF(AND(OR(OFFSET(C19,-1,0)="s",OFFSET(C19,-1,0)=0),A19<>"s",A19>OFFSET(B19,-1,0)),OFFSET(B19,-1,0),A19))))) -> 1 | D19: =IF(OR(C19="S",C19=0),0,IF(ISERROR(K19),J19,SMALL(J19:K19,1))) -> 263 | E19: =IF($C19=1,OFFSET(E19,-1,0)+1,OFFSET(E19,-1,0)) -> 1 | F19: =IF($C19=1,0,IF($C19=2,OFFSET(F19,-1,0)+1,OFFSET(F19,-1,0))) -> 0 | G19: =IF(AND($C19<=2,$C19<>0),0,IF($C19=3,OFFSET(G19,-1,0)+1,OFFSET(G19,-1,0))) -> 0 | H19: =IF(AND($C19<=3,$C19<>0),0,IF($C19=4,OFFSET(H19,-1,0)+1,OFFSET(H19,-1,0))) -> 0 | I19: 0 | J19: =IF(OR($C19="S",$C19=0),0,MATCH(0,OFFSET($D19,1,$C19,ROW($C$648)-ROW($C19)),0)) -> 629 | K19: =IF(OR($C19="S",$C19=0),0,MATCH(OFFSET($D19,0,$C19)+1,OFFSET($D19,1,$C19,ROW($C$648)-ROW($C19)),0)) -> 263 | L19: F | M19: Nível 1 | N19: Nível 1 | O19: 1. | P19: AGETOP | R19: REFORMA | W19: 0 | AB19: =IFERROR(IF(OR($C19=0,$C19=1,$C19=2,$C19=3,$C19=4),R19,VLOOKUP($AA19,INDIRECT($Z19),2,FALSE)),"(sem código)") -> REFORMA | AC19: =IFERROR(VLOOKUP(AA19,INDIRECT(Z19),3,FALSE()),"-") -> - | AD19: =IFERROR(VLOOKUP($AA19,INDIRECT($Z19),IF($W$10="DESONERADA",4,7),FALSE()),0) -> 0 | AE19: =IFERROR(VLOOKUP($AA19,INDIRECT($Z19),IF($W$10="DESONERADA",5,8),FALSE()),0) -> 0 | AG19: RESPOSTA
A20: 2 | B20: =IF(OR(C20="s",C20=0),OFFSET(B20,-1,0),C20) -> 2 | C20: =IF(OFFSET(C20,-1,0)="L",1,IF(OFFSET(C20,-1,0)=1,2,IF(OR(A20="s",A20=0),"S",IF(AND(OFFSET(C20,-1,0)=2,A20=4),3,IF(AND(OR(OFFSET(C20,-1,0)="s",OFFSET(C20,-1,0)=0),A20<>"s",A20>OFFSET(B20,-1,0)),OFFSET(B20,-1,0),A20))))) -> 2 | D20: =IF(OR(C20="S",C20=0),0,IF(ISERROR(K20),J20,SMALL(J20:K20,1))) -> 13 | E20: =IF($C20=1,OFFSET(E20,-1,0)+1,OFFSET(E20,-1,0)) -> 1 | F20: =IF($C20=1,0,IF($C20=2,OFFSET(F20,-1,0)+1,OFFSET(F20,-1,0))) -> 1 | G20: =IF(AND($C20<=2,$C20<>0),0,IF($C20=3,OFFSET(G20,-1,0)+1,OFFSET(G20,-1,0))) -> 0 | H20: =IF(AND($C20<=3,$C20<>0),0,IF($C20=4,OFFSET(H20,-1,0)+1,OFFSET(H20,-1,0))) -> 0 | I20: 0 | J20: 262 | K20: 13 | M20: Nível 2 | N20: Nível 2 | O20: - | P20: AGETOP | R20: SERVIÇOS PRELIMINARES | W20: 0 | AB20: =IFERROR(IF(OR($C20=0,$C20=1,$C20=2,$C20=3,$C20=4),R20,VLOOKUP($AA20,INDIRECT($Z20),2,FALSE)),"(sem código)") -> SERVIÇOS PRELIMINARES | AC20: =IFERROR(VLOOKUP(AA20,INDIRECT(Z20),3,FALSE()),"-") -> - | AD20: 0 | AE20: 0 | AG20: SIM | AH20: NÃO
A21: 3 | B21: 3 | C21: 3 | D21: 2 | E21: 1 | F21: 1 | G21: 1 | H21: 0 | I21: 0 | J21: 12 | K21: 2 | M21: Nível 3 | N21: Nível 3 | O21: - | P21: SINAPI | R21: ELETRICO | S21: - | W21: 0 | AB21: ELETRICO | AC21: =IFERROR(VLOOKUP(AA21,INDIRECT(Z21),3,FALSE()),"-") -> - | AD21: 0 | AE21: 0
A22: S | B22: 3 | C22: S | D22: 0 | E22: 1 | F22: 1 | G22: 1 | H22: 0 | I22: 0 | J22: 0 | K22: 0 | M22: Serviço | N22: Serviço | O22: - | P22: SINAPI | Q22: 97661 | R22: REMOÇÃO DE CABOS ELÉTRICOS, DE FORMA MANUAL, SEM REAPROVEITAMENTO. AF_12/2017 | S22: M | T22: 300 | W22: 0 | Y22: NÃO | Z22: AGETOP | AA22: 20148 | AB22: (sem código) | AC22: - | AD22: 0 | AE22: 0
A23: 3 | B23: =IF(OR(C23="s",C23=0),OFFSET(B23,-1,0),C23) -> 3 | C23: =IF(OFFSET(C23,-1,0)="L",1,IF(OFFSET(C23,-1,0)=1,2,IF(OR(A23="s",A23=0),"S",IF(AND(OFFSET(C23,-1,0)=2,A23=4),3,IF(AND(OR(OFFSET(C23,-1,0)="s",OFFSET(C23,-1,0)=0),A23<>"s",A23>OFFSET(B23,-1,0)),OFFSET(B23,-1,0),A23))))) -> 3 | D23: =IF(OR(C23="S",C23=0),0,IF(ISERROR(K23),J23,SMALL(J23:K23,1))) -> 10 | E23: 1 | F23: 1 | G23: 2 | H23: 0 | I23: 0 | J23: 10 | K23: 25 | M23: Nível 3 | N23: Nível 3 | O23: - | P23: SINAPI | R23: OUTROS | S23: - | W23: 0 | AB23: OUTROS | AC23: - | AD23: 0 | AE23: 0
A24: S | B24: 3 | C24: S | D24: 0 | E24: 1 | F24: 1 | G24: 2 | H24: 0 | I24: 0 | J24: 0 | K24: 0 | M24: Serviço | N24: Serviço | O24: - | P24: AGETOP | Q24: 20102 | R24: DEMOLICAO-COBERTURA TELHA FIBROCIMENTO/FIBRA DE VIDRO/SIMILARES C/ TRANSP. ATÉ CB. E CARGA | S24: m2 | T24: 41.47 | W24: 0 | AB24: =IFERROR(IF(OR($C24=0,$C24=1,$C24=2,$C24=3,$C24=4),R24,VLOOKUP($AA24,INDIRECT($Z24),2,FALSE)),"(sem código)") -> (sem código) | AC24: =IFERROR(VLOOKUP(AA24,INDIRECT(Z24),3,FALSE()),"-") -> - | AD24: =IFERROR(VLOOKUP($AA24,INDIRECT($Z24),IF($W$10="DESONERADA",4,7),FALSE()),0) -> 0 | AE24: =IFERROR(VLOOKUP($AA24,INDIRECT($Z24),IF($W$10="DESONERADA",5,8),FALSE()),0) -> 0
A25: S | B25: 3 | C25: S | D25: 0 | E25: 1 | F25: 1 | G25: 2 | H25: 0 | I25: 0 | J25: 0 | K25: 0 | M25: Serviço | N25: Serviço | O25: - | P25: AGETOP | Q25: 20103 | R25: DEMOLIÇÃO ESTRUTURA EM MADEIRA TELHADO C/ TRANSP. ATÉ CB. E CARGA | S25: m2 | T25: 41.47 | W25: 0 | AB25: =IFERROR(IF(OR($C25=0,$C25=1,$C25=2,$C25=3,$C25=4),R25,VLOOKUP($AA25,INDIRECT($Z25),2,FALSE)),"(sem código)") -> (sem código) | AC25: - | AD25: =IFERROR(VLOOKUP($AA25,INDIRECT($Z25),IF($W$10="DESONERADA",4,7),FALSE()),0) -> 0 | AE25: =IFERROR(VLOOKUP($AA25,INDIRECT($Z25),IF($W$10="DESONERADA",5,8),FALSE()),0) -> 0
A26: S | B26: 3 | C26: S | D26: 0 | E26: 1 | F26: 1 | G26: 2 | H26: 0 | I26: 0 | J26: 0 | K26: 0 | M26: Serviço | N26: Serviço | O26: - | P26: SINAPI | Q26: 97644 | R26: REMOÇÃO DE PORTAS, DE FORMA MANUAL, SEM REAPROVEITAMENTO. AF_12/2017 | S26: M2 | T26: 1.68 | W26: 0 | X26: Referência: AGETOP - 20106 | Y26: SIM | Z26: AGETOP | AA26: 20106 | AB26: (sem código) | AC26: - | AD26: =IFERROR(VLOOKUP($AA26,INDIRECT($Z26),IF($W$10="DESONERADA",4,7),FALSE()),0) -> 0 | AE26: =IFERROR(VLOOKUP($AA26,INDIRECT($Z26),IF($W$10="DESONERADA",5,8),FALSE()),0) -> 0
A27: S | B27: 3 | C27: S | D27: 0 | E27: 1 | F27: 1 | G27: 2 | H27: 0 | I27: 0 | J27: 0 | K27: 0 | M27: Serviço | N27: Serviço | O27: - | P27: AGETOP | Q27: 20109 | R27: DEM.PISO CIMENT.SOBRE LASTRO CONC.C/TR.ATE CB. E CARGA | S27: m2 | T27: 41.47 | W27: 0 | AB27: (sem código) | AC27: - | AD27: 0 | AE27: 0
A28: S | B28: 3 | C28: S | D28: 0 | E28: 1 | F28: 1 | G28: 2 | H28: 0 | I28: 0 | J28: 0 | K28: 0 | M28: Serviço | N28: Serviço | O28: - | P28: AGETOP | Q28: 20121 | R28: DEM. MANUAL EM CONCR.SIMPLES C/TR.ATE CB.E CARGA (O.C.) | S28: m3 | T28: 37.146 | W28: 0 | AB28: (sem código) | AC28: =IFERROR(VLOOKUP(AA28,INDIRECT(Z28),3,FALSE()),"-") -> - | AD28: 0 | AE28: 0
A29: S | B29: 3 | C29: S | D29: 0 | E29: 1 | F29: 1 | G29: 2 | H29: 0 | I29: 0 | J29: 0 | K29: 0 | M29: Serviço | N29: Serviço | O29: - | P29: SINAPI | Q29: 97622 | R29: DEMOLIÇÃO DE ALVENARIA DE BLOCO FURADO, DE FORMA MANUAL, SEM REAPROVEITAMENTO. AF_12/2017 | S29: M3 | T29: 0.3105 | W29: 0 | X29: Referência: AGETOP - 20118 | Y29: SIM | Z29: AGETOP | AA29: 20118 | AB29: (sem código) | AC29: - | AD29: 0 | AE29: 0
A30: S | B30: 3 | C30: S | D30: 0 | E30: 1 | F30: 1 | G30: 2 | H30: 0 | I30: 0 | J30: 0 | K30: 0 | M30: Serviço | N30: Serviço | O30: - | P30: AGETOP | Q30: 20107 | R30: CORTE/DESTOC./RETIRADA/REATERRO (MANUAIS) DE ÁRVORE GRANDE PORTE ( H = 8 A 10 M / DIÂMETRO TRONCO 60 A 70CM E COPA DE 10 A 13M ) C/TRANSP.ATE C.B.E CARGA | S30: Un | T30: 1 | W30: 0 | AB30: (sem código) | AC30: - | AD30: 0 | AE30: 0
A31: S | B31: 3 | C31: S | D31: 0 | E31: 1 | F31: 1 | G31: 2 | H31: 0 | I31: 0 | J31: 0 | K31: 0 | M31: Serviço | N31: Serviço | O31: - | P31: SINAPI | Q31: 73948/16 | R31: LIMPEZA MANUAL DO TERRENO (C/ RASPAGEM SUPERFICIAL) | S31: M2 | T31: 650.14 | W31: 0 | X31: Referência: AGETOP - 20202 | Y31: SIM | Z31: AGETOP | AA31: 20202 | AB31: (sem código) | AC31: - | AD31: =IFERROR(VLOOKUP($AA31,INDIRECT($Z31),IF($W$10="DESONERADA",4,7),FALSE()),0) -> 0 | AE31: =IFERROR(VLOOKUP($AA31,INDIRECT($Z31),IF($W$10="DESONERADA",5,8),FALSE()),0) -> 0
A32: S | B32: 3 | C32: S | D32: 0 | E32: 1 | F32: 1 | G32: 2 | H32: 0 | I32: 0 | J32: 0 | K32: 0 | M32: Serviço | N32: Serviço | O32: - | P32: SINAPI | Q32: 74209/1 | R32: PLACA DE OBRA EM CHAPA DE ACO GALVANIZADO | S32: M2 | T32: 4.5 | W32: 0 | X32: Referência: AGETOP - 21301 | Y32: SIM | Z32: AGETOP | AA32: 21301 | AB32: (sem código) | AC32: - | AD32: 0 | AE32: 0
A33: 2 | B33: 2 | C33: 2 | D33: 3 | E33: 1 | F33: 2 | G33: 0 | H33: 0 | I33: 0 | J33: 249 | K33: 3 | M33: Nível 2 | N33: Nível 2 | O33: - | P33: AGETOP | R33: TRANSPORTES | S33: - | W33: 0 | AB33: TRANSPORTES | AC33: - | AD33: 0 | AE33: 0
A34: S | B34: 2 | C34: S | D34: 0 | E34: 1 | F34: 2 | G34: 0 | H34: 0 | I34: 0 | J34: 0 | K34: 0 | M34: Serviço | N34: Serviço | O34: - | P34: SINAPI | Q34: 72900 | R34: TRANSPORTE DE ENTULHO COM CAMINHAO BASCULANTE 6 M3, RODOVIA PAVIMENTADA, DMT 0,5 A 1,0 KM | S34: M3 | T34: 40 | W34: 0 | Y34: NÃO | Z34: AGETOP | AA34: 30101 | AB34: (sem código) | AC34: - | AD34: =IFERROR(VLOOKUP($AA34,INDIRECT($Z34),IF($W$10="DESONERADA",4,7),FALSE()),0) -> 0 | AE34: =IFERROR(VLOOKUP($AA34,INDIRECT($Z34),IF($W$10="DESONERADA",5,8),FALSE()),0) -> 0
A35: S | B35: 2 | C35: S | D35: 0 | E35: 1 | F35: 2 | G35: 0 | H35: 0 | I35: 0 | J35: 0 | K35: 0 | M35: Serviço | N35: Serviço | O35: - | P35: SINAPI | Q35: 72897 | R35: CARGA MANUAL DE ENTULHO EM CAMINHAO BASCULANTE 6 M3 | S35: M3 | T35: 40 | W35: 0 | Y35: NÃO | Z35: AGETOP | AA35: 30101 | AB35: (sem código) | AC35: - | AD35: 0 | AE35: 0
A36: 2 | B36: 2 | C36: 2 | D36: 18 | E36: 1 | F36: 3 | G36: 0 | H36: 0 | I36: 0 | J36: 246 | K36: 18 | M36: Nível 2 | N36: Nível 2 | O36: - | P36: AGETOP | R36: SERVIÇO EM TERRA | S36: - | W36: 0 | AB36: SERVIÇO EM TERRA | AC36: - | AD36: 0 | AE36: 0
A37: 3 | B37: 3 | C37: 3 | D37: 6 | E37: 1 | F37: 3 | G37: 1 | H37: 0 | I37: 0 | J37: 17 | K37: 6 | M37: Nível 3 | N37: Nível 3 | O37: - | R37: AQUISIÇÃO DE TERRA (SOMENTE ATERRO) | S37: - | W37: 0 | AB37: AQUISIÇÃO DE TERRA (SOMENTE ATERRO) | AC37: - | AD37: 0 | AE37: 0
A38: S | B38: 3 | C38: S | D38: 0 | E38: 1 | F38: 3 | G38: 1 | H38: 0 | I38: 0 | J38: 0 | K38: 0 | M38: Serviço | N38: Serviço | O38: - | P38: SINAPI | Q38: 79480 | R38: ESCAVACAO MECANICA CAMPO ABERTO EM SOLO EXCETO ROCHA ATE 2,00M PROFUNDIDADE | S38: M3 | T38: 246.3625 | W38: 0 | X38: Referência: AGETOP - 41004 | Y38: SIM | Z38: AGETOP | AA38: 41004 | AB38: =IFERROR(IF(OR($C38=0,$C38=1,$C38=2,$C38=3,$C38=4),R38,VLOOKUP($AA38,INDIRECT($Z38),2,FALSE)),"(sem código)") -> (sem código) | AC38: =IFERROR(VLOOKUP(AA38,INDIRECT(Z38),3,FALSE()),"-") -> - | AD38: =IFERROR(VLOOKUP($AA38,INDIRECT($Z38),IF($W$10="DESONERADA",4,7),FALSE()),0) -> 0 | AE38: =IFERROR(VLOOKUP($AA38,INDIRECT($Z38),IF($W$10="DESONERADA",5,8),FALSE()),0) -> 0
A39: S | B39: 3 | C39: S | D39: 0 | E39: 1 | F39: 3 | G39: 1 | H39: 0 | I39: 0 | J39: 0 | K39: 0 | M39: Serviço | N39: Serviço | O39: - | P39: SINAPI | Q39: 72898 | R39: CARGA E DESCARGA MECANIZADAS DE ENTULHO EM CAMINHAO BASCULANTE 6 M3 | S39: M3 | T39: 246.3625 | W39: 0 | X39: Referência: AGETOP - 41005 | Y39: SIM | Z39: AGETOP | AA39: 41005 | AB39: (sem código) | AC39: - | AD39: 0 | AE39: 0
A40: S | B40: 3 | C40: S | D40: 0 | E40: 1 | F40: 3 | G40: 1 | H40: 0 | I40: 0 | J40: 0 | K40: 0 | M40: Serviço | N40: Serviço | O40: - | P40: AGETOP | Q40: 41012 | R40: INDENIZAÇÃO DE JAZIDA | S40: m3 | T40: 246.3625 | W40: 0 | AB40: (sem código) | AC40: - | AD40: 0 | AE40: 0
A41: S | B41: 3 | C41: S | D41: 0 | E41: 1 | F41: 3 | G41: 1 | H41: 0 | I41: 0 | J41: 0 | K41: 0 | M41: Serviço | N41: Serviço | O41: - | P41: AGETOP | Q41: 41006 | R41: TRANSPORTE DE MATERIAL ESCAVADO M3.KM | S41: m3km | T41: 2463.625 | W41: 0 | AB41: (sem código) | AC41: - | AD41: 0 | AE41: 0
A42: S | B42: 3 | C42: S | D42: 0 | E42: 1 | F42: 3 | G42: 1 | H42: 0 | I42: 0 | J42: 0 | K42: 0 | M42: Serviço | N42: Serviço | O42: - | P42: SINAPI | Q42: 74005/2 | R42: COMPACTACAO MECANICA C/ CONTROLE DO GC>=95% DO PN (AREAS) (C/MONIVELADORA 140 HP E ROLO COMPRESSOR VIBRATORIO 80 HP) | S42: M3 | T42: 197.09 | W42: 0 | X42: Referência: AGETOP - 41008 | Y42: SIM | Z42: AGETOP | AA42: 41008 | AB42: COMPACTAÇÃO MECÂNICA COM CONTROLE DA UMIDADE (95% PN) | AC42: m3 | AD42: 2.74 | AE42: 0
A43: 3 | B43: 3 | C43: 3 | D43: 5 | E43: 1 | F43: 3 | G43: 2 | H43: 0 | I43: 0 | J43: 11 | K43: 5 | M43: Nível 3 | N43: Nível 3 | O43: - | R43: RAMPA E ESCADA | S43: - | W43: 0 | AB43: RAMPA E ESCADA | AC43: - | AD43: =IFERROR(VLOOKUP($AA43,INDIRECT($Z43),IF($W$10="DESONERADA",4,7),FALSE()),0) -> 0 | AE43: =IFERROR(VLOOKUP($AA43,INDIRECT($Z43),IF($W$10="DESONERADA",5,8),FALSE()),0) -> 0
A44: S | B44: 3 | C44: S | D44: 0 | E44: 1 | F44: 3 | G44: 2 | H44: 0 | I44: 0 | J44: 0 | K44: 0 | M44: Serviço | N44: Serviço | O44: - | P44: SINAPI | Q44: 79480 | R44: ESCAVACAO MECANICA CAMPO ABERTO EM SOLO EXCETO ROCHA ATE 2,00M PROFUNDIDADE | S44: M3 | T44: 7.6625 | W44: 0 | X44: Referência: AGETOP - 41004 | Y44: SIM | Z44: AGETOP | AA44: 41004 | AB44: (sem código) | AC44: - | AD44: 0 | AE44: 0
A45: S | B45: 3 | C45: S | D45: 0 | E45: 1 | F45: 3 | G45: 2 | H45: 0 | I45: 0 | J45: 0 | K45: 0 | M45: Serviço | N45: Serviço | O45: - | P45: SINAPI | Q45: 72898 | R45: CARGA E DESCARGA MECANIZADAS DE ENTULHO EM CAMINHAO BASCULANTE 6 M3 | S45: M3 | T45: 7.6625 | W45: 0 | X45: Referência: AGETOP - 41005 | Y45: SIM | Z45: AGETOP | AA45: 41005 | AB45: (sem código) | AC45: - | AD45: 0 | AE45: 0
A46: S | B46: 3 | C46: S | D46: 0 | E46: 1 | F46: 3 | G46: 2 | H46: 0 | I46: 0 | J46: 0 | K46: 0 | M46: Serviço | N46: Serviço | O46: - | P46: AGETOP | Q46: 41012 | R46: INDENIZAÇÃO DE JAZIDA | S46: m3 | T46: 7.6625 | W46: 0 | AB46: (sem código) | AC46: - | AD46: 0 | AE46: 0
A47: S | B47: 3 | C47: S | D47: 0 | E47: 1 | F47: 3 | G47: 2 | H47: 0 | I47: 0 | J47: 0 | K47: 0 | M47: Serviço | N47: Serviço | O47: - | P47: SINAPI | Q47: 74005/2 | R47: COMPACTACAO MECANICA C/ CONTROLE DO GC>=95% DO PN (AREAS) (C/MONIVELADORA 140 HP E ROLO COMPRESSOR VIBRATORIO 80 HP) | S47: M3 | T47: 6.13 | W47: 0 | AB47: =IFERROR(IF(OR($C47=0,$C47=1,$C47=2,$C47=3,$C47=4),R47,VLOOKUP($AA47,INDIRECT($Z47),2,FALSE)),"(sem código)") -> (sem código) | AC47: =IFERROR(VLOOKUP(AA47,INDIRECT(Z47),3,FALSE()),"-") -> - | AD47: 0 | AE47: 0
A48: 3 | B48: 3 | C48: 3 | D48: 3 | E48: 1 | F48: 3 | G48: 3 | H48: 0 | I48: 0 | J48: 6 | K48: 3 | M48: Nível 3 | N48: Nível 3 | O48: - | R48: ELETRICO | S48: - | W48: 0 | AB48: ELETRICO | AC48: - | AD48: 0 | AE48: 0
A49: =CHOOSE(1+LOG(1+2*(ORÇAMENTO.Nivel="Nível 1")+4*(ORÇAMENTO.Nivel="Nível 2")+8*(ORÇAMENTO.Nivel="Nível 3")+16*(ORÇAMENTO.Nivel="Nível 4")+32*(ORÇAMENTO.Nivel="Serviço"),2),0,1,2,3,4,"S") -> S | B49: 3 | C49: S | D49: 0 | E49: 1 | F49: 3 | G49: 3 | H49: 0 | I49: =IF(AND($C49<=4,$C49<>0),0,IF(AND($C49="S",$W49>0),OFFSET(I49,-1,0)+1,OFFSET(I49,-1,0))) -> 0 | J49: 0 | K49: 0 | M49: Serviço | N49: Serviço | O49: - | P49: SINAPI | Q49: 93358 | R49: ESCAVAÇÃO MANUAL DE VALA COM PROFUNDIDADE MENOR OU IGUAL A 1,30 M. AF_03/2016 | S49: M3 | T49: 66 | W49: 0 | X49: Referência: AGETOP - 40101 | Y49: SIM | Z49: AGETOP | AA49: 40101 | AB49: (sem código) | AC49: =IFERROR(VLOOKUP(AA49,INDIRECT(Z49),3,FALSE()),"-") -> - | AD49: =IFERROR(VLOOKUP($AA49,INDIRECT($Z49),IF($W$10="DESONERADA",4,7),FALSE()),0) -> 0 | AE49: =IFERROR(VLOOKUP($AA49,INDIRECT($Z49),IF($W$10="DESONERADA",5,8),FALSE()),0) -> 0
A50: S | B50: 3 | C50: S | D50: 0 | E50: 1 | F50: 3 | G50: 3 | H50: 0 | I50: 0 | J50: 0 | K50: 0 | M50: Serviço | N50: Serviço | O50: - | P50: SINAPI | Q50: 96995 | R50: REATERRO MANUAL APILOADO COM SOQUETE. AF_10/2017 | S50: M3 | T50: 66 | W50: 0 | X50: Referência: AGETOP - 40902 | Y50: SIM | Z50: AGETOP | AA50: 40902 | AB50: (sem código) | AC50: - | AD50: 0 | AE50: 0
A51: 3 | B51: 3 | C51: 3 | D51: 3 | E51: =IF($C51=1,OFFSET(E51,-1,0)+1,OFFSET(E51,-1,0)) -> 1 | F51: =IF($C51=1,0,IF($C51=2,OFFSET(F51,-1,0)+1,OFFSET(F51,-1,0))) -> 3 | G51: =IF(AND($C51<=2,$C51<>0),0,IF($C51=3,OFFSET(G51,-1,0)+1,OFFSET(G51,-1,0))) -> 4 | H51: =IF(AND($C51<=3,$C51<>0),0,IF($C51=4,OFFSET(H51,-1,0)+1,OFFSET(H51,-1,0))) -> 0 | I51: 0 | J51: 3 | K51: 172 | M51: Nível 3 | N51: Nível 3 | O51: - | P51: SINAPI | Q51: 93382 | R51: CENTRAL DE GAS | S51: M3 | W51: 0 | X51: Referência: AGETOP - 40904 | Y51: SIM | Z51: AGETOP | AA51: 40904 | AB51: CENTRAL DE GAS | AC51: - | AD51: 0 | AE51: 0
A52: S | B52: 3 | C52: S | D52: 0 | E52: 1 | F52: 3 | G52: 4 | H52: 0 | I52: 0 | J52: 0 | K52: 0 | M52: Serviço | N52: Serviço | O52: - | P52: SINAPI | Q52: 93358 | R52: ESCAVAÇÃO MANUAL DE VALA COM PROFUNDIDADE MENOR OU IGUAL A 1,30 M. AF_03/2016 | S52: M3 | T52: 1.4904 | W52: 0 | X52: Referência: AGETOP - 40101 | Y52: SIM | Z52: AGETOP | AA52: 40101 | AB52: (sem código) | AC52: - | AD52: 0 | AE52: 0
A53: S | B53: 3 | C53: S | D53: 0 | E53: 1 | F53: 3 | G53: 4 | H53: 0 | I53: 0 | J53: 0 | K53: 0 | M53: Serviço | N53: Serviço | O53: - | P53: SINAPI | Q53: 96995 | R53: REATERRO MANUAL APILOADO COM SOQUETE. AF_10/2017 | S53: M3 | T53: 1.19232 | W53: 0 | X53: Referência: AGETOP - 40902 | Y53: SIM | Z53: AGETOP | AA53: 40902 | AB53: (sem código) | AC53: - | AD53: 0 | AE53: 0
A54: =CHOOSE(1+LOG(1+2*(ORÇAMENTO.Nivel="Nível 1")+4*(ORÇAMENTO.Nivel="Nível 2")+8*(ORÇAMENTO.Nivel="Nível 3")+16*(ORÇAMENTO.Nivel="Nível 4")+32*(ORÇAMENTO.Nivel="Serviço"),2),0,1,2,3,4,"S") -> 2 | B54: =IF(OR(C54="s",C54=0),OFFSET(B54,-1,0),C54) -> 2 | C54: =IF(OFFSET(C54,-1,0)="L",1,IF(OFFSET(C54,-1,0)=1,2,IF(OR(A54="s",A54=0),"S",IF(AND(OFFSET(C54,-1,0)=2,A54=4),3,IF(AND(OR(OFFSET(C54,-1,0)="s",OFFSET(C54,-1,0)=0),A54<>"s",A54>OFFSET(B54,-1,0)),OFFSET(B54,-1,0),A54))))) -> 2 | D54: =IF(OR(C54="S",C54=0),0,IF(ISERROR(K54),J54,SMALL(J54:K54,1))) -> 111 | E54: =IF($C54=1,OFFSET(E54,-1,0)+1,OFFSET(E54,-1,0)) -> 1 | F54: =IF($C54=1,0,IF($C54=2,OFFSET(F54,-1,0)+1,OFFSET(F54,-1,0))) -> 4 | G54: =IF(AND($C54<=2,$C54<>0),0,IF($C54=3,OFFSET(G54,-1,0)+1,OFFSET(G54,-1,0))) -> 0 | H54: =IF(AND($C54<=3,$C54<>0),0,IF($C54=4,OFFSET(H54,-1,0)+1,OFFSET(H54,-1,0))) -> 0 | I54: =IF(AND($C54<=4,$C54<>0),0,IF(AND($C54="S",$W54>0),OFFSET(I54,-1,0)+1,OFFSET(I54,-1,0))) -> 0 | J54: 228 | K54: 111 | M54: Nível 2 | N54: Nível 2 | O54: - | R54: INSTALAÇÕES ELÉTRICAS | S54: - | W54: 0 | AB54: =IFERROR(IF(OR($C54=0,$C54=1,$C54=2,$C54=3,$C54=4),R54,VLOOKUP($AA54,INDIRECT($Z54),2,FALSE)),"(sem código)") -> INSTALAÇÕES ELÉTRICAS | AC54: =IFERROR(VLOOKUP(AA54,INDIRECT(Z54),3,FALSE()),"-") -> - | AD54: 0 | AE54: 0
A55: 3 | B55: 3 | C55: 3 | D55: 64 | E55: 1 | F55: 4 | G55: 1 | H55: 0 | I55: 0 | J55: 110 | K55: 64 | M55: Nível 3 | N55: Nível 3 | O55: - | P55: SINAPI | R55: SUBESTAÇAO | S55: - | W55: 0 | AB55: =IFERROR(IF(OR($C55=0,$C55=1,$C55=2,$C55=3,$C55=4),R55,VLOOKUP($AA55,INDIRECT($Z55),2,FALSE)),"(sem código)") -> SUBESTAÇAO | AC55: =IFERROR(VLOOKUP(AA55,INDIRECT(Z55),3,FALSE()),"-") -> - | AD55: =IFERROR(VLOOKUP($AA55,INDIRECT($Z55),IF($W$10="DESONERADA",4,7),FALSE()),0) -> 0 | AE55: =IFERROR(VLOOKUP($AA55,INDIRECT($Z55),IF($W$10="DESONERADA",5,8),FALSE()),0) -> 0
A56: S | B56: 3 | C56: S | D56: 0 | E56: 1 | F56: 4 | G56: 1 | H56: 0 | I56: 0 | J56: 0 | K56: 0 | M56: Serviço | N56: Serviço | O56: - | P56: SINAPI | Q56: 73767/2 | R56: ALCA PRE-FORMADA DISTRIBUIÇÃO EM ACO RECOBERTO COM ALUMINIO PARA CABO 25MM2, ENCAPADO. FORNECIMENTO E INSTALAÇÃO. | S56: UN | T56: 1 | W56: 0 | AB56: (sem código) | AC56: - | AD56: 0 | AE56: 0
A57: S | B57: 3 | C57: S | D57: 0 | E57: 1 | F57: 4 | G57: 1 | H57: 0 | I57: 0 | J57: 0 | K57: 0 | M57: Serviço | N57: Serviço | O57: - | P57: AGETOP | Q57: 70252 | R57: ARRUELA LISA D=5/16" | S57: Un | T57: 8 | W57: 0 | AB57: (sem código) | AC57: - | AD57: 0 | AE57: 0
A58: S | B58: 3 | C58: S | D58: 0 | E58: 1 | F58: 4 | G58: 1 | H58: 0 | I58: 0 | J58: 0 | K58: 0 | M58: Serviço | N58: Serviço | O58: - | P58: AGETOP | Q58: 70268 | R58: BARRA DE COBRE 2" X 3/16" (2,0865 KG/M) | S58: m | T58: 1.5 | W58: 0 | AB58: (sem código) | AC58: - | AD58: 0 | AE58: 0
A59: S | B59: 3 | C59: S | D59: 0 | E59: 1 | F59: 4 | G59: 1 | H59: 0 | I59: 0 | J59: 0 | K59: 0 | M59: Serviço | N59: Serviço | O59: - | P59: SINAPI | Q59: 91175 | R59: FIXAÇÃO DE TUBOS VERTICAIS DE PPR DIÂMETROS MAIORES QUE 75 MM COM ABRAÇADEIRA METÁLICA RÍGIDA TIPO D 3", FIXADA EM PERFILADO EM ALVENARIA. AF_05/2015 | S59: M | T59: 6 | W59: 0 | AB59: (sem código) | AC59: - | AD59: =IFERROR(VLOOKUP($AA59,INDIRECT($Z59),IF($W$10="DESONERADA",4,7),FALSE()),0) -> 0 | AE59: =IFERROR(VLOOKUP($AA59,INDIRECT($Z59),IF($W$10="DESONERADA",5,8),FALSE()),0) -> 0
A60: S | B60: 3 | C60: S | D60: 0 | E60: 1 | F60: 4 | G60: 1 | H60: 0 | I60: 0 | J60: 0 | K60: 0 | M60: Serviço | N60: Serviço | O60: - | P60: AGETOP | Q60: 70386 | R60: BRAÇO C AÇO GALVANIZADO , CONFORME NTD-17 | S60: un | T60: 1 | W60: 0 | AB60: (sem código) | AC60: - | AD60: 0 | AE60: 0
A61: S | B61: 3 | C61: S | D61: 0 | E61: 1 | F61: 4 | G61: 1 | H61: 0 | I61: 0 | J61: 0 | K61: 0 | M61: Serviço | N61: Serviço | O61: - | P61: AGETOP | Q61: 70422 | R61: BUCHA E ARRUELA METALICA DIAM. 1" | S61: PR | T61: 2 | W61: 0 | AB61: (sem código) | AC61: - | AD61: 0 | AE61: 0
A62: S | B62: 3 | C62: S | D62: 0 | E62: 1 | F62: 4 | G62: 1 | H62: 0 | I62: 0 | J62: 0 | K62: 0 | M62: Serviço | N62: Serviço | O62: - | P62: AGETOP | Q62: 70426 | R62: BUCHA E ARRUELA METALICA DIAM. 2.1/2" | S62: PR | T62: 1 | W62: 0 | AB62: (sem código) | AC62: - | AD62: 0 | AE62: 0
A63: S | B63: 3 | C63: S | D63: 0 | E63: 1 | F63: 4 | G63: 1 | H63: 0 | I63: 0 | J63: 0 | K63: 0 | M63: Serviço | N63: Serviço | O63: - | P63: SINAPI | Q63: 92980 | R63: CABO DE COBRE FLEXÍVEL ISOLADO, 10 MM², ANTI-CHAMA 0,6/1,0 KV, PARA DISTRIBUIÇÃO - FORNECIMENTO E INSTALAÇÃO. AF_12/2015 | S63: M | T63: 5 | W63: 0 | AB63: (sem código) | AC63: - | AD63: 0 | AE63: 0
A64: S | B64: 3 | C64: S | D64: 0 | E64: 1 | F64: 4 | G64: 1 | H64: 0 | I64: 0 | J64: 0 | K64: 0 | M64: Serviço | N64: Serviço | O64: - | P64: SINAPI | Q64: 92986 | R64: CABO DE COBRE FLEXÍVEL ISOLADO, 35 MM², ANTI-CHAMA 0,6/1,0 KV, PARA DISTRIBUIÇÃO - FORNECIMENTO E INSTALAÇÃO. AF_12/2015 | S64: M | T64: 15 | W64: 0 | AB64: (sem código) | AC64: - | AD64: 0 | AE64: 0
A65: S | B65: 3 | C65: S | D65: 0 | E65: 1 | F65: 4 | G65: 1 | H65: 0 | I65: 0 | J65: 0 | K65: 0 | M65: Serviço | N65: Serviço | O65: - | P65: SINAPI | Q65: 92990 | R65: CABO DE COBRE FLEXÍVEL ISOLADO, 70 MM², ANTI-CHAMA 0,6/1,0 KV, PARA DISTRIBUIÇÃO - FORNECIMENTO E INSTALAÇÃO. AF_12/2015 | S65: M | T65: 60 | W65: 0 | AB65: (sem código) | AC65: - | AD65: 0 | AE65: 0
A66: S | B66: 3 | C66: S | D66: 0 | E66: 1 | F66: 4 | G66: 1 | H66: 0 | I66: 0 | J66: 0 | K66: 0 | M66: Serviço | N66: Serviço | O66: - | P66: AGETOP | Q66: 70543 | R66: CABO DE COBRE NÚ No. 35 MM2 | S66: M | T66: 3 | W66: 0 | AA66: 70509 | AB66: (sem código) | AC66: - | AD66: 0 | AE66: 0
A67: S | B67: 3 | C67: S | D67: 0 | E67: 1 | F67: 4 | G67: 1 | H67: 0 | I67: 0 | J67: 0 | K67: 0 | M67: Serviço | N67: Serviço | O67: - | P67: SINAPI | Q67: 96977 | R67: CORDOALHA DE COBRE NU 50 MM², ENTERRADA, SEM ISOLADOR - FORNECIMENTO E INSTALAÇÃO. AF_12/2017 | S67: M | T67: 45 | W67: 0 | AA67: 70510 | AB67: (sem código) | AC67: - | AD67: 0 | AE67: 0
A68: S | B68: 3 | C68: S | D68: 0 | E68: 1 | F68: 4 | G68: 1 | H68: 0 | I68: 0 | J68: 0 | K68: 0 | M68: Serviço | N68: Serviço | O68: - | P68: AGETOP | Q68: 70696 | R68: CAIXA METÁLICA PARA PROTEÇÃO GERAL 820X750X266MM DE 250A A 350A | S68: Un | T68: 1 | W68: 0 | AA68: 70511 | AB68: (sem código) | AC68: - | AD68: 0 | AE68: 0
A69: S | B69: 3 | C69: S | D69: 0 | E69: 1 | F69: 4 | G69: 1 | H69: 0 | I69: 0 | J69: 0 | K69: 0 | M69: Serviço | N69: Serviço | O69: - | P69: AGETOP | Q69: 70697 | R69: CAIXA METÁLICA PARA T.C. 820X750X266MM - 250 A 350A | S69: Un | T69: 1 | W69: 0 | AA69: 70512 | AB69: (sem código) | AC69: - | AD69: 0 | AE69: 0
A70: =CHOOSE(1+LOG(1+2*(ORÇAMENTO.Nivel="Nível 1")+4*(ORÇAMENTO.Nivel="Nível 2")+8*(ORÇAMENTO.Nivel="Nível 3")+16*(ORÇAMENTO.Nivel="Nível 4")+32*(ORÇAMENTO.Nivel="Serviço"),2),0,1,2,3,4,"S") -> S | B70: 3 | C70: S | D70: 0 | E70: 1 | F70: 4 | G70: 1 | H70: 0 | I70: =IF(AND($C70<=4,$C70<>0),0,IF(AND($C70="S",$W70>0),OFFSET(I70,-1,0)+1,OFFSET(I70,-1,0))) -> 0 | J70: 0 | K70: 0 | M70: Serviço | N70: Serviço | O70: - | P70: SINAPI | Q70: 97893 | R70: CAIXA ENTERRADA ELÉTRICA RETANGULAR, EM ALVENARIA COM BLOCOS DE CONCRETO, FUNDO COM BRITA, DIMENSÕES INTERNAS: 0,8X0,8X0,6 M. AF_05/2018 | S70: UN | T70: 1 | W70: 0 | AA70: 70541 | AB70: (sem código) | AC70: - | AD70: 0 | AE70: 0
A71: S | B71: 3 | C71: S | D71: 0 | E71: 1 | F71: 4 | G71: 1 | H71: 0 | I71: 0 | J71: 0 | K71: 0 | M71: Serviço | N71: Serviço | O71: - | P71: AGETOP | Q71: 70771 | R71: CANTONEIRA AUXILIAR PARA BRAÇO TIPO C | S71: un | T71: 1 | W71: 0 | AA71: 70561 | AB71: (sem código) | AC71: - | AD71: 0 | AE71: 0
A72: S | B72: 3 | C72: S | D72: 0 | E72: 1 | F72: 4 | G72: 1 | H72: 0 | I72: 0 | J72: 0 | K72: 0 | M72: Serviço | N72: Serviço | O72: - | P72: AGETOP | Q72: 70920 | R72: CINTA DE ACO GALVANIZADO DIAM.190 MM | S72: Un | T72: 1 | W72: 0 | AA72: 70581 | AB72: (sem código) | AC72: - | AD72: 0 | AE72: 0
A73: S | B73: 3 | C73: S | D73: 0 | E73: =IF($C73=1,OFFSET(E73,-1,0)+1,OFFSET(E73,-1,0)) -> 1 | F73: =IF($C73=1,0,IF($C73=2,OFFSET(F73,-1,0)+1,OFFSET(F73,-1,0))) -> 4 | G73: =IF(AND($C73<=2,$C73<>0),0,IF($C73=3,OFFSET(G73,-1,0)+1,OFFSET(G73,-1,0))) -> 1 | H73: =IF(AND($C73<=3,$C73<>0),0,IF($C73=4,OFFSET(H73,-1,0)+1,OFFSET(H73,-1,0))) -> 0 | I73: 0 | J73: 0 | K73: 0 | M73: Serviço | N73: Serviço | O73: - | P73: AGETOP | Q73: 70921 | R73: CINTA DE ACO GALVANIZADO DIAM.220 MM | S73: Un | T73: 2 | W73: 0 | AA73: 70582 | AB73: (sem código) | AC73: - | AD73: 0 | AE73: 0
A74: S | B74: 3 | C74: S | D74: 0 | E74: 1 | F74: 4 | G74: 1 | H74: 0 | I74: 0 | J74: 0 | K74: 0 | M74: Serviço | N74: Serviço | O74: - | P74: AGETOP | Q74: 70922 | R74: CINTA DE ACO GALVANIZADO DIAM.230MM | S74: Un | T74: 2 | W74: 0 | AA74: 70583 | AB74: (sem código) | AC74: - | AD74: 0 | AE74: 0
A75: S | B75: 3 | C75: S | D75: 0 | E75: 1 | F75: 4 | G75: 1 | H75: 0 | I75: 0 | J75: 0 | K75: 0 | M75: Serviço | N75: Serviço | O75: - | P75: AGETOP | Q75: 71016 | R75: CONECTOR DE COMPRESSÃO FORMATO H PARA CABO 25 A 70 MM2 | S75: un | T75: 4 | W75: 0 | AA75: 70584 | AB75: (sem código) | AC75: - | AD75: 0 | AE75: 0
A76: S | B76: 3 | C76: S | D76: 0 | E76: 1 | F76: 4 | G76: 1 | H76: 0 | I76: 0 | J76: 0 | K76: 0 | M76: Serviço | N76: Serviço | O76: - | P76: AGETOP | Q76: 71020 | R76: CONECTOR PARAL. ALUM.EXTRUD.CA-CU-10,0D.10-2-1 PARAF. | S76: Un | T76: 6 | W76: 0 | AA76: 70585 | AB76: (sem código) | AC76: - | AD76: 0 | AE76: 0
A77: S | B77: 3 | C77: S | D77: 0 | E77: 1 | F77: 4 | G77: 1 | H77: 0 | I77: 0 | J77: 0 | K77: 0 | M77: Serviço | N77: Serviço | O77: - | P77: SINAPI | Q77: 72272 | R77: CONECTOR PARAFUSO FENDIDO SPLIT-BOLT - PARA CABO DE 35MM2 - FORNECIMENTO E INSTALACAO | S77: UN | T77: 1 | W77: 0 | AA77: 70645 | AB77: (sem código) | AC77: - | AD77: 0 | AE77: 0
A78: S | B78: 3 | C78: S | D78: 0 | E78: 1 | F78: 4 | G78: 1 | H78: 0 | I78: 0 | J78: 0 | K78: 0 | M78: Serviço | N78: Serviço | O78: - | P78: AGETOP | Q78: 71037 | R78: CONECTOR TIPO PARAFUSO FENDIDO 70 MM2 | S78: Un | T78: 4 | W78: 0 | AA78: 70680 | AB78: (sem código) | AC78: - | AD78: 0 | AE78: 0
A79: S | B79: =IF(OR(C79="s",C79=0),OFFSET(B79,-1,0),C79) -> 3 | C79: =IF(OFFSET(C79,-1,0)="L",1,IF(OFFSET(C79,-1,0)=1,2,IF(OR(A79="s",A79=0),"S",IF(AND(OFFSET(C79,-1,0)=2,A79=4),3,IF(AND(OR(OFFSET(C79,-1,0)="s",OFFSET(C79,-1,0)=0),A79<>"s",A79>OFFSET(B79,-1,0)),OFFSET(B79,-1,0),A79))))) -> S | D79: =IF(OR(C79="S",C79=0),0,IF(ISERROR(K79),J79,SMALL(J79:K79,1))) -> 0 | E79: 1 | F79: 4 | G79: 1 | H79: 0 | I79: 0 | J79: 0 | K79: 0 | M79: Serviço | N79: Serviço | O79: - | P79: AGETOP | Q79: 71142 | R79: CURVA DE 90 GRAUS DE PVC RIGIDO DIAM. 1" | S79: Un | T79: 1 | W79: 0 | AA79: 70682 | AB79: (sem código) | AC79: - | AD79: 0 | AE79: 0
A80: S | B80: 3 | C80: S | D80: 0 | E80: 1 | F80: 4 | G80: 1 | H80: 0 | I80: 0 | J80: 0 | K80: 0 | M80: Serviço | N80: Serviço | O80: - | P80: SINAPI | Q80: 93022 | R80: CURVA 90 GRAUS PARA ELETRODUTO, PVC, ROSCÁVEL, DN 75 MM (2 1/2") - FORNECIMENTO E INSTALAÇÃO. AF_12/2015 | S80: UN | T80: 1 | W80: 0 | AA80: 70691 | AB80: (sem código) | AC80: - | AD80: 0 | AE80: 0
A81: S | B81: 3 | C81: S | D81: 0 | E81: 1 | F81: 4 | G81: 1 | H81: 0 | I81: 0 | J81: 0 | K81: 0 | M81: Serviço | N81: Serviço | O81: - | P81: AGETOP | Q81: 71184 | R81: DISPOSITIVO DE PROTEÇÃO CONTRA SURTOS (D.P.S.) 275V DE 8 A 40KA | S81: Un | T81: 3 | W81: 0 | AA81: 70692 | AB81: (sem código) | AC81: - | AD81: 0 | AE81: 0
A82: S | B82: 3 | C82: S | D82: 0 | E82: 1 | F82: 4 | G82: 1 | H82: 0 | I82: 0 | J82: 0 | K82: 0 | M82: Serviço | N82: Serviço | O82: - | P82: SINAPI | Q82: 74130/10 | R82: DISJUNTOR TERMOMAGNETICO TRIPOLAR EM CAIXA MOLDADA 175 A 225A 240V, FORNECIMENTO E INSTALACAO | S82: UN | T82: 1 | W82: 0 | AA82: 70708 | AB82: (sem código) | AC82: - | AD82: 0 | AE82: 0
A83: S | B83: 3 | C83: S | D83: 0 | E83: 1 | F83: 4 | G83: 1 | H83: 0 | I83: 0 | J83: =IF(OR($C83="S",$C83=0),0,MATCH(0,OFFSET($D83,1,$C83,ROW($C$648)-ROW($C83)),0)) -> 0 | K83: =IF(OR($C83="S",$C83=0),0,MATCH(OFFSET($D83,0,$C83)+1,OFFSET($D83,1,$C83,ROW($C$648)-ROW($C83)),0)) -> 0 | M83: Serviço | N83: Serviço | O83: - | P83: AGETOP | Q83: 71202 | R83: ELETRODUTO DE PVC RIGIDO DIAMETRO 1" | S83: M | T83: 3 | W83: 0 | AA83: 70716 | AB83: (sem código) | AC83: - | AD83: 0 | AE83: 0
A84: S | B84: 3 | C84: S | D84: 0 | E84: 1 | F84: 4 | G84: 1 | H84: 0 | I84: 0 | J84: 0 | K84: 0 | M84: Serviço | N84: Serviço | O84: - | P84: SINAPI | Q84: 93010 | R84: ELETRODUTO RÍGIDO ROSCÁVEL, PVC, DN 75 MM (2 1/2") - FORNECIMENTO E INSTALAÇÃO. AF_12/2015 | S84: M | T84: 3 | W84: 0 | AA84: 70720 | AB84: (sem código) | AC84: - | AD84: 0 | AE84: 0
A85: S | B85: 3 | C85: S | D85: 0 | E85: 1 | F85: 4 | G85: 1 | H85: 0 | I85: 0 | J85: 0 | K85: 0 | M85: Serviço | N85: Serviço | O85: - | P85: AGETOP | Q85: 71216 | R85: ELETRODUTO EM AÇO GALVANIZADO A FOGO DIÂMETRO 2 1/2" - PESADO | S85: M | T85: 7 | W85: 0 | AA85: 70929 | AB85: (sem código) | AC85: - | AD85: 0 | AE85: 0
A86: S | B86: 3 | C86: S | D86: 0 | E86: 1 | F86: 4 | G86: 1 | H86: 0 | I86: 0 | J86: 0 | K86: 0 | M86: Serviço | N86: Serviço | O86: - | P86: AGETOP | Q86: 71268 | R86: ELO FUSÍVEL 6 K | S86: Un | T86: 1 | W86: 0 | AA86: 70930 | AB86: (sem código) | AC86: - | AD86: 0 | AE86: 0
A87: S | B87: 3 | C87: S | D87: 0 | E87: 1 | F87: 4 | G87: 1 | H87: 0 | I87: 0 | J87: 0 | K87: 0 | M87: Serviço | N87: Serviço | O87: - | P87: AGETOP | Q87: 71321 | R87: FITA DE AUTO FUSAO, ROLO E 10,00 MM | S87: Un | T87: 5 | W87: 0 | AA87: 71141 | AB87: (sem código) | AC87: - | AD87: 0 | AE87: 0
A88: S | B88: 3 | C88: S | D88: 0 | E88: 1 | F88: 4 | G88: 1 | H88: 0 | I88: 0 | J88: 0 | K88: 0 | M88: Serviço | N88: Serviço | O88: - | P88: AGETOP | Q88: 71365 | R88: GRAMPO DE ANCORAGEM POLIMÉRICO | S88: un | T88: 3 | W88: 0 | AA88: 71142 | AB88: (sem código) | AC88: - | AD88: 0 | AE88: 0
A89: S | B89: 3 | C89: S | D89: 0 | E89: 1 | F89: 4 | G89: 1 | H89: 0 | I89: 0 | J89: 0 | K89: 0 | M89: Serviço | N89: Serviço | O89: - | P89: AGETOP | Q89: 71381 | R89: HASTE REV.COBRE(COPPERWELD) 5/8" X 3,00 M C/CONECTOR | S89: Un | T89: 4 | W89: 0 | AA89: 71151 | AB89: (sem código) | AC89: - | AD89: 0 | AE89: 0
A90: S | B90: 3 | C90: S | D90: 0 | E90: 1 | F90: 4 | G90: 1 | H90: 0 | I90: 0 | J90: 0 | K90: 0 | M90: Serviço | N90: Serviço | O90: - | P90: AGETOP | Q90: 71463 | R90: ISOLADOR EPOXI 50X40 (BUJAO) | S90: Un | T90: 2 | W90: 0 | AA90: 71152 | AB90: (sem código) | AC90: - | AD90: 0 | AE90: 0
A91: S | B91: 3 | C91: S | D91: 0 | E91: 1 | F91: 4 | G91: 1 | H91: 0 | I91: 0 | J91: 0 | K91: 0 | M91: Serviço | N91: Serviço | O91: - | P91: AGETOP | Q91: 71476 | R91: ISOLADOR DE ANCORAGEM POLIMÉRICO 15KV | S91: un | T91: 1 | W91: 0 | AA91: 71171 | AB91: (sem código) | AC91: - | AD91: 0 | AE91: 0
A92: S | B92: 3 | C92: S | D92: 0 | E92: 1 | F92: 4 | G92: 1 | H92: 0 | I92: 0 | J92: 0 | K92: 0 | M92: Serviço | N92: Serviço | O92: - | P92: AGETOP | Q92: 71510 | R92: LACO PREFORMADO DE DISTRIBUICAO | S92: Un | T92: 1 | W92: 0 | AA92: 71171 | AB92: (sem código) | AC92: - | AD92: 0 | AE92: 0
A93: S | B93: 3 | C93: S | D93: 0 | E93: 1 | F93: 4 | G93: 1 | H93: 0 | I93: 0 | J93: 0 | K93: 0 | M93: Serviço | N93: Serviço | O93: - | P93: AGETOP | Q93: 71742 | R93: LUVA PVC ROSQUEAVEL DIAMETRO 1" | S93: Un | T93: 1 | W93: 0 | AA93: 71171 | AB93: (sem código) | AC93: - | AD93: 0 | AE93: 0
A94: S | B94: 3 | C94: S | D94: 0 | E94: 1 | F94: 4 | G94: 1 | H94: 0 | I94: 0 | J94: 0 | K94: 0 | M94: Serviço | N94: Serviço | O94: - | P94: SINAPI | Q94: 93015 | R94: LUVA PARA ELETRODUTO, PVC, ROSCÁVEL, DN 75 MM (2 1/2") - FORNECIMENTO E INSTALAÇÃO. AF_12/2015 | S94: UN | T94: 1 | W94: 0 | AA94: 71173 | AB94: (sem código) | AC94: - | AD94: 0 | AE94: 0
A95: S | B95: 3 | C95: S | D95: 0 | E95: 1 | F95: 4 | G95: 1 | H95: 0 | I95: 0 | J95: 0 | K95: 0 | M95: Serviço | N95: Serviço | O95: - | P95: AGETOP | Q95: 71706 | R95: LUVA EM AÇO GALVANIZADO DIÂMETRO 2.1/2" | S95: Un | T95: 2 | W95: 0 | AA95: 71174 | AB95: (sem código) | AC95: - | AD95: 0 | AE95: 0
A96: S | B96: 3 | C96: S | D96: 0 | E96: 1 | F96: 4 | G96: 1 | H96: 0 | I96: 0 | J96: 0 | K96: 0 | M96: Serviço | N96: Serviço | O96: - | P96: AGETOP | Q96: 71750 | R96: MANILHA-SAPATILHA EM AÇO GALVANIZADO | S96: un | T96: 1 | W96: 0 | AA96: 71175 | AB96: (sem código) | AC96: - | AD96: 0 | AE96: 0
A97: S | B97: 3 | C97: S | D97: 0 | E97: 1 | F97: 4 | G97: 1 | H97: 0 | I97: 0 | J97: 0 | K97: 0 | M97: Serviço | N97: Serviço | O97: - | P97: AGETOP | Q97: 71761 | R97: MURETA MEDIÇÃO ALVEN. 1 1/2 V.(35CM) REBOC.C/PINTURA ACRÍL. E LAJE CONC. 20MPA MALHA 8.0MM CADA 10CM REVEST.C/ARGAMASSA 1:3 C/ IMPERMEABILIZANTE | S97: m2 | T97: 4 | W97: 0 | AA97: 71184 | AB97: (sem código) | AC97: - | AD97: 0 | AE97: 0
A98: S | B98: 3 | C98: S | D98: 0 | E98: 1 | F98: 4 | G98: 1 | H98: 0 | I98: 0 | J98: 0 | K98: 0 | M98: Serviço | N98: Serviço | O98: - | P98: AGETOP | Q98: 71773 | R98: NIPLE METALICO Fo.Zo. DIAMETRO 1" | S98: Un | T98: 1 | W98: 0 | AA98: 71194 | AB98: (sem código) | AC98: - | AD98: 0 | AE98: 0
A99: S | B99: 3 | C99: S | D99: 0 | E99: 1 | F99: 4 | G99: 1 | H99: 0 | I99: 0 | J99: 0 | K99: 0 | M99: Serviço | N99: Serviço | O99: - | P99: AGETOP | Q99: 71776 | R99: NIPLE METALICO Fo.Zo. DIAMETRO 2.1/2" | S99: Un | T99: 2 | W99: 0 | AA99: 71195 | AB99: (sem código) | AC99: - | AD99: 0 | AE99: 0
A100: S | B100: 3 | C100: S | D100: 0 | E100: 1 | F100: 4 | G100: 1 | H100: 0 | I100: 0 | J100: 0 | K100: 0 | M100: Serviço | N100: Serviço | O100: - | P100: AGETOP | Q100: 85047 | R100: NIPLE DUPLO FERRO GALVANIZADO 2.1/2" | S100: Un | T100: 1 | W100: 0 | AA100: 71196 | AB100: (sem código) | AC100: - | AD100: 0 | AE100: 0
A101: S | B101: 3 | C101: S | D101: 0 | E101: 1 | F101: 4 | G101: 1 | H101: 0 | I101: 0 | J101: 0 | K101: 0 | M101: Serviço | N101: Serviço | O101: - | P101: AGETOP | Q101: 71795 | R101: OLHAL PARA PARAFUSO | S101: un | T101: 3 | W101: 0 | AA101: 71197 | AB101: (sem código) | AC101: - | AD101: 0 | AE101: 0
A102: S | B102: 3 | C102: S | D102: 0 | E102: 1 | F102: 4 | G102: 1 | H102: 0 | I102: 0 | J102: 0 | K102: 0 | M102: Serviço | N102: Serviço | O102: - | P102: AGETOP | Q102: 71835 | R102: PARAFUSO CABEÇA ABAULADA (FRANCES) M16 X 45 MM | S102: Un | T102: 3 | W102: 0 | AA102: 71201 | AB102: (sem código) | AC102: - | AD102: 0 | AE102: 0
A103: S | B103: 3 | C103: S | D103: 0 | E103: 1 | F103: 4 | G103: 1 | H103: 0 | I103: 0 | J103: 0 | K103: 0 | M103: Serviço | N103: Serviço | O103: - | P103: AGETOP | Q103: 71841 | R103: PARAFUSO CABEÇA ABAULADA (FRANCES) M16 X 150 MM | S103: Un | T103: 3 | W103: 0 | AA103: 71202 | AB103: (sem código) | AC103: - | AD103: 0 | AE103: 0
A104: S | B104: 3 | C104: S | D104: 0 | E104: 1 | F104: 4 | G104: 1 | H104: 0 | I104: 0 | J104: 0 | K104: 0 | M104: Serviço | N104: Serviço | O104: - | P104: AGETOP | Q104: 71833 | R104: PARA RAIOS DISTRIBUIDOR POLIMÉRICO ÓXIDO DE ZINCO S/CENTELHADOR C/ DESLIGAMENTO AUTOMÁTICO 15KV,10KA | S104: Un | T104: 3 | W104: 0 | AA104: 71203 | AB104: (sem código) | AC104: - | AD104: 0 | AE104: 0
A105: S | B105: 3 | C105: S | D105: 0 | E105: 1 | F105: 4 | G105: 1 | H105: 0 | I105: 0 | J105: 0 | K105: 0 | M105: Serviço | N105: Serviço | O105: - | P105: AGETOP | Q105: 71997 | R105: POSTE - FUNDAÇÃO EM CONCRETO SIMPLES DA BASE DOS POSTES 11/600 PARA TRAFO ( DIAM. 1000MM) | S105: m | T105: 0.3 | W105: 0 | AA105: 71205 | AB105: (sem código) | AC105: - | AD105: 0 | AE105: 0
A106: S | B106: 3 | C106: S | D106: 0 | E106: 1 | F106: 4 | G106: 1 | H106: 0 | I106: 0 | J106: 0 | K106: 0 | M106: Serviço | N106: Serviço | O106: - | P106: AGETOP | Q106: 72061 | R106: POSTE DE CONCRETO SC 11/600 - SEM FUNDAÇÃO/CONCRETO | S106: Un | T106: 1 | W106: 0 | AA106: 71211 | AB106: (sem código) | AC106: - | AD106: 0 | AE106: 0
A107: S | B107: 3 | C107: S | D107: 0 | E107: 1 | F107: 4 | G107: 1 | H107: 0 | I107: 0 | J107: 0 | K107: 0 | M107: Serviço | N107: Serviço | O107: - | P107: AGETOP | Q107: 72080 | R107: POSTE/TRAFO - CAMINHÃO MUNCK 12 TON. (MÍNIMO 4H/DIA) | S107: H | T107: 4 | W107: 0 | AA107: 71212 | AB107: (sem código) | AC107: - | AD107: 0 | AE107: 0
A108: S | B108: 3 | C108: S | D108: 0 | E108: 1 | F108: 4 | G108: 1 | H108: 0 | I108: 0 | J108: 0 | K108: 0 | M108: Serviço | N108: Serviço | O108: - | P108: AGETOP | Q108: 72329 | R108: SAPATILHA DE AÇO GALVANIZADO PARA POSTE COM TRANSFORMADOR | S108: un | T108: 3 | W108: 0 | AA108: 71214 | AB108: (sem código) | AC108: - | AD108: 0 | AE108: 0
A109: S | B109: 3 | C109: S | D109: 0 | E109: 1 | F109: 4 | G109: 1 | H109: 0 | I109: 0 | J109: 0 | K109: 0 | M109: Serviço | N109: Serviço | O109: - | P109: SINAPI | Q109: 73624 | R109: SUPORTE PARA TRANSFORMADOR EM POSTE DE CONCRETO CIRCULAR | S109: UN | T109: 2 | W109: 0 | AA109: 71215 | AB109: (sem código) | AC109: - | AD109: 0 | AE109: 0
A110: S | B110: 3 | C110: S | D110: 0 | E110: 1 | F110: 4 | G110: 1 | H110: 0 | I110: 0 | J110: 0 | K110: 0 | M110: Serviço | N110: Serviço | O110: - | P110: AGETOP | Q110: 72518 | R110: TERMINAL DE PRESSAO 10 MM2 | S110: Un | T110: 1 | W110: 0 | AA110: 71321 | AB110: (sem código) | AC110: - | AD110: 0 | AE110: 0
A111: S | B111: 3 | C111: S | D111: 0 | E111: 1 | F111: 4 | G111: 1 | H111: 0 | I111: 0 | J111: 0 | K111: 0 | M111: Serviço | N111: Serviço | O111: - | P111: AGETOP | Q111: 72528 | R111: TERMINAL DE PRESSAO 35 MM2 | S111: Un | T111: 5 | W111: 0 | AA111: 71331 | AB111: (sem código) | AC111: - | AD111: 0 | AE111: 0
A112: S | B112: 3 | C112: S | D112: 0 | E112: 1 | F112: 4 | G112: 1 | H112: 0 | I112: 0 | J112: 0 | K112: 0 | M112: Serviço | N112: Serviço | O112: - | P112: AGETOP | Q112: 72535 | R112: TERMINAL DE PRESSAO 70 MMM2 | S112: Un | T112: 2 | W112: 0 | AA112: 71381 | AB112: (sem código) | AC112: - | AD112: 0 | AE112: 0
A113: S | B113: 3 | C113: S | D113: 0 | E113: 1 | F113: 4 | G113: 1 | H113: 0 | I113: 0 | J113: 0 | K113: 0 | M113: Serviço | N113: Serviço | O113: - | P113: SINAPI | Q113: 73857/2 | R113: TRANSFORMADOR DISTRIBUICAO 112,5KVA TRIFASICO 60HZ CLASSE 15KV IMERSO EM ÓLEO MINERAL FORNECIMENTO E INSTALACAO | S113: UN | T113: 1 | W113: 0 | AA113: 71431 | AB113: (sem código) | AC113: - | AD113: 0 | AE113: 0
A114: S | B114: 3 | C114: S | D114: 0 | E114: 1 | F114: 4 | G114: 1 | H114: 0 | I114: 0 | J114: 0 | K114: 0 | M114: Serviço | N114: Serviço | O114: - | P114: SINAPI | Q114: 88543 | R114: ARMACAO SECUNDARIA OU REX COMPLETA PARA TRESLINHAS-FORNECIMENTO E INSTALACAO. | S114: UN | T114: 1 | W114: 0 | AA114: 71440 | AB114: (sem código) | AC114: - | AD114: 0 | AE114: 0
A115: S | B115: 3 | C115: S | D115: 0 | E115: 1 | F115: 4 | G115: 1 | H115: 0 | I115: 0 | J115: 0 | K115: 0 | M115: Serviço | N115: Serviço | O115: - | P115: COMPOSIÇÃO | Q115: COMP 046_SEE | R115: CAPUZ PARA PROTEÇÃO DOS PARA RAIOS | S115: UN | T115: 3 | W115: 0 | AA115: 71441 | AB115: (sem código) | AC115: - | AD115: 0 | AE115: 0
A116: S | B116: 3 | C116: S | D116: 0 | E116: 1 | F116: 4 | G116: 1 | H116: 0 | I116: 0 | J116: 0 | K116: 0 | M116: Serviço | N116: Serviço | O116: - | P116: COMPOSIÇÃO | Q116: COMP 047_SEE | R116: CAPUZ DE PROTEÇÃO PARA BUCHA DE TRANSFORMADOR | S116: UN | T116: 3 | W116: 0 | AA116: 71450 | AB116: (sem código) | AC116: - | AD116: 0 | AE116: 0
A117: S | B117: 3 | C117: S | D117: 0 | E117: 1 | F117: 4 | G117: 1 | H117: 0 | I117: 0 | J117: 0 | K117: 0 | M117: Serviço | N117: Serviço | O117: - | P117: COMPOSIÇÃO | Q117: COMP 048_SEE | R117: HASTE ROSQUEADA "TIRANTE" 3/8" | S117: M | T117: 0.5 | W117: 0 | AA117: 71527 | AB117: (sem código) | AC117: - | AD117: 0 | AE117: 0
A118: S | B118: 3 | C118: S | D118: 0 | E118: 1 | F118: 4 | G118: 1 | H118: 0 | I118: 0 | J118: 0 | K118: 0 | M118: Serviço | N118: Serviço | O118: - | P118: COMPOSIÇÃO | Q118: COMP 049_SEE | R118: PORCA SEXTAVADA 3/8" | S118: UN | T118: 8 | W118: 0 | AA118: 71567 | AB118: (sem código) | AC118: - | AD118: 0 | AE118: 0
A119: 3 | B119: 3 | C119: 3 | D119: 46 | E119: 1 | F119: 4 | G119: 2 | H119: 0 | I119: 0 | J119: 46 | K119: 61 | M119: Nível 3 | N119: Nível 3 | O119: - | P119: SINAPI | R119: AMPLIAÇÃO E REFORMA | S119: - | W119: 0 | AB119: =IFERROR(IF(OR($C119=0,$C119=1,$C119=2,$C119=3,$C119=4),R119,VLOOKUP($AA119,INDIRECT($Z119),2,FALSE)),"(sem código)") -> AMPLIAÇÃO E REFORMA | AC119: =IFERROR(VLOOKUP(AA119,INDIRECT(Z119),3,FALSE()),"-") -> - | AD119: 0 | AE119: 0
A120: S | B120: 3 | C120: S | D120: 0 | E120: 1 | F120: 4 | G120: 2 | H120: 0 | I120: 0 | J120: 0 | K120: 0 | M120: Serviço | N120: Serviço | O120: - | P120: AGETOP | Q120: 70351 | R120: BRACADEIRA METALICA TIPO "U" DIAM. 3/4" | S120: Un | T120: 45 | W120: 0 | AA120: 71577 | AB120: (sem código) | AC120: - | AD120: 0 | AE120: 0
A121: S | B121: 3 | C121: S | D121: 0 | E121: 1 | F121: 4 | G121: 2 | H121: 0 | I121: 0 | J121: 0 | K121: 0 | M121: Serviço | N121: Serviço | O121: - | P121: AGETOP | Q121: 70352 | R121: BRACADEIRA METALICA TIPO "U" DIAM. 1" | S121: Un | T121: 15 | W121: 0 | AA121: 71612 | AB121: (sem código) | AC121: - | AD121: 0 | AE121: 0
A122: S | B122: 3 | C122: S | D122: 0 | E122: 1 | F122: 4 | G122: 2 | H122: 0 | I122: 0 | J122: 0 | K122: 0 | M122: Serviço | N122: Serviço | O122: - | P122: AGETOP | Q122: 70355 | R122: BRACADEIRA METALICA TIPO "U" DIAM. 2" | S122: Un | T122: 20 | W122: 0 | AB122: (sem código) | AC122: - | AD122: 0 | AE122: 0
A123: S | B123: 3 | C123: S | D123: 0 | E123: 1 | F123: 4 | G123: 2 | H123: 0 | I123: 0 | J123: 0 | K123: 0 | M123: Serviço | N123: Serviço | O123: - | P123: AGETOP | Q123: 70376 | R123: BRACADEIRA METALICA TIPO "D" DIAM. 2.1/2" | S123: Un | T123: 20 | W123: 0 | AA123: 71645 | AB123: (sem código) | AC123: - | AD123: 0 | AE123: 0
A124: S | B124: 3 | C124: S | D124: 0 | E124: 1 | F124: 4 | G124: 2 | H124: 0 | I124: 0 | J124: 0 | K124: 0 | M124: Serviço | N124: Serviço | O124: - | P124: AGETOP | Q124: 70421 | R124: BUCHA E ARRUELA METALICA DIAM. 3/4" | S124: PR | T124: 15 | W124: 0 | AA124: 71684 | AB124: (sem código) | AC124: - | AD124: 0 | AE124: 0
A125: S | B125: 3 | C125: S | D125: 0 | E125: 1 | F125: 4 | G125: 2 | H125: 0 | I125: 0 | J125: 0 | K125: 0 | M125: Serviço | N125: Serviço | O125: - | P125: AGETOP | Q125: 70422 | R125: BUCHA E ARRUELA METALICA DIAM. 1" | S125: PR | T125: 5 | W125: 0 | AA125: 71688 | AB125: (sem código) | AC125: - | AD125: 0 | AE125: 0
A126: S | B126: 3 | C126: S | D126: 0 | E126: 1 | F126: 4 | G126: 2 | H126: 0 | I126: 0 | J126: 0 | K126: 0 | M126: Serviço | N126: Serviço | O126: - | P126: AGETOP | Q126: 70425 | R126: BUCHA E ARRUELA METALICA DIAM. 2" | S126: PR | T126: 8 | W126: 0 | AA126: 71701 | AB126: (sem código) | AC126: - | AD126: 0 | AE126: 0
A127: S | B127: 3 | C127: S | D127: 0 | E127: 1 | F127: 4 | G127: 2 | H127: 0 | I127: 0 | J127: 0 | K127: 0 | M127: Serviço | N127: Serviço | O127: - | P127: AGETOP | Q127: 70426 | R127: BUCHA E ARRUELA METALICA DIAM. 2.1/2" | S127: PR | T127: 8 | W127: 0 | AA127: 71702 | AB127: (sem código) | AC127: - | AD127: 0 | AE127: 0
A128: S | B128: 3 | C128: S | D128: 0 | E128: 1 | F128: 4 | G128: 2 | H128: 0 | I128: 0 | J128: 0 | K128: 0 | M128: Serviço | N128: Serviço | O128: - | P128: SINAPI | Q128: 91929 | R128: CABO DE COBRE FLEXÍVEL ISOLADO, 4 MM², ANTI-CHAMA 0,6/1,0 KV, PARA CIRCUITOS TERMINAIS - FORNECIMENTO E INSTALAÇÃO. AF_12/2015 | S128: M | T128: 1000 | W128: 0 | AA128: 71704 | AB128: (sem código) | AC128: - | AD128: 0 | AE128: 0
A129: S | B129: 3 | C129: S | D129: 0 | E129: 1 | F129: 4 | G129: 2 | H129: 0 | I129: 0 | J129: 0 | K129: 0 | M129: Serviço | N129: Serviço | O129: - | P129: SINAPI | Q129: 92980 | R129: CABO DE COBRE FLEXÍVEL ISOLADO, 10 MM², ANTI-CHAMA 0,6/1,0 KV, PARA DISTRIBUIÇÃO - FORNECIMENTO E INSTALAÇÃO. AF_12/2015 | S129: M | T129: 5 | W129: 0 | AA129: 71705 | AB129: (sem código) | AC129: - | AD129: 0 | AE129: 0
A130: S | B130: 3 | C130: S | D130: 0 | E130: 1 | F130: 4 | G130: 2 | H130: 0 | I130: 0 | J130: 0 | K130: 0 | M130: Serviço | N130: Serviço | O130: - | P130: SINAPI | Q130: 92982 | R130: CABO DE COBRE FLEXÍVEL ISOLADO, 16 MM², ANTI-CHAMA 0,6/1,0 KV, PARA DISTRIBUIÇÃO - FORNECIMENTO E INSTALAÇÃO. AF_12/2015 | S130: M | T130: 500 | W130: 0 | AA130: 71741 | AB130: (sem código) | AC130: - | AD130: 0 | AE130: 0
A131: S | B131: 3 | C131: S | D131: 0 | E131: 1 | F131: 4 | G131: 2 | H131: 0 | I131: 0 | J131: 0 | K131: 0 | M131: Serviço | N131: Serviço | O131: - | P131: SINAPI | Q131: 92984 | R131: CABO DE COBRE FLEXÍVEL ISOLADO, 25 MM², ANTI-CHAMA 0,6/1,0 KV, PARA DISTRIBUIÇÃO - FORNECIMENTO E INSTALAÇÃO. AF_12/2015 | S131: M | T131: 5 | W131: 0 | AA131: 71742 | AB131: (sem código) | AC131: - | AD131: 0 | AE131: 0
A132: S | B132: 3 | C132: S | D132: 0 | E132: 1 | F132: 4 | G132: 2 | H132: 0 | I132: 0 | J132: 0 | K132: 0 | M132: Serviço | N132: Serviço | O132: - | P132: SINAPI | Q132: 92986 | R132: CABO DE COBRE FLEXÍVEL ISOLADO, 35 MM², ANTI-CHAMA 0,6/1,0 KV, PARA DISTRIBUIÇÃO - FORNECIMENTO E INSTALAÇÃO. AF_12/2015 | S132: M | T132: 12 | W132: 0 | AA132: 71744 | AB132: (sem código) | AC132: - | AD132: 0 | AE132: 0
A133: S | B133: 3 | C133: S | D133: 0 | E133: 1 | F133: 4 | G133: 2 | H133: 0 | I133: 0 | J133: 0 | K133: 0 | M133: Serviço | N133: Serviço | O133: - | P133: SINAPI | Q133: 92990 | R133: CABO DE COBRE FLEXÍVEL ISOLADO, 70 MM², ANTI-CHAMA 0,6/1,0 KV, PARA DISTRIBUIÇÃO - FORNECIMENTO E INSTALAÇÃO. AF_12/2015 | S133: M | T133: 48 | W133: 0 | AA133: 71745 | AB133: (sem código) | AC133: - | AD133: 0 | AE133: 0
A134: S | B134: 3 | C134: S | D134: 0 | E134: 1 | F134: 4 | G134: 2 | H134: 0 | I134: 0 | J134: 0 | K134: 0 | M134: Serviço | N134: Serviço | O134: - | P134: SINAPI | Q134: 83366 | R134: CAIXA DE PASSAGEM PARA TELEFONE 15X15X10CM (SOBREPOR), FORNECIMENTO E INSTALACAO. | S134: UN | T134: 3 | W134: 0 | AA134: 71820 | AB134: (sem código) | AC134: - | AD134: 0 | AE134: 0
A135: =CHOOSE(1+LOG(1+2*(ORÇAMENTO.Nivel="Nível 1")+4*(ORÇAMENTO.Nivel="Nível 2")+8*(ORÇAMENTO.Nivel="Nível 3")+16*(ORÇAMENTO.Nivel="Nível 4")+32*(ORÇAMENTO.Nivel="Serviço"),2),0,1,2,3,4,"S") -> S | B135: 3 | C135: S | D135: 0 | E135: 1 | F135: 4 | G135: 2 | H135: 0 | I135: =IF(AND($C135<=4,$C135<>0),0,IF(AND($C135="S",$W135>0),OFFSET(I135,-1,0)+1,OFFSET(I135,-1,0))) -> 0 | J135: 0 | K135: 0 | M135: Serviço | N135: Serviço | O135: - | P135: SINAPI | Q135: 92867 | R135: CAIXA RETANGULAR 4" X 2" ALTA (2,00 M DO PISO), METÁLICA, INSTALADA EM PAREDE - FORNECIMENTO E INSTALAÇÃO. AF_12/2015 | S135: UN | T135: 12 | W135: 0 | AA135: 71821 | AB135: (sem código) | AC135: - | AD135: 0 | AE135: 0
A136: S | B136: 3 | C136: S | D136: 0 | E136: 1 | F136: 4 | G136: 2 | H136: 0 | I136: 0 | J136: 0 | K136: 0 | M136: Serviço | N136: Serviço | O136: - | P136: SINAPI | Q136: 97893 | R136: CAIXA ENTERRADA ELÉTRICA RETANGULAR, EM ALVENARIA COM BLOCOS DE CONCRETO, FUNDO COM BRITA, DIMENSÕES INTERNAS: 0,8X0,8X0,6 M. AF_05/2018 | S136: UN | T136: 4 | W136: 0 | AA136: 71822 | AB136: (sem código) | AC136: - | AD136: 0 | AE136: 0
A137: S | B137: 3 | C137: S | D137: 0 | E137: 1 | F137: 4 | G137: 2 | H137: 0 | I137: 0 | J137: 0 | K137: 0 | M137: Serviço | N137: Serviço | O137: - | P137: SINAPI | Q137: 91902 | R137: CURVA 90 GRAUS PARA ELETRODUTO, PVC, ROSCÁVEL, DN 25 MM (3/4"), PARA CIRCUITOS TERMINAIS, INSTALADA EM LAJE - FORNECIMENTO E INSTALAÇÃO. AF_12/2015 | S137: UN | T137: 4 | W137: 0 | AA137: 71823 | AB137: (sem código) | AC137: - | AD137: 0 | AE137: 0
A138: S | B138: 3 | C138: S | D138: 0 | E138: =IF($C138=1,OFFSET(E138,-1,0)+1,OFFSET(E138,-1,0)) -> 1 | F138: =IF($C138=1,0,IF($C138=2,OFFSET(F138,-1,0)+1,OFFSET(F138,-1,0))) -> 4 | G138: =IF(AND($C138<=2,$C138<>0),0,IF($C138=3,OFFSET(G138,-1,0)+1,OFFSET(G138,-1,0))) -> 2 | H138: =IF(AND($C138<=3,$C138<>0),0,IF($C138=4,OFFSET(H138,-1,0)+1,OFFSET(H138,-1,0))) -> 0 | I138: 0 | J138: 0 | K138: 0 | M138: Serviço | N138: Serviço | O138: - | P138: SINAPI | Q138: 91905 | R138: CURVA 90 GRAUS PARA ELETRODUTO, PVC, ROSCÁVEL, DN 32 MM (1"), PARA CIRCUITOS TERMINAIS, INSTALADA EM LAJE - FORNECIMENTO E INSTALAÇÃO. AF_12/2015 | S138: UN | T138: 4 | W138: 0 | AA138: 71824 | AB138: (sem código) | AC138: - | AD138: 0 | AE138: 0
A139: S | B139: 3 | C139: S | D139: 0 | E139: 1 | F139: 4 | G139: 2 | H139: 0 | I139: 0 | J139: 0 | K139: 0 | M139: Serviço | N139: Serviço | O139: - | P139: SINAPI | Q139: 93020 | R139: CURVA 90 GRAUS PARA ELETRODUTO, PVC, ROSCÁVEL, DN 60 MM (2") - FORNECIMENTO E INSTALAÇÃO. AF_12/2015 | S139: UN | T139: 2 | W139: 0 | AA139: 71825 | AB139: (sem código) | AC139: - | AD139: 0 | AE139: 0
A140: S | B140: 3 | C140: S | D140: 0 | E140: 1 | F140: 4 | G140: 2 | H140: 0 | I140: 0 | J140: 0 | K140: 0 | M140: Serviço | N140: Serviço | O140: - | P140: SINAPI | Q140: 93022 | R140: CURVA 90 GRAUS PARA ELETRODUTO, PVC, ROSCÁVEL, DN 75 MM (2 1/2") - FORNECIMENTO E INSTALAÇÃO. AF_12/2015 | S140: UN | T140: 4 | W140: 0 | AA140: 71826 | AB140: (sem código) | AC140: - | AD140: =IFERROR(VLOOKUP($AA140,INDIRECT($Z140),IF($W$10="DESONERADA",4,7),FALSE()),0) -> 0 | AE140: =IFERROR(VLOOKUP($AA140,INDIRECT($Z140),IF($W$10="DESONERADA",5,8),FALSE()),0) -> 0
A141: S | B141: 3 | C141: S | D141: 0 | E141: 1 | F141: 4 | G141: 2 | H141: 0 | I141: 0 | J141: 0 | K141: 0 | M141: Serviço | N141: Serviço | O141: - | P141: SINAPI | Q141: 93656 | R141: DISJUNTOR MONOPOLAR TIPO DIN, CORRENTE NOMINAL DE 25A - FORNECIMENTO E INSTALAÇÃO. AF_04/2016 | S141: UN | T141: 12 | W141: 0 | AA141: 71827 | AB141: (sem código) | AC141: - | AD141: 0 | AE141: 0
A142: S | B142: 3 | C142: S | D142: 0 | E142: 1 | F142: 4 | G142: 2 | H142: 0 | I142: 0 | J142: 0 | K142: 0 | M142: Serviço | N142: Serviço | O142: - | P142: SINAPI | Q142: 93670 | R142: DISJUNTOR TRIPOLAR TIPO DIN, CORRENTE NOMINAL DE 25A - FORNECIMENTO E INSTALAÇÃO. AF_04/2016 | S142: UN | T142: 1 | W142: 0 | AA142: 72190 | AB142: (sem código) | AC142: - | AD142: 0 | AE142: 0
A143: S | B143: 3 | C143: S | D143: 0 | E143: 1 | F143: 4 | G143: 2 | H143: 0 | I143: 0 | J143: 0 | K143: 0 | M143: Serviço | N143: Serviço | O143: - | P143: SINAPI | Q143: 74130/5 | R143: DISJUNTOR TERMOMAGNETICO TRIPOLAR PADRAO NEMA (AMERICANO) 60 A 100A 240V, FORNECIMENTO E INSTALACAO | S143: UN | T143: 5 | W143: 0 | AA143: 72198 | AB143: (sem código) | AC143: - | AD143: 0 | AE143: 0
A144: S | B144: =IF(OR(C144="s",C144=0),OFFSET(B144,-1,0),C144) -> 3 | C144: =IF(OFFSET(C144,-1,0)="L",1,IF(OFFSET(C144,-1,0)=1,2,IF(OR(A144="s",A144=0),"S",IF(AND(OFFSET(C144,-1,0)=2,A144=4),3,IF(AND(OR(OFFSET(C144,-1,0)="s",OFFSET(C144,-1,0)=0),A144<>"s",A144>OFFSET(B144,-1,0)),OFFSET(B144,-1,0),A144))))) -> S | D144: =IF(OR(C144="S",C144=0),0,IF(ISERROR(K144),J144,SMALL(J144:K144,1))) -> 0 | E144: 1 | F144: 4 | G144: 2 | H144: 0 | I144: 0 | J144: 0 | K144: 0 | M144: Serviço | N144: Serviço | O144: - | P144: AGETOP | Q144: 71184 | R144: DISPOSITIVO DE PROTEÇÃO CONTRA SURTOS (D.P.S.) 275V DE 8 A 40KA | S144: Un | T144: 3 | W144: 0 | AB144: =IFERROR(IF(OR($C144=0,$C144=1,$C144=2,$C144=3,$C144=4),R144,VLOOKUP($AA144,INDIRECT($Z144),2,FALSE)),"(sem código)") -> (sem código) | AC144: =IFERROR(VLOOKUP(AA144,INDIRECT(Z144),3,FALSE()),"-") -> - | AD144: 0 | AE144: 0
A145: S | B145: 3 | C145: S | D145: 0 | E145: 1 | F145: 4 | G145: 2 | H145: 0 | I145: 0 | J145: 0 | K145: 0 | M145: Serviço | N145: Serviço | O145: - | P145: SINAPI | Q145: 74130/10 | R145: DISJUNTOR TERMOMAGNETICO TRIPOLAR EM CAIXA MOLDADA 175 A 225A 240V, FORNECIMENTO E INSTALACAO | S145: UN | T145: 1 | W145: 0 | AB145: (sem código) | AC145: - | AD145: 0 | AE145: 0
A146: S | B146: 3 | C146: S | D146: 0 | E146: 1 | F146: 4 | G146: 2 | H146: 0 | I146: 0 | J146: 0 | K146: 0 | M146: Serviço | N146: Serviço | O146: - | P146: AGETOP | Q146: 71450 | R146: INTERRUPTOR DIFERENCIAL RESIDUAL (D.R.) BIPOLAR DE 25A-30mA | S146: Un | T146: 6 | W146: 0 | AB146: (sem código) | AC146: - | AD146: 0 | AE146: 0
A147: S | B147: 3 | C147: S | D147: 0 | E147: 1 | F147: 4 | G147: 2 | H147: 0 | I147: 0 | J147: =IF(OR($C147="S",$C147=0),0,MATCH(0,OFFSET($D147,1,$C147,ROW($C$648)-ROW($C147)),0)) -> 0 | K147: =IF(OR($C147="S",$C147=0),0,MATCH(OFFSET($D147,0,$C147)+1,OFFSET($D147,1,$C147,ROW($C$648)-ROW($C147)),0)) -> 0 | M147: Serviço | N147: Serviço | O147: - | P147: SINAPI | Q147: 91871 | R147: ELETRODUTO RÍGIDO ROSCÁVEL, PVC, DN 25 MM (3/4"), PARA CIRCUITOS TERMINAIS, INSTALADO EM PAREDE - FORNECIMENTO E INSTALAÇÃO. AF_12/2015 | S147: M | T147: 90 | W147: 0 | AB147: (sem código) | AC147: - | AD147: 0 | AE147: 0
A148: S | B148: 3 | C148: S | D148: 0 | E148: 1 | F148: 4 | G148: 2 | H148: 0 | I148: 0 | J148: 0 | K148: 0 | M148: Serviço | N148: Serviço | O148: - | P148: SINAPI | Q148: 91872 | R148: ELETRODUTO RÍGIDO ROSCÁVEL, PVC, DN 32 MM (1"), PARA CIRCUITOS TERMINAIS, INSTALADO EM PAREDE - FORNECIMENTO E INSTALAÇÃO. AF_12/2015 | S148: M | T148: 30 | W148: 0 | AB148: (sem código) | AC148: - | AD148: 0 | AE148: 0
A149: S | B149: 3 | C149: S | D149: 0 | E149: 1 | F149: 4 | G149: 2 | H149: 0 | I149: 0 | J149: 0 | K149: 0 | M149: Serviço | N149: Serviço | O149: - | P149: SINAPI | Q149: 93009 | R149: ELETRODUTO RÍGIDO ROSCÁVEL, PVC, DN 60 MM (2") - FORNECIMENTO E INSTALAÇÃO. AF_12/2015 | S149: M | T149: 45 | W149: 0 | AB149: (sem código) | AC149: - | AD149: 0 | AE149: 0
A150: S | B150: 3 | C150: S | D150: 0 | E150: 1 | F150: 4 | G150: 2 | H150: 0 | I150: 0 | J150: 0 | K150: 0 | M150: Serviço | N150: Serviço | O150: - | P150: SINAPI | Q150: 93010 | R150: ELETRODUTO RÍGIDO ROSCÁVEL, PVC, DN 75 MM (2 1/2") - FORNECIMENTO E INSTALAÇÃO. AF_12/2015 | S150: M | T150: 45 | W150: 0 | AB150: (sem código) | AC150: - | AD150: 0 | AE150: 0
A151: S | B151: 3 | C151: S | D151: 0 | E151: 1 | F151: 4 | G151: 2 | H151: 0 | I151: 0 | J151: 0 | K151: 0 | M151: Serviço | N151: Serviço | O151: - | P151: AGETOP | Q151: 71321 | R151: FITA DE AUTO FUSAO, ROLO E 10,00 MM | S151: Un | T151: 4 | W151: 0 | AB151: (sem código) | AC151: - | AD151: 0 | AE151: 0
A152: S | B152: 3 | C152: S | D152: 0 | E152: 1 | F152: 4 | G152: 2 | H152: 0 | I152: 0 | J152: 0 | K152: 0 | M152: Serviço | N152: Serviço | O152: - | P152: AGETOP | Q152: 71331 | R152: FITA ISOLANTE, ROLO DE 20,00 M | S152: Un | T152: 3 | W152: 0 | AB152: (sem código) | AC152: - | AD152: 0 | AE152: 0
A153: S | B153: 3 | C153: S | D153: 0 | E153: 1 | F153: 4 | G153: 2 | H153: 0 | I153: 0 | J153: 0 | K153: 0 | M153: Serviço | N153: Serviço | O153: - | P153: AGETOP | Q153: 71381 | R153: HASTE REV.COBRE(COPPERWELD) 5/8" X 3,00 M C/CONECTOR | S153: Un | T153: 3 | W153: 0 | AB153: (sem código) | AC153: - | AD153: 0 | AE153: 0
A154: S | B154: 3 | C154: S | D154: 0 | E154: 1 | F154: 4 | G154: 2 | H154: 0 | I154: 0 | J154: 0 | K154: 0 | M154: Serviço | N154: Serviço | O154: - | P154: SINAPI | Q154: 91884 | R154: LUVA PARA ELETRODUTO, PVC, ROSCÁVEL, DN 25 MM (3/4"), PARA CIRCUITOS TERMINAIS, INSTALADA EM PAREDE - FORNECIMENTO E INSTALAÇÃO. AF_12/2015 | S154: UN | T154: 30 | W154: 0 | AB154: (sem código) | AC154: - | AD154: 0 | AE154: 0
A155: S | B155: 3 | C155: S | D155: 0 | E155: 1 | F155: 4 | G155: 2 | H155: 0 | I155: 0 | J155: 0 | K155: 0 | M155: Serviço | N155: Serviço | O155: - | P155: SINAPI | Q155: 91885 | R155: LUVA PARA ELETRODUTO, PVC, ROSCÁVEL, DN 32 MM (1"), PARA CIRCUITOS TERMINAIS, INSTALADA EM PAREDE - FORNECIMENTO E INSTALAÇÃO. AF_12/2015 | S155: UN | T155: 10 | W155: 0 | AB155: (sem código) | AC155: - | AD155: 0 | AE155: 0
A156: S | B156: 3 | C156: S | D156: 0 | E156: 1 | F156: 4 | G156: 2 | H156: 0 | I156: 0 | J156: 0 | K156: 0 | M156: Serviço | N156: Serviço | O156: - | P156: SINAPI | Q156: 93014 | R156: LUVA PARA ELETRODUTO, PVC, ROSCÁVEL, DN 60 MM (2") - FORNECIMENTO E INSTALAÇÃO. AF_12/2015 | S156: UN | T156: 15 | W156: 0 | AB156: (sem código) | AC156: - | AD156: 0 | AE156: 0
A157: S | B157: 3 | C157: S | D157: 0 | E157: 1 | F157: 4 | G157: 2 | H157: 0 | I157: 0 | J157: 0 | K157: 0 | M157: Serviço | N157: Serviço | O157: - | P157: SINAPI | Q157: 93015 | R157: LUVA PARA ELETRODUTO, PVC, ROSCÁVEL, DN 75 MM (2 1/2") - FORNECIMENTO E INSTALAÇÃO. AF_12/2015 | S157: UN | T157: 15 | W157: 0 | AB157: (sem código) | AC157: - | AD157: 0 | AE157: 0
A158: S | B158: 3 | C158: S | D158: 0 | E158: 1 | F158: 4 | G158: 2 | H158: 0 | I158: 0 | J158: 0 | K158: 0 | M158: Serviço | N158: Serviço | O158: - | P158: SINAPI | Q158: 74131/8 | R158: QUADRO DE DISTRIBUICAO DE ENERGIA DE EMBUTIR, EM CHAPA METALICA, PARA 50 DISJUNTORES TERMOMAGNETICOS MONOPOLARES, COM BARRAMENTO TRIFASICO E NEUTRO, FORNECIMENTO E INSTALACAO | S158: UN | T158: 1 | W158: 0 | AB158: (sem código) | AC158: - | AD158: 0 | AE158: 0
A159: S | B159: 3 | C159: S | D159: 0 | E159: 1 | F159: 4 | G159: 2 | H159: 0 | I159: 0 | J159: 0 | K159: 0 | M159: Serviço | N159: Serviço | O159: - | P159: SINAPI | Q159: 74131/6 | R159: QUADRO DE DISTRIBUICAO DE ENERGIA DE EMBUTIR, EM CHAPA METALICA, PARA 32 DISJUNTORES TERMOMAGNETICOS MONOPOLARES, COM BARRAMENTO TRIFASICO E NEUTRO, FORNECIMENTO E INSTALACAO | S159: UN | T159: 1 | W159: 0 | AB159: (sem código) | AC159: - | AD159: 0 | AE159: 0
A160: S | B160: 3 | C160: S | D160: 0 | E160: 1 | F160: 4 | G160: 2 | H160: 0 | I160: 0 | J160: 0 | K160: 0 | M160: Serviço | N160: Serviço | O160: - | P160: SINAPI | Q160: 74131/7 | R160: QUADRO DE DISTRIBUICAO DE ENERGIA DE EMBUTIR, EM CHAPA METALICA, PARA 40 DISJUNTORES TERMOMAGNETICOS MONOPOLARES, COM BARRAMENTO TRIFASICO E NEUTRO, FORNECIMENTO E INSTALACAO | S160: UN | T160: 1 | W160: 0 | AB160: (sem código) | AC160: - | AD160: 0 | AE160: 0
A161: S | B161: 3 | C161: S | D161: 0 | E161: 1 | F161: 4 | G161: 2 | H161: 0 | I161: 0 | J161: 0 | K161: 0 | M161: Serviço | N161: Serviço | O161: - | P161: AGETOP | Q161: 72425 | R161: TAMPA CEGA PLASTICA RETANGULAR 4"X2" | S161: Un | T161: 20 | W161: 0 | AB161: (sem código) | AC161: - | AD161: 0 | AE161: 0
A162: S | B162: 3 | C162: S | D162: 0 | E162: 1 | F162: 4 | G162: 2 | H162: 0 | I162: 0 | J162: 0 | K162: 0 | M162: Serviço | N162: Serviço | O162: - | P162: AGETOP | Q162: 72400 | R162: TAMPA CEGA PLASTICA QUADRADA 4"X4" | S162: Un | T162: 2 | W162: 0 | AB162: (sem código) | AC162: - | AD162: 0 | AE162: 0
A163: S | B163: 3 | C163: S | D163: 0 | E163: 1 | F163: 4 | G163: 2 | H163: 0 | I163: 0 | J163: 0 | K163: 0 | M163: Serviço | N163: Serviço | O163: - | P163: AGETOP | Q163: 72395 | R163: TAMPA CEGA PARA CONDULETE METÁLICO | S163: Un | T163: 2 | W163: 0 | AB163: (sem código) | AC163: - | AD163: 0 | AE163: 0
A164: S | B164: =IF(OR(C164="s",C164=0),OFFSET(B164,-1,0),C164) -> 3 | C164: =IF(OFFSET(C164,-1,0)="L",1,IF(OFFSET(C164,-1,0)=1,2,IF(OR(A164="s",A164=0),"S",IF(AND(OFFSET(C164,-1,0)=2,A164=4),3,IF(AND(OR(OFFSET(C164,-1,0)="s",OFFSET(C164,-1,0)=0),A164<>"s",A164>OFFSET(B164,-1,0)),OFFSET(B164,-1,0),A164))))) -> S | D164: =IF(OR(C164="S",C164=0),0,IF(ISERROR(K164),J164,SMALL(J164:K164,1))) -> 0 | E164: 1 | F164: 4 | G164: 2 | H164: 0 | I164: 0 | J164: 0 | K164: 0 | M164: Serviço | N164: Serviço | O164: - | P164: SINAPI | Q164: 91993 | R164: TOMADA ALTA DE EMBUTIR (1 MÓDULO), 2P+T 20 A, INCLUINDO SUPORTE E PLACA - FORNECIMENTO E INSTALAÇÃO. AF_12/2015 | S164: UN | T164: 12 | W164: 0 | AB164: (sem código) | AC164: - | AD164: 0 | AE164: 0
A165: 2 | B165: 2 | C165: 2 | D165: 62 | E165: 1 | F165: 5 | G165: 0 | H165: 0 | I165: 0 | J165: 117 | K165: 62 | M165: Nível 2 | N165: Nível 2 | O165: - | P165: AGETOP | R165: INSTALAÇÕES HIDROSSANITÁRIAS | S165: - | W165: 0 | AB165: INSTALAÇÕES HIDROSSANITÁRIAS | AC165: - | AD165: 0 | AE165: 0
A166: 3 | B166: 3 | C166: 3 | D166: 8 | E166: 1 | F166: 5 | G166: 1 | H166: 0 | I166: 0 | J166: 61 | K166: 8 | M166: Nível 3 | N166: Nível 3 | O166: - | P166: SINAPI | R166: INCENDIO | S166: - | W166: 0 | Y166: NÃO | Z166: AGETOP | AA166: 70634 | AB166: INCENDIO | AC166: - | AD166: 0 | AE166: 0
A167: S | B167: 3 | C167: S | D167: 0 | E167: 1 | F167: 5 | G167: 1 | H167: 0 | I167: 0 | J167: 0 | K167: 0 | M167: Serviço | N167: Serviço | O167: - | P167: AGETOP | Q167: 85006 | R167: EXTINTOR MULTI USO EM PO A B C (6 KG) - CAPACIDADE EXTINTORA 3A 20BC | S167: un | T167: 3 | W167: 0 | AB167: (sem código) | AC167: - | AD167: =IFERROR(VLOOKUP($AA167,INDIRECT($Z167),IF($W$10="DESONERADA",4,7),FALSE()),0) -> 0 | AE167: =IFERROR(VLOOKUP($AA167,INDIRECT($Z167),IF($W$10="DESONERADA",5,8),FALSE()),0) -> 0
A168: S | B168: 3 | C168: S | D168: 0 | E168: 1 | F168: 5 | G168: 1 | H168: 0 | I168: 0 | J168: 0 | K168: 0 | M168: Serviço | N168: Serviço | O168: - | P168: AGETOP | Q168: 85005 | R168: EXTINTOR AGUA PRESSURIZADA (10 LITROS) - CAPACIDADE EXTINTORA 2A | S168: Un | T168: 3 | W168: 0 | AB168: (sem código) | AC168: - | AD168: 0 | AE168: 0
A169: S | B169: 3 | C169: S | D169: 0 | E169: 1 | F169: 5 | G169: 1 | H169: 0 | I169: 0 | J169: 0 | K169: 0 | M169: Serviço | N169: Serviço | O169: - | P169: AGETOP | Q169: 85003 | R169: EXTINTOR PO QUIMICO SECO (6 KG) - CAPACIDADE EXTINTORA 20 BC | S169: Un | T169: 1 | W169: 0 | AB169: (sem código) | AC169: - | AD169: 0 | AE169: 0
A170: S | B170: 3 | C170: S | D170: 0 | E170: 1 | F170: 5 | G170: 1 | H170: 0 | I170: 0 | J170: 0 | K170: 0 | M170: Serviço | N170: Serviço | O170: - | P170: COMPOSIÇÃO | Q170: COMP 024_SEE | R170: SINALIZADOR FOTOLUMINESCENTE PARA EXTINTOR | S170: UN | T170: 7 | W170: 0 | AB170: (sem código) | AC170: - | AD170: 0 | AE170: 0
A171: S | B171: 3 | C171: S | D171: 0 | E171: 1 | F171: 5 | G171: 1 | H171: 0 | I171: 0 | J171: 0 | K171: 0 | M171: Serviço | N171: Serviço | O171: - | P171: COMPOSIÇÃO | Q171: COMP 025_SEE | R171: SINALIZADOR FOTOLUMINESCENTE DE EMERGÊNCIA | S171: UN | T171: 12 | W171: 0 | AB171: (sem código) | AC171: - | AD171: 0 | AE171: 0
A172: S | B172: 3 | C172: S | D172: 0 | E172: 1 | F172: 5 | G172: 1 | H172: 0 | I172: 0 | J172: 0 | K172: 0 | M172: Serviço | N172: Serviço | O172: - | P172: COMPOSIÇÃO | Q172: COMP 277_SEE | R172: MARCAÇÃO NO PISO - 1X1 M PARA EXTINTOR | S172: M2 | T172: 7 | W172: 0 | AB172: =IFERROR(IF(OR($C172=0,$C172=1,$C172=2,$C172=3,$C172=4),R172,VLOOKUP($AA172,INDIRECT($Z172),2,FALSE)),"(sem código)") -> (sem código) | AC172: =IFERROR(VLOOKUP(AA172,INDIRECT(Z172),3,FALSE()),"-") -> - | AD172: 0 | AE172: 0
A173: S | B173: 3 | C173: S | D173: 0 | E173: 1 | F173: 5 | G173: 1 | H173: 0 | I173: 0 | J173: 0 | K173: 0 | M173: Serviço | N173: Serviço | O173: - | P173: AGETOP | Q173: 71598 | R173: LUMINÁRIA DE EMERGÊNCIA 30 LEDS | S173: un | T173: 10 | W173: 0 | AB173: (sem código) | AC173: - | AD173: 0 | AE173: 0
A174: 3 | B174: 3 | C174: 3 | D174: 6 | E174: 1 | F174: 5 | G174: 2 | H174: 0 | I174: 0 | J174: 53 | K174: 6 | M174: Nível 3 | N174: Nível 3 | O174: - | P174: SINAPI | R174: PEÇAS E ACESSÓRIOS | S174: - | W174: 0 | AB174: PEÇAS E ACESSÓRIOS | AC174: =IFERROR(VLOOKUP(AA174,INDIRECT(Z174),3,FALSE()),"-") -> - | AD174: 0 | AE174: 0
A175: 4 | B175: 4 | C175: 4 | D175: 3 | E175: 1 | F175: 5 | G175: 2 | H175: 1 | I175: 0 | J175: 5 | K175: 3 | M175: Nível 4 | N175: Nível 4 | O175: - | P175: SINAPI | R175: CAIXAS E CURVAS | S175: - | W175: 0 | AB175: CAIXAS E CURVAS | AC175: =IFERROR(VLOOKUP(AA175,INDIRECT(Z175),3,FALSE()),"-") -> - | AD175: 0 | AE175: 0
A176: S | B176: 4 | C176: S | D176: 0 | E176: 1 | F176: 5 | G176: 2 | H176: 1 | I176: 0 | J176: 0 | K176: 0 | M176: Serviço | N176: Serviço | O176: - | P176: SINAPI | Q176: 6171 | R176: TAMPA DE CONCRETO ARMADO 60X60X5CM PARA CAIXA | S176: UN | T176: 4 | W176: 0 | Y176: NÃO | Z176: AGETOP | AA176: 70634 | AB176: (sem código) | AC176: =IFERROR(VLOOKUP(AA176,INDIRECT(Z176),3,FALSE()),"-") -> - | AD176: 0 | AE176: 0
A177: S | B177: 4 | C177: S | D177: 0 | E177: 1 | F177: 5 | G177: 2 | H177: 1 | I177: 0 | J177: 0 | K177: 0 | M177: Serviço | N177: Serviço | O177: - | P177: AGETOP | Q177: 70715 | R177: CAIXA DE PASSAGEM 60X60X80CM FUNDO DE BRITA SEM TAMPA | S177: Un | T177: 4 | W177: 0 | AB177: (sem código) | AC177: - | AD177: 0 | AE177: 0
A178: 4 | B178: 4 | C178: 4 | D178: 2 | E178: 1 | F178: 5 | G178: 2 | H178: 2 | I178: 0 | J178: 2 | K178: 13 | M178: Nível 4 | N178: Nível 4 | O178: - | P178: SINAPI | R178: REGISTROS | S178: - | W178: 0 | AB178: REGISTROS | AC178: - | AD178: 0 | AE178: 0
A179: S | B179: 4 | C179: S | D179: 0 | E179: 1 | F179: 5 | G179: 2 | H179: 2 | I179: 0 | J179: 0 | K179: 0 | M179: Serviço | N179: Serviço | O179: - | P179: SINAPI | Q179: 94499 | R179: REGISTRO DE GAVETA BRUTO, LATÃO, ROSCÁVEL, 2 1/2, INSTALADO EM RESERVAÇÃO DE ÁGUA DE EDIFICAÇÃO QUE POSSUA RESERVATÓRIO DE FIBRA/FIBROCIMENTO  FORNECIMENTO E INSTALAÇÃO. AF_06/2016 | S179: UN | T179: 1 | W179: 0 | Z179: AGETOP | AA179: 80910 | AB179: (sem código) | AC179: - | AD179: 0 | AE179: 0
A180: =CHOOSE(1+LOG(1+2*(ORÇAMENTO.Nivel="Nível 1")+4*(ORÇAMENTO.Nivel="Nível 2")+8*(ORÇAMENTO.Nivel="Nível 3")+16*(ORÇAMENTO.Nivel="Nível 4")+32*(ORÇAMENTO.Nivel="Serviço"),2),0,1,2,3,4,"S") -> 3 | B180: =IF(OR(C180="s",C180=0),OFFSET(B180,-1,0),C180) -> 3 | C180: =IF(OFFSET(C180,-1,0)="L",1,IF(OFFSET(C180,-1,0)=1,2,IF(OR(A180="s",A180=0),"S",IF(AND(OFFSET(C180,-1,0)=2,A180=4),3,IF(AND(OR(OFFSET(C180,-1,0)="s",OFFSET(C180,-1,0)=0),A180<>"s",A180>OFFSET(B180,-1,0)),OFFSET(B180,-1,0),A180))))) -> 3 | D180: =IF(OR(C180="S",C180=0),0,IF(ISERROR(K180),J180,SMALL(J180:K180,1))) -> 38 | E180: =IF($C180=1,OFFSET(E180,-1,0)+1,OFFSET(E180,-1,0)) -> 1 | F180: =IF($C180=1,0,IF($C180=2,OFFSET(F180,-1,0)+1,OFFSET(F180,-1,0))) -> 5 | G180: =IF(AND($C180<=2,$C180<>0),0,IF($C180=3,OFFSET(G180,-1,0)+1,OFFSET(G180,-1,0))) -> 3 | H180: =IF(AND($C180<=3,$C180<>0),0,IF($C180=4,OFFSET(H180,-1,0)+1,OFFSET(H180,-1,0))) -> 0 | I180: =IF(AND($C180<=4,$C180<>0),0,IF(AND($C180="S",$W180>0),OFFSET(I180,-1,0)+1,OFFSET(I180,-1,0))) -> 0 | J180: 47 | K180: 38 | M180: Nível 3 | N180: Nível 3 | O180: - | P180: SINAPI | R180: ÁGUA FRIA | S180: - | W180: 0 | AB180: ÁGUA FRIA | AC180: - | AD180: 0 | AE180: 0
A181: 4 | B181: 4 | C181: 4 | D181: 6 | E181: 1 | F181: 5 | G181: 3 | H181: 1 | I181: 0 | J181: 37 | K181: 6 | M181: Nível 4 | N181: Nível 4 | O181: - | P181: SINAPI | R181: TUBOS DE PVC SOLDÁVEL | S181: - | W181: 0 | AB181: TUBOS DE PVC SOLDÁVEL | AC181: - | AD181: 0 | AE181: 0
A182: S | B182: 4 | C182: S | D182: 0 | E182: 1 | F182: 5 | G182: 3 | H182: 1 | I182: 0 | J182: 0 | K182: 0 | M182: Serviço | N182: Serviço | O182: - | P182: SINAPI | Q182: 89402 | R182: TUBO, PVC, SOLDÁVEL, DN 25MM, INSTALADO EM RAMAL DE DISTRIBUIÇÃO DE ÁGUA - FORNECIMENTO E INSTALAÇÃO. AF_12/2014 | S182: M | T182: 12 | W182: 0 | X182: Referência: AGETOP - 81003 | Y182: SIM | Z182: AGETOP | AA182: 81003 | AB182: (sem código) | AC182: - | AD182: 0 | AE182: 0
A183: S | B183: 4 | C183: S | D183: 0 | E183: 1 | F183: 5 | G183: 3 | H183: 1 | I183: 0 | J183: 0 | K183: 0 | M183: Serviço | N183: Serviço | O183: - | P183: SINAPI | Q183: 89447 | R183: TUBO, PVC, SOLDÁVEL, DN 32MM, INSTALADO EM PRUMADA DE ÁGUA - FORNECIMENTO E INSTALAÇÃO. AF_12/2014 | S183: M | T183: 42 | W183: 0 | Y183: NÃO | Z183: AGETOP | AA183: 81004 | AB183: (sem código) | AC183: - | AD183: 0 | AE183: 0
A184: S | B184: 4 | C184: S | D184: 0 | E184: 1 | F184: 5 | G184: 3 | H184: 1 | I184: 0 | J184: 0 | K184: 0 | M184: Serviço | N184: Serviço | O184: - | P184: SINAPI | Q184: 89449 | R184: TUBO, PVC, SOLDÁVEL, DN 50MM, INSTALADO EM PRUMADA DE ÁGUA - FORNECIMENTO E INSTALAÇÃO. AF_12/2014 | S184: M | T184: 12 | W184: 0 | Y184: NÃO | Z184: AGETOP | AA184: 81006 | AB184: (sem código) | AC184: - | AD184: 0 | AE184: 0
A185: S | B185: 4 | C185: S | D185: 0 | E185: 1 | F185: 5 | G185: 3 | H185: 1 | I185: 0 | J185: 0 | K185: 0 | M185: Serviço | N185: Serviço | O185: - | P185: SINAPI | Q185: 89450 | R185: TUBO, PVC, SOLDÁVEL, DN 60MM, INSTALADO EM PRUMADA DE ÁGUA - FORNECIMENTO E INSTALAÇÃO. AF_12/2014 | S185: M | T185: 30 | W185: 0 | Z185: AGETOP | AA185: 81007 | AB185: (sem código) | AC185: - | AD185: 0 | AE185: 0
A186: S | B186: 4 | C186: S | D186: 0 | E186: 1 | F186: 5 | G186: 3 | H186: 1 | I186: 0 | J186: 0 | K186: 0 | M186: Serviço | N186: Serviço | O186: - | P186: SINAPI | Q186: 89451 | R186: TUBO, PVC, SOLDÁVEL, DN 75MM, INSTALADO EM PRUMADA DE ÁGUA - FORNECIMENTO E INSTALAÇÃO. AF_12/2014 | S186: M | T186: 30 | W186: 0 | Y186: NÃO | Z186: AGETOP | AA186: 81008 | AB186: (sem código) | AC186: - | AD186: 0 | AE186: 0
A187: 4 | B187: 4 | C187: 4 | D187: 4 | E187: 1 | F187: 5 | G187: 3 | H187: 2 | I187: 0 | J187: 31 | K187: 4 | M187: Nível 4 | N187: Nível 4 | O187: - | P187: SINAPI | R187: ADAPTADORES DE PVC SOLDÁVEL | S187: - | W187: 0 | AB187: ADAPTADORES DE PVC SOLDÁVEL | AC187: - | AD187: 0 | AE187: 0
A188: S | B188: 4 | C188: S | D188: 0 | E188: 1 | F188: 5 | G188: 3 | H188: 2 | I188: 0 | J188: 0 | K188: 0 | M188: Serviço | N188: Serviço | O188: - | P188: SINAPI | Q188: 94709 | R188: ADAPTADOR COM FLANGES LIVRES, PVC, SOLDÁVEL, DN 32 MM X 1 , INSTALADO EM RESERVAÇÃO DE ÁGUA DE EDIFICAÇÃO QUE POSSUA RESERVATÓRIO DE FIBRA/FIBROCIMENTO FORNECIMENTO E INSTALAÇÃO. AF_06/2016 | S188: UN | T188: 1 | W188: 0 | X188: Referência: AGETOP - 81042 | Y188: SIM | Z188: AGETOP | AA188: 81042 | AB188: (sem código) | AC188: - | AD188: 0 | AE188: 0
A189: S | B189: 4 | C189: S | D189: 0 | E189: 1 | F189: 5 | G189: 3 | H189: 2 | I189: 0 | J189: 0 | K189: 0 | M189: Serviço | N189: Serviço | O189: - | P189: SINAPI | Q189: 94713 | R189: ADAPTADOR COM FLANGES LIVRES, PVC, SOLDÁVEL, DN 75 MM X 2 1/2 , INSTALADO EM RESERVAÇÃO DE ÁGUA DE EDIFICAÇÃO QUE POSSUA RESERVATÓRIO DE FIBRA/FIBROCIMENTO FORNECIMENTO E INSTALAÇÃO. AF_06/2016 | S189: UN | T189: 1 | W189: 0 | AB189: (sem código) | AC189: - | AD189: 0 | AE189: 0
A190: S | B190: 4 | C190: S | D190: 0 | E190: 1 | F190: 5 | G190: 3 | H190: 2 | I190: 0 | J190: 0 | K190: 0 | M190: Serviço | N190: Serviço | O190: - | P190: SINAPI | Q190: 89613 | R190: ADAPTADOR CURTO COM BOLSA E ROSCA PARA REGISTRO, PVC, SOLDÁVEL, DN 75MM X 2.1/2, INSTALADO EM PRUMADA DE ÁGUA - FORNECIMENTO E INSTALAÇÃO. AF_12/2014 | S190: UN | T190: 2 | W190: 0 | AB190: (sem código) | AC190: - | AD190: 0 | AE190: 0
A191: 4 | B191: 4 | C191: 4 | D191: 6 | E191: 1 | F191: 5 | G191: 3 | H191: 3 | I191: 0 | J191: 27 | K191: 6 | M191: Nível 4 | N191: Nível 4 | O191: - | P191: SINAPI | R191: LUVAS DE PVC | S191: - | W191: 0 | AB191: LUVAS DE PVC | AC191: - | AD191: 0 | AE191: 0
A192: S | B192: 4 | C192: S | D192: 0 | E192: 1 | F192: 5 | G192: 3 | H192: 3 | I192: 0 | J192: 0 | K192: 0 | M192: Serviço | N192: Serviço | O192: - | P192: SINAPI | Q192: 89528 | R192: LUVA, PVC, SOLDÁVEL, DN 25MM, INSTALADO EM PRUMADA DE ÁGUA - FORNECIMENTO E INSTALAÇÃO. AF_12/2014 | S192: UN | T192: 2 | W192: 0 | Y192: NÃO | Z192: AGETOP | AA192: 81102 | AB192: (sem código) | AC192: - | AD192: 0 | AE192: 0
A193: S | B193: 4 | C193: S | D193: 0 | E193: 1 | F193: 5 | G193: 3 | H193: 3 | I193: 0 | J193: 0 | K193: 0 | M193: Serviço | N193: Serviço | O193: - | P193: SINAPI | Q193: 89431 | R193: LUVA, PVC, SOLDÁVEL, DN 32MM, INSTALADO EM RAMAL DE DISTRIBUIÇÃO DE ÁGUA - FORNECIMENTO E INSTALAÇÃO. AF_12/2014 | S193: UN | T193: 11 | W193: 0 | X193: Referência: AGETOP - 81103 | Y193: SIM | Z193: AGETOP | AA193: 81103 | AB193: (sem código) | AC193: - | AD193: 0 | AE193: 0
A194: S | B194: 4 | C194: S | D194: 0 | E194: 1 | F194: 5 | G194: 3 | H194: 3 | I194: 0 | J194: 0 | K194: 0 | M194: Serviço | N194: Serviço | O194: - | P194: SINAPI | Q194: 89575 | R194: LUVA, PVC, SOLDÁVEL, DN 50MM, INSTALADO EM PRUMADA DE ÁGUA - FORNECIMENTO E INSTALAÇÃO. AF_12/2014 | S194: UN | T194: 3 | W194: 0 | X194: Referência: AGETOP - 81105 | Y194: SIM | Z194: AGETOP | AA194: 81105 | AB194: (sem código) | AC194: - | AD194: 0 | AE194: 0
A195: S | B195: 4 | C195: S | D195: 0 | E195: 1 | F195: 5 | G195: 3 | H195: 3 | I195: 0 | J195: 0 | K195: 0 | M195: Serviço | N195: Serviço | O195: - | P195: SINAPI | Q195: 89597 | R195: LUVA, PVC, SOLDÁVEL, DN 60MM, INSTALADO EM PRUMADA DE ÁGUA - FORNECIMENTO E INSTALAÇÃO. AF_12/2014 | S195: UN | T195: 6 | W195: 0 | Z195: AGETOP | AA195: 81106 | AB195: (sem código) | AC195: - | AD195: 0 | AE195: 0
A196: S | B196: 4 | C196: S | D196: 0 | E196: 1 | F196: 5 | G196: 3 | H196: 3 | I196: 0 | J196: 0 | K196: 0 | M196: Serviço | N196: Serviço | O196: - | P196: SINAPI | Q196: 89611 | R196: LUVA, PVC, SOLDÁVEL, DN 75MM, INSTALADO EM PRUMADA DE ÁGUA - FORNECIMENTO E INSTALAÇÃO. AF_12/2014 | S196: UN | T196: 8 | W196: 0 | Y196: NÃO | Z196: AGETOP | AA196: 81107 | AB196: (sem código) | AC196: - | AD196: 0 | AE196: 0
A197: 4 | B197: 4 | C197: 4 | D197: 6 | E197: 1 | F197: 5 | G197: 3 | H197: 4 | I197: 0 | J197: 21 | K197: 6 | M197: Nível 4 | N197: Nível 4 | O197: - | P197: SINAPI | R197: BUCHAS | S197: - | W197: 0 | AB197: BUCHAS | AC197: - | AD197: 0 | AE197: 0
A198: S | B198: 4 | C198: S | D198: 0 | E198: 1 | F198: 5 | G198: 3 | H198: 4 | I198: 0 | J198: 0 | K198: 0 | M198: Serviço | N198: Serviço | O198: - | P198: SINAPI | Q198: 96662 | R198: BUCHA DE REDUÇÃO, PPR, 32 X 25, CLASSE PN 25, INSTALADO EM RAMAL DE DISTRIBUIÇÃO DE ÁGUA  FORNECIMENTO E INSTALAÇÃO . AF_06/2015 | S198: UN | T198: 2 | W198: 0 | X198: Referência: AGETOP - 81162 | Y198: SIM | Z198: AGETOP | AA198: 81162 | AB198: (sem código) | AC198: - | AD198: 0 | AE198: 0
A199: S | B199: 4 | C199: S | D199: 0 | E199: 1 | F199: 5 | G199: 3 | H199: 4 | I199: 0 | J199: 0 | K199: 0 | M199: Serviço | N199: Serviço | O199: - | P199: SINAPI | Q199: 89605 | R199: LUVA DE REDUÇÃO, PVC, SOLDÁVEL, DN 60MM X 50MM, INSTALADO EM PRUMADA DE ÁGUA - FORNECIMENTO E INSTALAÇÃO. AF_12/2014 | S199: UN | T199: 6 | W199: 0 | X199: Referência: AGETOP - 81165 | Y199: SIM | Z199: AGETOP | AA199: 81165 | AB199: (sem código) | AC199: - | AD199: 0 | AE199: 0
A200: S | B200: 4 | C200: S | D200: 0 | E200: 1 | F200: 5 | G200: 3 | H200: 4 | I200: 0 | J200: 0 | K200: 0 | M200: Serviço | N200: Serviço | O200: - | P200: SINAPI | Q200: 89579 | R200: LUVA DE REDUÇÃO, PVC, SOLDÁVEL, DN 50MM X 25MM, INSTALADO EM PRUMADA DE ÁGUA FORNECIMENTO E INSTALAÇÃO. AF_12/2014 | S200: UN | T200: 6 | W200: 0 | X200: Referência: AGETOP - 81179 | Y200: SIM | Z200: AGETOP | AA200: 81179 | AB200: (sem código) | AC200: - | AD200: 0 | AE200: 0
A201: S | B201: 4 | C201: S | D201: 0 | E201: 1 | F201: 5 | G201: 3 | H201: 4 | I201: 0 | J201: 0 | K201: 0 | M201: Serviço | N201: Serviço | O201: - | P201: AGETOP | Q201: 81180 | R201: BUCHA DE REDUCAO SOLDAVEL LONGA 50 X 32 mm | S201: Un | T201: 2 | W201: 0 | AB201: (sem código) | AC201: - | AD201: 0 | AE201: 0
A202: S | B202: 4 | C202: S | D202: 0 | E202: 1 | F202: 5 | G202: 3 | H202: 4 | I202: 0 | J202: 0 | K202: 0 | M202: Serviço | N202: Serviço | O202: - | P202: AGETOP | Q202: 81185 | R202: BUCHA DE REDUÇÃO SOLDÁVEL LONGA 75 X 50 MM | S202: un | T202: 4 | W202: 0 | AB202: (sem código) | AC202: - | AD202: 0 | AE202: 0
A203: 4 | B203: 4 | C203: 4 | D203: 4 | E203: 1 | F203: 5 | G203: 3 | H203: 5 | I203: 0 | J203: 15 | K203: 4 | M203: Nível 4 | N203: Nível 4 | O203: - | P203: SINAPI | R203: JOELHO | S203: - | T203: 2 | W203: 0 | AB203: JOELHO | AC203: - | AD203: 0 | AE203: 0
A204: S | B204: 4 | C204: S | D204: 0 | E204: 1 | F204: 5 | G204: 3 | H204: 5 | I204: 0 | J204: 0 | K204: 0 | M204: Serviço | N204: Serviço | O204: - | P204: SINAPI | Q204: 89501 | R204: JOELHO 90 GRAUS, PVC, SOLDÁVEL, DN 50MM, INSTALADO EM PRUMADA DE ÁGUA - FORNECIMENTO E INSTALAÇÃO. AF_12/2014 | S204: UN | T204: 4 | W204: 0 | X204: Referência: AGETOP - 81322 | Y204: SIM | Z204: AGETOP | AA204: 81322 | AB204: =IFERROR(IF(OR($C204=0,$C204=1,$C204=2,$C204=3,$C204=4),R204,VLOOKUP($AA204,INDIRECT($Z204),2,FALSE)),"(sem código)") -> (sem código) | AC204: - | AD204: 0 | AE204: 0
A205: S | B205: 4 | C205: S | D205: 0 | E205: 1 | F205: 5 | G205: 3 | H205: 5 | I205: 0 | J205: 0 | K205: 0 | M205: Serviço | N205: Serviço | O205: - | P205: SINAPI | Q205: 89505 | R205: JOELHO 90 GRAUS, PVC, SOLDÁVEL, DN 60MM, INSTALADO EM PRUMADA DE ÁGUA - FORNECIMENTO E INSTALAÇÃO. AF_12/2014 | S205: UN | T205: 1 | W205: 0 | Y205: NÃO | Z205: AGETOP | AA205: 81324 | AB205: (sem código) | AC205: - | AD205: 0 | AE205: 0
A206: S | B206: 4 | C206: S | D206: 0 | E206: 1 | F206: 5 | G206: 3 | H206: 5 | I206: 0 | J206: 0 | K206: 0 | M206: Serviço | N206: Serviço | O206: - | P206: SINAPI | Q206: 89513 | R206: JOELHO 90 GRAUS, PVC, SOLDÁVEL, DN 75MM, INSTALADO EM PRUMADA DE ÁGUA - FORNECIMENTO E INSTALAÇÃO. AF_12/2014 | S206: UN | T206: 2 | W206: 0 | AB206: (sem código) | AC206: - | AD206: 0 | AE206: 0
... 515 more rows

Sheet Resumo
B3: UNIDADE ESCOLAR | G3: CÓDIGO INEP
B4: =Orçamento!$O$4 -> CENTRO DE ENSINO EM PERÍODO INTEGRAL JOAQUIM EDSON DE CAMARGO | G4: =Orçamento!V4 -> 52035182
B6: OBRA | G6: CIDADE
B7: =Orçamento!$O$7 -> REFORMA E AMPLIAÇÃO | G7: =Orçamento!$V$7 -> GOIÂNIA
B9: ENDEREÇO | G9: CRE
B10: =Orçamento!$R$10 -> RUA SANTIAGO QD. 232 S/N PCA JARDIM DA INFÂNC, JD NOVO MUNDO, CEP:74705-060 | G10: =Orçamento!$O$10 -> GOIÂNIA
B12: REFERÊNCIA | D12: DATA | G12: ÁREA TOTAL CONSTRUÍDA (M²)
B13: =CONCATENATE("AGETOP E SINAPI - ",Orçamento!$W$10) -> AGETOP E SINAPI - NÃO DESONERADA | D13: =Orçamento!$S$7 -> 2020-04-08 | G13: =Orçamento!$S$13 -> 2081.99
A14: FILTRO
B15: RESUMO GERAL DO ORÇAMENTO
A16: ↓ | B16: ITEM | C16: DESCRIÇÃO DOS SERVIÇOS | E16: UNID | F16: QUANT | G16: PREÇO SEM BDI | H16: PREÇO COM BDI | I16: PARTICIP. (%)
A17: =IF(E17>0,"F","") -> F | B17: 1. | C17: =Orçamento!$P701 -> REFORMA | E17: UN | F17: 1 | G17: =IFERROR(Orçamento!S701,"-") -> 0 | H17: =IFERROR(Orçamento!V701,"") -> 0 | I17: =Orçamento!X701 -> 
A18: =IF(E18>0,"F","") -> F | B18: 2. | C18: =Orçamento!$P702 -> BLOCO PADRAO COZINHA / REFEITÓRIO | E18: UN | F18: 1 | G18: =IFERROR(Orçamento!S702,"-") -> 0 | H18: =IFERROR(Orçamento!V702,"") -> 0 | I18: =Orçamento!X702 -> 
A19: F | B19: 3. | C19: =Orçamento!$P703 -> BLOCO SANITÁRIO PADRÃO SEDUC 2013 | E19: UN | F19: 1 | G19: =IFERROR(Orçamento!S703,"-") -> 0 | H19: =IFERROR(Orçamento!V703,"") -> 0 | I19: =Orçamento!X703 -> 
B20: 4. | C20: =Orçamento!$P704 ->  | G20: =IFERROR(Orçamento!S704,"-") -> 0 | H20: =IFERROR(Orçamento!V704,"") -> 0 | I20: =Orçamento!X704 -> 
B21: 5. | C21: =Orçamento!$P705 ->  | G21: =IFERROR(Orçamento!S705,"-") -> 0 | H21: =IFERROR(Orçamento!V705,"") -> 0 | I21: =Orçamento!X705 -> 
B22: 6. | C22: =Orçamento!$P706 ->  | G22: =IFERROR(Orçamento!S706,"-") -> 0 | H22: =IFERROR(Orçamento!V706,"") -> 0 | I22: =Orçamento!X706 -> 
B23: 7. | C23: =Orçamento!$P707 ->  | G23: =IFERROR(Orçamento!S707,"-") -> 0 | H23: =IFERROR(Orçamento!V707,"") -> 0 | I23: =Orçamento!X707 -> 
B24: 8. | C24: =Orçamento!$P708 ->  | G24: =IFERROR(Orçamento!S708,"-") -> 0 | H24: =IFERROR(Orçamento!V708,"") -> 0 | I24: =Orçamento!X708 -> 
B25: 9. | C25: =Orçamento!$P709 ->  | G25: =IFERROR(Orçamento!S709,"-") -> 0 | H25: =IFERROR(Orçamento!V709,"") -> 0 | I25: =Orçamento!X709 -> 
B26: 10. | C26: =Orçamento!$P710 ->  | G26: =IFERROR(Orçamento!S710,"-") -> 0 | H26: =IFERROR(Orçamento!V710,"") -> 0 | I26: =Orçamento!X710 -> 
B27: 11. | C27: =Orçamento!$P711 ->  | G27: =IFERROR(Orçamento!S711,"-") -> 0 | H27: =IFERROR(Orçamento!V711,"") -> 0 | I27: =Orçamento!X711 -> 
B28: 12. | C28: =Orçamento!$P712 ->  | G28: =IFERROR(Orçamento!S712,"-") -> 0 | H28: =IFERROR(Orçamento!V712,"") -> 0 | I28: =Orçamento!X712 -> 
B29: 13. | C29: =Orçamento!$P713 ->  | G29: =IFERROR(Orçamento!S713,"-") -> 0 | H29: =IFERROR(Orçamento!V713,"") -> 0 | I29: =Orçamento!X713 -> 
B30: 14. | C30: =Orçamento!$P714 ->  | G30: =IFERROR(Orçamento!S714,"-") -> 0 | H30: =IFERROR(Orçamento!V714,"") -> 0 | I30: =Orçamento!X714 -> 
B31: 15. | C31: =Orçamento!$P715 ->  | G31: =IFERROR(Orçamento!S715,"-") -> 0 | H31: =IFERROR(Orçamento!V715,"") -> 0 | I31: =Orçamento!X715 -> 
B32: 16. | C32: =Orçamento!$P716 ->  | G32: =IFERROR(Orçamento!S716,"-") -> 0 | H32: =IFERROR(Orçamento!V716,"") -> 0 | I32: =Orçamento!X716 -> 
B33: 17. | C33: =Orçamento!$P717 ->  | G33: =IFERROR(Orçamento!S717,"-") -> 0 | H33: =IFERROR(Orçamento!V717,"") -> 0 | I33: =Orçamento!X717 -> 
B34: 18. | C34: =Orçamento!$P718 ->  | G34: =IFERROR(Orçamento!S718,"-") -> 0 | H34: =IFERROR(Orçamento!V718,"") -> 0 | I34: =Orçamento!X718 -> 
B35: 19. | C35: =Orçamento!$P719 ->  | G35: =IFERROR(Orçamento!S719,"-") -> 0 | H35: =IFERROR(Orçamento!V719,"") -> 0 | I35: =Orçamento!X719 -> 
B36: 20. | C36: =Orçamento!$P720 ->  | G36: =IFERROR(Orçamento!S720,"-") -> 0 | H36: =IFERROR(Orçamento!V720,"") -> 0 | I36: =Orçamento!X720 -> 
A37: F | B37: TOTAL GERAL DO ORÇAMENTO (R$) | G37: =SUM(G17:G36) -> 0 | H37: 0 | I37: =SUM(I17:I36) -> 
A38: F
A39: F

Sheet Somatório
B3: UNIDADE ESCOLAR | E3: CÓDIGO INEP
B4: =Orçamento!$O$4 -> CENTRO DE ENSINO EM PERÍODO INTEGRAL JOAQUIM EDSON DE CAMARGO | E4: =Orçamento!V4 -> 52035182
B6: OBRA | E6: CIDADE
B7: =Orçamento!$O$7 -> REFORMA E AMPLIAÇÃO | E7: =Orçamento!$V$7 -> GOIÂNIA
B9: ENDEREÇO | E9: CRE
B10: =Orçamento!$R$10 -> RUA SANTIAGO QD. 232 S/N PCA JARDIM DA INFÂNC, JD NOVO MUNDO, CEP:74705-060 | E10: =Orçamento!$O$10 -> GOIÂNIA
B12: REFERÊNCIA | D12: DATA | E12: ÁREA TOTAL CONSTRUÍDA (M²)
B13: =CONCATENATE("AGETOP E SINAPI - ",Orçamento!$W$10) -> AGETOP E SINAPI - NÃO DESONERADA | D13: =Orçamento!$S$7 -> 2020-04-08 | E13: =Orçamento!$S$13 -> 2081.99
A14: FILTRO
B15: SOMATÓRIO DE SERVIÇOS
A16: ↓ | B16: ITEM | C16: DESCRIÇÃO DOS SERVIÇOS | D16: PREÇO SEM BDI (R$) | E16: PREÇO COM BDI (R$) | F16: PARTIC. ( % )
A17: =IF(D17>0,"F","") ->  | B17: a. | C17: =Orçamento!P667 -> SERVIÇOS PRELIMINARES | D17: =Orçamento!S667 -> 0 | E17: =Orçamento!V667 -> 0 | F17: =Orçamento!X667 -> 0
A18: =IF(D18>0,"F","") ->  | B18: b. | C18: =Orçamento!P668 -> TRANSPORTES | D18: =Orçamento!S668 -> 0 | E18: =Orçamento!V668 -> 0 | F18: =Orçamento!X668 -> 0
B19: c. | C19: =Orçamento!P669 -> SERVIÇO EM TERRA | D19: =Orçamento!S669 -> 0 | E19: =Orçamento!V669 -> 0 | F19: =Orçamento!X669 -> 0
B20: d. | C20: =Orçamento!P670 -> FUNDAÇÕES E SONDAGENS | D20: =Orçamento!S670 -> 0 | E20: =Orçamento!V670 -> 0 | F20: =Orçamento!X670 -> 0
B21: e. | C21: =Orçamento!P671 -> ESTRUTURA | D21: =Orçamento!S671 -> 0 | E21: =Orçamento!V671 -> 0 | F21: =Orçamento!X671 -> 0
B22: f. | C22: =Orçamento!P672 -> INSTALAÇÕES ELÉTRICAS | D22: =Orçamento!S672 -> 0 | E22: =Orçamento!V672 -> 0 | F22: =Orçamento!X672 -> 0
B23: g. | C23: =Orçamento!P673 -> INSTALAÇÕES HIDROSSANITÁRIAS | D23: =Orçamento!S673 -> 0 | E23: =Orçamento!V673 -> 0 | F23: =Orçamento!X673 -> 0
B24: h | C24: =Orçamento!P674 -> INSTALAÇÕES ESPECIAIS | D24: =Orçamento!S674 -> 0 | E24: =Orçamento!V674 -> 0 | F24: =Orçamento!X674 -> 0
B25: i. | C25: =Orçamento!P675 -> ALVENARIAS E DIVISÓRIAS | D25: =Orçamento!S675 -> 0 | E25: =Orçamento!V675 -> 0 | F25: =Orçamento!X675 -> 0
B26: j. | C26: =Orçamento!P676 -> ALVENARIA AUTO-PORTANTE | D26: =Orçamento!S676 -> 0 | E26: =Orçamento!V676 -> 0 | F26: =Orçamento!X676 -> 0
B27: k. | C27: =Orçamento!P677 -> IMPERMEABILIZAÇÃO | D27: =Orçamento!S677 -> 0 | E27: =Orçamento!V677 -> 0 | F27: =Orçamento!X677 -> 0
B28: l. | C28: =Orçamento!P678 -> ISOLAMENTO TÉRMICO E ACÚSTICO | D28: =Orçamento!S678 -> 0 | E28: =Orçamento!V678 -> 0 | F28: =Orçamento!X678 -> 0
B29: m. | C29: =Orçamento!P679 -> ESTRUTURA DE MADEIRA | D29: =Orçamento!S679 -> 0 | E29: =Orçamento!V679 -> 0 | F29: =Orçamento!X679 -> 0
B30: n. | C30: =Orçamento!P680 -> ESTRUTURAS METÁLICAS | D30: =Orçamento!S680 -> 0 | E30: =Orçamento!V680 -> 0 | F30: =Orçamento!X680 -> 0
B31: o. | C31: =Orçamento!P681 -> COBERTURAS | D31: =Orçamento!S681 -> 0 | E31: =Orçamento!V681 -> 0 | F31: =Orçamento!X681 -> 0
B32: p. | C32: =Orçamento!P682 -> ESQUADRIAS DE MADEIRA | D32: =Orçamento!S682 -> 0 | E32: =Orçamento!V682 -> 0 | F32: =Orçamento!X682 -> 0
B33: q. | C33: =Orçamento!P683 -> ESQUADRIAS METÁLICAS | D33: =Orçamento!S683 -> 0 | E33: =Orçamento!V683 -> 0 | F33: =Orçamento!X683 -> 0
B34: r. | C34: =Orçamento!P684 -> VIDROS | D34: =Orçamento!S684 -> 0 | E34: =Orçamento!V684 -> 0 | F34: =Orçamento!X684 -> 0
B35: s. | C35: =Orçamento!P685 -> REVESTIMENTO DE PAREDE | D35: =Orçamento!S685 -> 0 | E35: =Orçamento!V685 -> 0 | F35: =Orçamento!X685 -> 0
B36: t. | C36: =Orçamento!P686 -> FORROS | D36: =Orçamento!S686 -> 0 | E36: =Orçamento!V686 -> 0 | F36: =Orçamento!X686 -> 0
B37: u. | C37: =Orçamento!P687 -> REVESTIMENTO DE PISO | D37: =Orçamento!S687 -> 0 | E37: =Orçamento!V687 -> 0 | F37: =Orçamento!X687 -> 0
B38: v. | C38: =Orçamento!P688 -> FERRAGENS | D38: =Orçamento!S688 -> 0 | E38: =Orçamento!V688 -> 0 | F38: =Orçamento!X688 -> 0
B39: w. | C39: =Orçamento!P689 -> MARCENARIA | D39: =Orçamento!S689 -> 0 | E39: =Orçamento!V689 -> 0 | F39: =Orçamento!X689 -> 0
B40: x. | C40: =Orçamento!P690 -> ADMINISTRAÇÃO | D40: =Orçamento!S690 -> 0 | E40: =Orçamento!V690 -> 0 | F40: =Orçamento!X690 -> 0
B41: y. | C41: =Orçamento!P691 -> PINTURA | D41: =Orçamento!S691 -> 0 | E41: =Orçamento!V691 -> 0 | F41: =Orçamento!X691 -> 0
B42: z. | C42: =Orçamento!P692 -> DIVERSOS | D42: =Orçamento!S692 -> 0 | E42: =Orçamento!V692 -> 0 | F42: =Orçamento!X692 -> 0
A43: F | B43: TOTAL GERAL DO ORÇAMENTO | D43: =SUM(D17:D42) -> 0 | E43: =SUM(E17:E42) -> 0 | F43: =SUM(F17:F42) -> 0
B45: (*) Para itens da AGETOP, os vidros não estão inclusos nas esquadrias e já foram considerados os custos de contramarco para as esquadrias de alumínio;

Sheet Cronog_60_Dias
B3: UNIDADE ESCOLAR | I3: PRAZO
B4: =Orçamento!$O$4 -> CENTRO DE ENSINO EM PERÍODO INTEGRAL JOAQUIM EDSON DE CAMARGO | I4: 60 DIAS CORRIDOS
B6: OBRA | I6: DATA
B7: =Orçamento!$O$7 -> REFORMA E AMPLIAÇÃO | I7: =Orçamento!$S$7 -> 2020-04-08
B9: LOCAL | I9: ÁREA TOTAL CONSTRUÍDA (M²)
A10: FILTRO | B10: =Orçamento!$V$7 -> GOIÂNIA | I10: =Orçamento!$S$13 -> 2081.99
B12: CRONOGRAMA - FÍSICO FINANCEIRO
A13: ↓ | B13: CUSTO TOTAL: | C13: =D93 -> 0 | D13: VALOR | E13: Dias: | F13: 30 | J13: 60 | N13: TOTAL
B14: DESCRIÇÃO DOS SERVIÇOS | E14: % | F14: 1ª PARCELA | J14: 2ª PARCELA
A15: =IF(D15>0,"F","") ->  | B15: SERVIÇOS PRELIMINARES | D15: =Orçamento!V667 -> 0 | E15: =Orçamento!X667 -> 0 | F15: =ROUND(F17*$D$15,2) -> 0 | J15: =ROUND(J17*$D$15,2) -> 0 | N15: =SUM(F15:M15) -> 0
A16: =IF(A15="F",A15,"") -> 
A17: =IF(A16="F",A16,"") ->  | F17: 1 | J17: =1-F17 -> 0 | N17: =IFERROR(E15/100,"") -> 0
A18: =IF(D18>0,"F","") ->  | B18: TRANSPORTES | D18: =Orçamento!V668 -> 0 | E18: =Orçamento!X668 -> 0 | F18: =ROUND(F20*$D$18,2) -> 0 | J18: =ROUND(J20*$D$18,2) -> 0 | N18: =SUM(F18:M18) -> 0
A19: =IF(A18="F",A18,"") -> 
A20: =IF(A19="F",A19,"") ->  | F20: 0.48 | J20: =1-F20 -> 0.52 | N20: =IFERROR(E18/100,"") -> 0
A21: =IF(D21>0,"F","") ->  | B21: SERVIÇO EM TERRA | D21: =Orçamento!V669 -> 0 | E21: =Orçamento!X669 -> 0 | F21: =ROUND(F23*$D$21,2) -> 0 | J21: =ROUND(J23*$D$21,2) -> 0 | N21: =SUM(F21:M21) -> 0
A22: =IF(A21="F",A21,"") -> 
A23: =IF(A22="F",A22,"") ->  | F23: 1 | J23: =1-F23 -> 0 | N23: =IFERROR(E21/100,"") -> 0
A24: =IF(D24>0,"F","") ->  | B24: FUNDAÇÕES E SONDAGENS | D24: =Orçamento!V670 -> 0 | E24: =Orçamento!X670 -> 0 | F24: =ROUND(F26*$D$24,2) -> 0 | J24: =ROUND(J26*$D$24,2) -> 0 | N24: =SUM(F24:M24) -> 0
A25: =IF(A24="F",A24,"") -> 
A26: =IF(A25="F",A25,"") ->  | F26: 1 | J26: =1-F26 -> 0 | N26: =IFERROR(E24/100,"") -> 0
A27: =IF(D27>0,"F","") ->  | B27: ESTRUTURA | D27: =Orçamento!V671 -> 0 | E27: =Orçamento!X671 -> 0 | F27: =ROUND(F29*$D$27,2) -> 0 | J27: =ROUND(J29*$D$27,2) -> 0 | N27: =SUM(F27:M27) -> 0
A28: =IF(A27="F",A27,"") -> 
A29: =IF(A28="F",A28,"") ->  | F29: 0.49 | J29: =1-F29 -> 0.51 | N29: =IFERROR(E27/100,"") -> 0
A30: =IF(D30>0,"F","") ->  | B30: INST.ELET/TELEFÔNICA/CABEAMENTO ESTRUTURADO | D30: =Orçamento!V672 -> 0 | E30: =Orçamento!X672 -> 0 | F30: =ROUND(F32*$D$30,2) -> 0 | J30: =ROUND(J32*$D$30,2) -> 0 | N30: =SUM(F30:M30) -> 0
A31: =IF(A30="F",A30,"") -> 
A32: =IF(A31="F",A31,"") ->  | F32: 0.4 | J32: =1-F32 -> 0.6 | N32: =IFERROR(E30/100,"") -> 0
A33: =IF(D33>0,"F","") ->  | B33: INSTALAÇÕES HIDROSSANITÁRIAS | D33: =Orçamento!V673 -> 0 | E33: =Orçamento!X673 -> 0 | F33: =ROUND(F35*$D$33,2) -> 0 | J33: =ROUND(J35*$D$33,2) -> 0 | N33: =SUM(F33:M33) -> 0
A34: =IF(A33="F",A33,"") -> 
A35: =IF(A34="F",A34,"") ->  | F35: 0.48 | J35: =1-F35 -> 0.52 | N35: =IFERROR(E33/100,"") -> 0
A36: =IF(D36>0,"F","") ->  | B36: INSTALAÇÕES ESPECIAIS | D36: =Orçamento!V674 -> 0 | E36: =Orçamento!X674 -> 0 | F36: =ROUND(F38*$D$36,2) -> 0 | J36: =ROUND(J38*$D$36,2) -> 0 | N36: =SUM(F36:M36) -> 0
A37: =IF(A36="F",A36,"") -> 
A38: =IF(A37="F",A37,"") ->  | F38: 1 | J38: =1-F38 -> 0 | N38: =IFERROR(E36/100,"") -> 0
A39: =IF(D39>0,"F","") ->  | B39: ALVENARIA E DIVISÓRIAS | D39: =Orçamento!V675 -> 0 | E39: =Orçamento!X675 -> 0 | F39: =ROUND(F41*$D$39,2) -> 0 | J39: =ROUND(J41*$D$39,2) -> 0 | N39: =SUM(F39:M39) -> 0
A40: =IF(A39="F",A39,"") -> 
A41: =IF(A40="F",A40,"") ->  | F41: 1 | J41: =1-F41 -> 0 | N41: =IFERROR(E39/100,"") -> 0
A42: =IF(D42>0,"F","") ->  | B42: ALVENARIA AUTO-PORTANTE | D42: =Orçamento!V676 -> 0 | E42: =Orçamento!X676 -> 0 | F42: =ROUND(F44*$D$42,2) -> 0 | J42: =ROUND(J44*$D$42,2) -> 0 | N42: =SUM(F42:M42) -> 0
A43: =IF(A42="F",A42,"") -> 
A44: =IF(A43="F",A43,"") ->  | F44: 1 | J44: =1-F44 -> 0 | N44: =IFERROR(E42/100,"") -> 0
A45: =IF(D45>0,"F","") ->  | B45: IMPERMEABILIZAÇÃO | D45: =Orçamento!V677 -> 0 | E45: =Orçamento!X677 -> 0 | F45: =ROUND(F47*$D$45,2) -> 0 | J45: =ROUND(J47*$D$45,2) -> 0 | N45: =SUM(F45:M45) -> 0
A46: =IF(A45="F",A45,"") -> 
A47: =IF(A46="F",A46,"") ->  | F47: 1 | J47: =1-F47 -> 0 | N47: =IFERROR(E45/100,"") -> 0
A48: =IF(D48>0,"F","") ->  | B48: ISOLAMENTO TÉRMICO E ACÚSTICO | D48: =Orçamento!V678 -> 0 | E48: =Orçamento!X678 -> 0 | F48: =ROUND(F50*$D$48,2) -> 0 | J48: =ROUND(J50*$D$48,2) -> 0 | N48: =SUM(F48:M48) -> 0
A49: =IF(A48="F",A48,"") -> 
A50: =IF(A49="F",A49,"") ->  | F50: 0.5 | J50: =1-F50 -> 0.5 | N50: =IFERROR(E48/100,"") -> 0
A51: =IF(D51>0,"F","") ->  | B51: ESTRUTURA DE MADEIRA | D51: =Orçamento!V679 -> 0 | E51: =Orçamento!X679 -> 0 | F51: =ROUND(F53*$D$51,2) -> 0 | J51: =ROUND(J53*$D$51,2) -> 0 | N51: =SUM(F51:M51) -> 0
A52: =IF(A51="F",A51,"") -> 
A53: =IF(A52="F",A52,"") ->  | F53: 0.4 | J53: =1-F53 -> 0.6 | N53: =IFERROR(E51/100,"") -> 0
A54: =IF(D54>0,"F","") ->  | B54: ESTRUTURA METÁLICA | D54: =Orçamento!V680 -> 0 | E54: =Orçamento!X680 -> 0 | F54: =ROUND(F56*$D$54,2) -> 0 | J54: =ROUND(J56*$D$54,2) -> 0 | N54: =SUM(F54:M54) -> 0
A55: =IF(A54="F",A54,"") -> 
A56: =IF(A55="F",A55,"") ->  | F56: 0.35 | J56: =1-F56 -> 0.65 | N56: =IFERROR(E54/100,"") -> 0
A57: =IF(D57>0,"F","") ->  | B57: COBERTURAS | D57: =Orçamento!V681 -> 0 | E57: =Orçamento!X681 -> 0 | F57: =ROUND(F59*$D$57,2) -> 0 | J57: =ROUND(J59*$D$57,2) -> 0 | N57: =SUM(F57:M57) -> 0
A58: =IF(A57="F",A57,"") -> 
A59: =IF(A58="F",A58,"") ->  | F59: 0 | J59: =1-F59 -> 1 | N59: =IFERROR(E57/100,"") -> 0
A60: =IF(D60>0,"F","") ->  | B60: ESQUADRIAS DE MADEIRA | D60: =Orçamento!V682 -> 0 | E60: =Orçamento!X682 -> 0 | F60: =ROUND(F62*$D$60,2) -> 0 | J60: =ROUND(J62*$D$60,2) -> 0 | N60: =SUM(F60:M60) -> 0
A61: =IF(A60="F",A60,"") -> 
A62: =IF(A61="F",A61,"") ->  | F62: 0.54 | J62: =1-F62 -> 0.46 | N62: =IFERROR(E60/100,"") -> 0
A63: =IF(D63>0,"F","") ->  | B63: ESQUADRIAS METÁLICAS | D63: =Orçamento!V683 -> 0 | E63: =Orçamento!X683 -> 0 | F63: =ROUND(F65*$D$63,2) -> 0 | J63: =ROUND(J65*$D$63,2) -> 0 | N63: =SUM(F63:M63) -> 0
A64: =IF(A63="F",A63,"") -> 
A65: =IF(A64="F",A64,"") ->  | F65: 0.49 | J65: =1-F65 -> 0.51 | N65: =IFERROR(E63/100,"") -> 0
A66: =IF(D66>0,"F","") ->  | B66: VIDROS | D66: =Orçamento!V684 -> 0 | E66: =Orçamento!X684 -> 0 | F66: =ROUND(F68*$D$66,2) -> 0 | J66: =ROUND(J68*$D$66,2) -> 0 | N66: =SUM(F66:M66) -> 0
A67: =IF(A66="F",A66,"") -> 
A68: =IF(A67="F",A67,"") ->  | F68: 0 | J68: =1-F68 -> 1 | N68: =IFERROR(E66/100,"") -> 0
A69: =IF(D69>0,"F","") ->  | B69: REVESTIMENTO DE PAREDE | D69: =Orçamento!V685 -> 0 | E69: =Orçamento!X685 -> 0 | F69: =ROUND(F71*$D$69,2) -> 0 | J69: =ROUND(J71*$D$69,2) -> 0 | N69: =SUM(F69:M69) -> 0
A70: =IF(A69="F",A69,"") -> 
A71: =IF(A70="F",A70,"") ->  | F71: 0.32 | J71: =1-F71 -> 0.68 | N71: =IFERROR(E69/100,"") -> 0
A72: =IF(D72>0,"F","") ->  | B72: FORROS | D72: =Orçamento!V686 -> 0 | E72: =Orçamento!X686 -> 0 | F72: =ROUND(F74*$D$72,2) -> 0 | J72: =ROUND(J74*$D$72,2) -> 0 | N72: =SUM(F72:M72) -> 0
A73: =IF(A72="F",A72,"") -> 
A74: =IF(A73="F",A73,"") ->  | F74: 0.24 | J74: =1-F74 -> 0.76 | N74: =IFERROR(E72/100,"") -> 0
A75: =IF(D75>0,"F","") ->  | B75: REVESTIMENTO DE PISO | D75: =Orçamento!V687 -> 0 | E75: =Orçamento!X687 -> 0 | F75: =ROUND(F77*$D$75,2) -> 0 | J75: =ROUND(J77*$D$75,2) -> 0 | N75: =SUM(F75:M75) -> 0
A76: =IF(A75="F",A75,"") -> 
A77: =IF(A76="F",A76,"") ->  | F77: 0.49 | J77: =1-F77 -> 0.51 | N77: =IFERROR(E75/100,"") -> 0
A78: =IF(D78>0,"F","") ->  | B78: FERRAGENS | D78: =Orçamento!V688 -> 0 | E78: =Orçamento!X688 -> 0 | F78: =ROUND(F80*$D$78,2) -> 0 | J78: =ROUND(J80*$D$78,2) -> 0 | N78: =SUM(F78:M78) -> 0
A79: =IF(A78="F",A78,"") -> 
A80: =IF(A79="F",A79,"") ->  | F80: 0 | J80: =1-F80 -> 1 | N80: =IFERROR(E78/100,"") -> 0
A81: =IF(D81>0,"F","") ->  | B81: MARCENARIA | D81: =Orçamento!V689 -> 0 | E81: =Orçamento!X689 -> 0 | F81: =ROUND(F83*$D$81,2) -> 0 | J81: =ROUND(J83*$D$81,2) -> 0 | N81: =SUM(F81:M81) -> 0
A82: =IF(A81="F",A81,"") -> 
A83: =IF(A82="F",A82,"") ->  | F83: 0.4 | J83: =1-F83 -> 0.6 | N83: =IFERROR(E81/100,"") -> 0
A84: =IF(D84>0,"F","") ->  | B84: ADMINISTRAÇÃO - MENSALISTAS | D84: =Orçamento!V690 -> 0 | E84: =Orçamento!X690 -> 0 | F84: =ROUND(F86*$D$84,2) -> 0 | J84: =ROUND(J86*$D$84,2) -> 0 | N84: =SUM(F84:M84) -> 0
A85: =IF(A84="F",A84,"") -> 
A86: =IF(A85="F",A85,"") ->  | F86: 0.49 | J86: =1-F86 -> 0.51 | N86: =IFERROR(E84/100,"") -> 0
A87: =IF(D87>0,"F","") ->  | B87: PINTURA | D87: =Orçamento!V691 -> 0 | E87: =Orçamento!X691 -> 0 | F87: =ROUND(F89*$D$87,2) -> 0 | J87: =ROUND(J89*$D$87,2) -> 0 | N87: =SUM(F87:M87) -> 0
A88: =IF(A87="F",A87,"") -> 
A89: =IF(A88="F",A88,"") ->  | F89: 0 | J89: =1-F89 -> 1 | N89: =IFERROR(E87/100,"") -> 0
A90: =IF(D90>0,"F","") ->  | B90: DIVERSOS | D90: =Orçamento!V692 -> 0 | E90: =Orçamento!X692 -> 0 | F90: =ROUND(F92*$D$90,2) -> 0 | J90: =ROUND(J92*$D$90,2) -> 0 | N90: =SUM(F90:M90) -> 0
A91: =IF(A90="F",A90,"") -> 
A92: =IF(A91="F",A91,"") ->  | F92: 0.46 | J92: =1-F92 -> 0.54 | N92: =IFERROR(E90/100,"") -> 0
A93: F | B93: CUSTO DO ORÇAMENTO | D93: =SUM(D15:D92) -> 0 | E93: =SUM(E15:E92) -> 0 | F93: =F15+F18+F21+F24+F27+F30+F33+F36+F39+F42+F45+F48+F51+F54+F57+F60+F63+F66+F69+F72+F75+F78+F81+F84+F87+F90 -> 0 | J93: =J15+J18+J21+J24+J27+J30+J33+J36+J39+J42+J45+J48+J51+J54+J57+J60+J63+J66+J69+J72+J75+J78+J81+J84+J87+J90 -> 0 | N93: =N15+N18+N21+N24+N27+N30+N33+N36+N39+N42+N45+N48+N51+N54+N57+N60+N63+N66+N69+N72+N75+N78+N81+N84+N87+N90 -> 0
A94: F | B94: PERCENTUAIS: | F94: =IFERROR(F93/D93,"") ->  | J94: =IFERROR(J93/D93,"") ->  | N94: =SUM(F94:M94) -> 0
A95: F | B95: TOTAIS ACUMULADOS: | F95: =F93 -> 0 | J95: =F95+J93 -> 0
A96: F | B96: PERCENTUAIS ACUMULADOS: | F96: =F94 ->  | J96: =IFERROR(F96+J94,"") -> 
A97: F
A98: F | B98: OBSERVAÇÕES:
A99: F | B99: Os pagamentos somente poderão ser efetuados mediante medição e atesto pelos técnicos da Secretaria da Educação.

Sheet Composição BDI
A3: UNIDADE ESCOLAR
A4: =Orçamento!$O$4 -> CENTRO DE ENSINO EM PERÍODO INTEGRAL JOAQUIM EDSON DE CAMARGO
A6: OBRA
A7: =Orçamento!$O$7 -> REFORMA E AMPLIAÇÃO
A9: ENDEREÇO
A10: =Orçamento!$R$10 -> RUA SANTIAGO QD. 232 S/N PCA JARDIM DA INFÂNC, JD NOVO MUNDO, CEP:74705-060
A12: CIDADE
A13: =Orçamento!$V$7 -> GOIÂNIA
A15: CRE
A16: =Orçamento!$O$10 -> GOIÂNIA
A18: DETALHAMENTO DA COMPOSIÇÃO DE BDI
A19: COMPOSIÇÃO BDI PARA OBRAS CIVIS | F19: BDI CONSTRUÇÃO E REFORMA
A20: DESCRIÇÃO | B20: COEF. | C20: TAXA % (a.m) | D20: % no preço de venda | F20: Situação | G20: 1º Quartil | H20: Médio | I20: 3º Quartil
A21: 1) COFINS | B21: 1 | C21: 0.03 | D21: =C21 -> 0.03 | F21: =IF(OR(C21<G21,C21>I21),"FORA DO INTERVALO","OK") -> OK | G21: 0.03 | H21: 0.03 | I21: 0.03
A22: 2) PIS | B22: 1 | C22: 0.0065 | D22: =C22 -> 0.0065 | F22: =IF(OR(C22<G22,C22>I22),"FORA DO INTERVALO","OK") -> OK | G22: 0.0065 | H22: 0.0065 | I22: 0.0065
A23: 3) ISSQN | B23: 1 | C23: 0.03 | D23: =C23*B23 -> 0.03 | F23: OK | G23: 0.02 | H23: 0.035 | I23: 0.05
A24: 4) CPRB | B24: 1 | C24: 0 | D24: =C24 -> 0 | F24: FORA DO INTERVALO | G24: 0.045 | H24: 0.045 | I24: 0.045
A25: 5) Administração Central | B25: 1 | C25: 0.04 | D25: 0.04 | F25: OK | G25: 0.03 | H25: 0.04 | I25: 0.055
A26: 6) Despesas Financeiras | B26: 1 | C26: 0.0056 | D26: 0.0056 | F26: FORA DO INTERVALO | G26: 0.0059 | H26: 0.0123 | I26: 0.0139
A27: 7) Seguros + Garantias | B27: 1 | C27: 0.0012 | D27: 0.0012 | F27: FORA DO INTERVALO | G27: 0.008 | H27: 0.008 | I27: 0.01
A28: 8) Risco | B28: 1 | C28: 0.0097 | D28: 0.0097 | F28: OK | G28: 0.0097 | H28: 0.0127 | I28: 0.0127
A29: 9) Lucro | B29: 1 | C29: 0.072 | D29: 0.072 | F29: OK | G29: 0.0616 | H29: 0.074 | I29: 0.0896
A30: BDI - FINAL | D30: =(((1+D25+D27+D28)*(1+D26)*(1+D29))/(1-(D21+D22+D23+D24))-1) -> 0.213576393 | F30: FORA DO INTERVALO | G30: 0.2034 | H30: 0.2212 | I30: 0.25
A32: Notas:
A33: (1) e (2) Alíquota definida por lei.
A34: (3) Alíquota e base de cálculo definidas pela legislação municipal.
A35: (4) Alíquota definida pelas leis 12.546/11, 12844/13 e 13.161/15 (CPRB – contribuição previdenciária sobre a receita bruta).
A36: (5) Valores definidos a partir dos limites no Acórdão nº 2.622/2013 - TCU – Plenário. Valores entre o 1º e 3º quartis.
A37: (6) Valor calculado pela expressão matemática do acórdão 2.369/2011 – TCU – Plenário e disponibilizado pela AGETOP em dezembro de 2018. (Foi utilizado para o cálculo a média da Taxa SELIC no período de 11/2017 a 10/2018)
A39: (7) Valores definidos pela AGETOP a partir dos limites no Acórdão nº 2.622/2013 - TCU – Plenário. Valores médios. Observação da AGETOP: (Seguros contra erros de execução, incêndio e explosão, danos da natureza (vendaval, destelhamento, alagamento, inundação, desmoronamento, geadas etc.), emprego de material defeituoso ou inadequado, roubo e/ou furto qualificado, quebra de equipamentos, desmoronamento de estrutura, nas modalidades de Obras Civis em Construção (OCC); Instalação e Montagem (IM); e Obras Civis em Construção e Instalação e Montagem (OCC/IM). Bem como coberturas adicionais para ampliação dessas coberturas básicas, como: cobertura de responsabilidade civil geral, cobertura de responsabilidade civil cruzada, cobertura de despesas extraordinárias, cobertura de tumultos, cobertura de desentulho do local, cobertura de riscos do fabricante, dentre outras, incluindo o seguro de vida em grupo regido pela convenção coletiva dos trabalhadores na indústria da construção civil). A partir de 24/02/2015 por intermédio da Portaria 449/2015 a Presidência da AGETOP, na pessoa do Senhor Jayme Eduardo Rincon, determinou a exclusão dos valores referentes aos Seguros de Risco de Engenharia e Responsabilidade Civil do Profissional na composição do cálculo do B.D.I..
A40: (8) Valores definidos a partir dos limites no Acórdão nº 2.622/2013 - TCU – Plenário. Valores entre 1º e 3° quartis.
A41: (9) Valores definidos a partir dos limites definidos no Acórdão nº 2.622/2013 - TCU – Plenário. Valores adotados e praticados no mercado ( “ ex ante ” ) ou aqueles entre os 1º e 3º quartis.
A43: (*) A fórmula para estipulação da taxa de BDI estimado adotado é a mesma que foi aplicada para a obtenção das tabelas contidas no Acórdão n. 2.622/2013 – TCUPlenário
A45: Obs.: Para obras com valores superiores a R$ 20.000.000,00 sugere-se recalcular o BDI, dimensionando as taxas de administração central e lucro para patamares inferiores ao estipulado acima.

Sheet Relatório CENTRAL
B3: UNIDADE ESCOLAR | D3: CIDADE
B4: =Orçamento!$O$4 -> CENTRO DE ENSINO EM PERÍODO INTEGRAL JOAQUIM EDSON DE CAMARGO | D4: =Orçamento!$V$7 -> GOIÂNIA
B6: OBRA | D6: CRE
B7: =Orçamento!$O$7 -> REFORMA E AMPLIAÇÃO | D7: =Orçamento!$O$10 -> GOIÂNIA
B9: ENDEREÇO | D9: DATA
A10: FILTRO | B10: =Orçamento!$R$10 -> RUA SANTIAGO QD. 232 S/N PCA JARDIM DA INFÂNC, JD NOVO MUNDO, CEP:74705-060 | D10: =Orçamento!$S$7 -> 2020-04-08
B12: RELATÓRIO CENTRAL
A13: ↓ | B13: CÓDIGO | C13: ETAPA | D13: PREÇO (R$) C/ BDI | E13: PARTIC ( % )
A14: =IF(D14>0,"F","") ->  | B14: =Orçamento!O667 -> a. | C14: =Orçamento!P667 -> SERVIÇOS PRELIMINARES | D14: =Orçamento!V667 -> 0 | E14: =Orçamento!X667 -> 0
A15: =IF(D15>0,"F","") ->  | B15: =Orçamento!O668 -> b. | C15: =Orçamento!P668 -> TRANSPORTES | D15: =Orçamento!V668 -> 0 | E15: =Orçamento!X668 -> 0
B16: =Orçamento!O669 -> c. | C16: =Orçamento!P669 -> SERVIÇO EM TERRA | D16: =Orçamento!V669 -> 0 | E16: =Orçamento!X669 -> 0
B17: =Orçamento!O670 -> d. | C17: =Orçamento!P670 -> FUNDAÇÕES E SONDAGENS | D17: =Orçamento!V670 -> 0 | E17: =Orçamento!X670 -> 0
B18: =Orçamento!O671 -> e. | C18: =Orçamento!P671 -> ESTRUTURA | D18: =Orçamento!V671 -> 0 | E18: =Orçamento!X671 -> 0
B19: =Orçamento!O672 -> f. | C19: =Orçamento!P672 -> INSTALAÇÕES ELÉTRICAS | D19: =Orçamento!V672 -> 0 | E19: =Orçamento!X672 -> 0
B20: =Orçamento!O673 -> g. | C20: =Orçamento!P673 -> INSTALAÇÕES HIDROSSANITÁRIAS | D20: =Orçamento!V673 -> 0 | E20: =Orçamento!X673 -> 0
B21: =Orçamento!O674 -> h | C21: =Orçamento!P674 -> INSTALAÇÕES ESPECIAIS | D21: =Orçamento!V674 -> 0 | E21: =Orçamento!X674 -> 0
B22: =Orçamento!O675 -> i. | C22: =Orçamento!P675 -> ALVENARIAS E DIVISÓRIAS | D22: =Orçamento!V675 -> 0 | E22: =Orçamento!X675 -> 0
B23: =Orçamento!O676 -> j. | C23: =Orçamento!P676 -> ALVENARIA AUTO-PORTANTE | D23: =Orçamento!V676 -> 0 | E23: =Orçamento!X676 -> 0
B24: =Orçamento!O677 -> k. | C24: =Orçamento!P677 -> IMPERMEABILIZAÇÃO | D24: =Orçamento!V677 -> 0 | E24: =Orçamento!X677 -> 0
B25: =Orçamento!O678 -> l. | C25: =Orçamento!P678 -> ISOLAMENTO TÉRMICO E ACÚSTICO | D25: =Orçamento!V678 -> 0 | E25: =Orçamento!X678 -> 0
B26: =Orçamento!O679 -> m. | C26: =Orçamento!P679 -> ESTRUTURA DE MADEIRA | D26: =Orçamento!V679 -> 0 | E26: =Orçamento!X679 -> 0
B27: =Orçamento!O680 -> n. | C27: =Orçamento!P680 -> ESTRUTURAS METÁLICAS | D27: =Orçamento!V680 -> 0 | E27: =Orçamento!X680 -> 0
B28: =Orçamento!O681 -> o. | C28: =Orçamento!P681 -> COBERTURAS | D28: =Orçamento!V681 -> 0 | E28: =Orçamento!X681 -> 0
B29: =Orçamento!O682 -> p. | C29: =Orçamento!P682 -> ESQUADRIAS DE MADEIRA | D29: =Orçamento!V682 -> 0 | E29: =Orçamento!X682 -> 0
B30: =Orçamento!O683 -> q. | C30: =Orçamento!P683 -> ESQUADRIAS METÁLICAS | D30: =Orçamento!V683 -> 0 | E30: =Orçamento!X683 -> 0
B31: =Orçamento!O684 -> r. | C31: =Orçamento!P684 -> VIDROS | D31: =Orçamento!V684 -> 0 | E31: =Orçamento!X684 -> 0
B32: =Orçamento!O685 -> s. | C32: =Orçamento!P685 -> REVESTIMENTO DE PAREDE | D32: =Orçamento!V685 -> 0 | E32: =Orçamento!X685 -> 0
B33: =Orçamento!O686 -> t. | C33: =Orçamento!P686 -> FORROS | D33: =Orçamento!V686 -> 0 | E33: =Orçamento!X686 -> 0
B34: =Orçamento!O687 -> u. | C34: =Orçamento!P687 -> REVESTIMENTO DE PISO | D34: =Orçamento!V687 -> 0 | E34: =Orçamento!X687 -> 0
B35: =Orçamento!O688 -> v. | C35: =Orçamento!P688 -> FERRAGENS | D35: =Orçamento!V688 -> 0 | E35: =Orçamento!X688 -> 0
B36: =Orçamento!O689 -> w. | C36: =Orçamento!P689 -> MARCENARIA | D36: =Orçamento!V689 -> 0 | E36: =Orçamento!X689 -> 0
B37: =Orçamento!O690 -> x. | C37: =Orçamento!P690 -> ADMINISTRAÇÃO | D37: =Orçamento!V690 -> 0 | E37: =Orçamento!X690 -> 0
B38: =Orçamento!O691 -> y. | C38: =Orçamento!P691 -> PINTURA | D38: =Orçamento!V691 -> 0 | E38: =Orçamento!X691 -> 0
B39: =Orçamento!O692 -> z. | C39: =Orçamento!P692 -> DIVERSOS | D39: =Orçamento!V692 -> 0 | E39: =Orçamento!X692 -> 0
A40: F | B40: TOTAL GERAL DO ORÇAMENTO (R$) C/BDI | D40: =SUM(D14:D39) -> 0 | E40: =SUM(E14:E39) -> 0

Sheet Parc Maior Relev
B3: UNIDADE ESCOLAR | E3: CÓDIGO INEP
B4: =Orçamento!$O$4 -> CENTRO DE ENSINO EM PERÍODO INTEGRAL JOAQUIM EDSON DE CAMARGO | E4: =Orçamento!$V$4 -> 52035182
B6: OBRA | E6: CIDADE
B7: =Orçamento!$O$7 -> REFORMA E AMPLIAÇÃO | E7: =Orçamento!$V$7 -> GOIÂNIA
B9: CRE | E9: ÁREA TOTAL CONSTRUÍDA (M²)
B10: =Orçamento!$O$10 -> GOIÂNIA | E10: =Orçamento!$S$13 -> 2081.99
A11: FILTRO
B12: PARCELA DE MAIOR RELEVÂNCIA
B13: CÓDIGO | C13: SERVIÇO | D13: DESCRIÇÃO | E13: UNID | F13: QUANT | G13: PARC. MAIOR RELEVÂNCIA
A14: =IF(F14>0,"F","") -> F | B14: =Somatório!B37 -> u. | C14: =IFERROR(VLOOKUP(B14,Orçamento!$O$667:$P$692,2,FALSE),"(inserir código ao lado)") -> REVESTIMENTO DE PISO | D14: PISO DE CONCRETO | E14: M2 | F14: 548.33 | G14: =F14*0.5 -> 274.165
A15: =IF(F15>0,"F","") -> F | B15: =Somatório!B22 -> f. | C15: =IFERROR(VLOOKUP(B15,Orçamento!$O$667:$P$692,2,FALSE),"(inserir código ao lado)") -> INSTALAÇÕES ELÉTRICAS | D15: INSTALAÇOES ELETRICAS | E15: KVA | F15: 85.3 | G15: =F15*1 -> 85.3
A16: =IF(F16>0,"F","") ->  | C16: =IFERROR(VLOOKUP(B16,Orçamento!$O$667:$P$692,2,FALSE),"(inserir código ao lado)") -> (inserir código ao lado) | E16: =IFERROR(VLOOKUP($D16,Orçamento!$R$20:$W$648,2,FALSE),"-") -> - | F16: =SUMIF(Orçamento!$R$20:$R$648,'Parc Maior Relev'!D16,Orçamento!$T$20:$T$648) -> 0 | G16: =F16*0.5 -> 0
C17: =IFERROR(VLOOKUP(B17,Orçamento!$O$667:$P$692,2,FALSE),"(inserir código ao lado)") -> (inserir código ao lado) | E17: =IFERROR(VLOOKUP($D17,Orçamento!$R$20:$W$648,2,FALSE),"-") -> - | F17: =SUMIF(Orçamento!$R$20:$R$648,'Parc Maior Relev'!D17,Orçamento!$T$20:$T$648) -> 0 | G17: 0
C18: =IFERROR(VLOOKUP(B18,Orçamento!$O$667:$P$692,2,FALSE),"(inserir código ao lado)") -> (inserir código ao lado) | E18: =IFERROR(VLOOKUP($D18,Orçamento!$R$20:$W$648,2,FALSE),"-") -> - | F18: =SUMIF(Orçamento!$R$20:$R$648,'Parc Maior Relev'!D18,Orçamento!$T$20:$T$648) -> 0 | G18: 0
A19: F
A20: F | B20: (*) Para os fins do inciso I dp § 1º do Art. 30 da Lei Federal 8.666/93, são consideradas parcelas de maior relevância técnica as execuções apresentadas
A21: F

Sheet Composições
A4: UNIDADE ESCOLAR | H4: CÓDIGO INEP
A5: =Orçamento!$O$4 -> CENTRO DE ENSINO EM PERÍODO INTEGRAL JOAQUIM EDSON DE CAMARGO | H5: =Orçamento!$V$4 -> 52035182
A7: OBRA | H7: CIDADE
A8: =Orçamento!$O$7 -> REFORMA E AMPLIAÇÃO | H8: =Orçamento!$V$7 -> GOIÂNIA
A10: CRE | D10: ENDEREÇO | H10: REFERÊNCIA AGETOP
A11: =Orçamento!$O$10 -> GOIÂNIA | D11: =Orçamento!$R$10 -> RUA SANTIAGO QD. 232 S/N PCA JARDIM DA INFÂNC, JD NOVO MUNDO, CEP:74705-060 | H11: =Orçamento!$V$10 -> DEZ/18 | I11: =Orçamento!$W$10 -> NÃO DESONERADA
A13: DATA | D13: ÁREA TOTAL CONSTRUÍDA (M²) | H13: REFERÊNCIA SINAPI
A14: =Orçamento!$S$7 -> 2020-04-08 | D14: =Orçamento!$S$13 -> 2081.99 | H14: =Orçamento!$V$13 -> FEV/19 | I14: =Orçamento!$W$13 -> NÃO DESONERADA
A16: COMPOSIÇÕES DE CUSTOS UNITÁRIOS - SEE-GO
A17: 46 | B17: FONTE | C17: CÓDIGO | D17: DESCRIÇÃO | E17: UNIDADE | F17: COEFIC. | G17: CUSTO UNITÁRIO | I17: CUSTO TOTAL (A) + (B) + (C) + (D) + (E)
G18: DESONERADO | H18: NÃO DESONER. | I18: DESONERADO | J18: NÃO DESONER.
B19: COMPOSIÇÃO | C19: COMP 046_SEE | D19: CAPUZ PARA PROTEÇÃO DOS PARA RAIOS | E19: UN | I19: 16.53 | J19: 16.65
B20: AGETOP_I | C20: 8 | D20: AJUDANTE | E20: h | F20: 0.0333 | G20: 8.2 | H20: 9.51 | I20: 0.27 | J20: 0.32
B21: AGETOP_I | C21: 12 | D21: ELETRICISTA | E21: h | F21: 0.0333 | G21: 13.4 | H21: 15.53 | I21: 0.45 | J21: 0.52
G22: 0 | H22: 0 | I22: 0 | J22: 0
B23: MÃO DE OBRA (B) - TOTAL | I23: 0.72 | J23: 0.84
B24: COTAÇÃO | C24: COT 010_SEE | D24: CAPUZ PARA PROTEÇÃO DOS PARA RAIOS | E24: UN | F24: 1 | G24: 15.81 | H24: 15.81 | I24: 15.81 | J24: 15.81
G25: 0 | H25: 0 | I25: 0 | J25: 0
G26: 0 | H26: 0 | I26: 0 | J26: 0
B27: MATERIAL (C) - TOTAL | I27: 15.81 | J27: 15.81
A29: 47 | B29: FONTE | C29: CÓDIGO | D29: DESCRIÇÃO | E29: UNIDADE | F29: COEFIC. | G29: CUSTO UNITÁRIO | I29: CUSTO TOTAL (A) + (B) + (C) + (D) + (E)
G30: DESONERADO | H30: NÃO DESONER. | I30: DESONERADO | J30: NÃO DESONER.
B31: COMPOSIÇÃO | C31: COMP 047_SEE | D31: CAPUZ DE PROTEÇÃO PARA BUCHA DE TRANSFORMADOR | E31: UN | I31: 16.53 | J31: 16.65
B32: AGETOP_I | C32: 8 | D32: AJUDANTE | E32: h | F32: 0.0333 | G32: 8.2 | H32: 9.51 | I32: 0.27 | J32: 0.32
B33: AGETOP_I | C33: 12 | D33: ELETRICISTA | E33: h | F33: 0.0333 | G33: 13.4 | H33: 15.53 | I33: 0.45 | J33: 0.52
G34: 0 | H34: 0 | I34: 0 | J34: 0
B35: MÃO DE OBRA (B) - TOTAL | I35: 0.72 | J35: 0.84
B36: COTAÇÃO | C36: COT 011_SEE | D36: CAPUZ DE PROTEÇÃO PARA BUCHA DE TRANSFORMADOR | E36: UN | F36: 1 | G36: 15.81 | H36: 15.81 | I36: 15.81 | J36: 15.81
G37: 0 | H37: 0 | I37: 0 | J37: 0
G38: 0 | H38: 0 | I38: 0 | J38: 0
B39: MATERIAL (C) - TOTAL | I39: 15.81 | J39: 15.81
A41: 48 | B41: FONTE | C41: CÓDIGO | D41: DESCRIÇÃO | E41: UNIDADE | F41: COEFIC. | G41: CUSTO UNITÁRIO | I41: CUSTO TOTAL (A) + (B) + (C) + (D) + (E)
G42: DESONERADO | H42: NÃO DESONER. | I42: DESONERADO | J42: NÃO DESONER.
B43: COMPOSIÇÃO | C43: COMP 048_SEE | D43: HASTE ROSQUEADA "TIRANTE" 3/8" | E43: M | I43: 14.02 | J43: 15.39
B44: AGETOP_I | C44: 8 | D44: AJUDANTE | E44: h | F44: 0.4 | G44: 8.2 | H44: 9.51 | I44: 3.28 | J44: 3.8
B45: AGETOP_I | C45: 12 | D45: ELETRICISTA | E45: h | F45: 0.4 | G45: 13.4 | H45: 15.53 | I45: 5.36 | J45: 6.21
G46: 0 | H46: 0 | I46: 0 | J46: 0
B47: MÃO DE OBRA (B) - TOTAL | I47: 8.64 | J47: 10.01
B48: COTAÇÃO | C48: COT 012_SEE | D48: HASTE ROSQUEADA "TIRANTE" 3/8" | E48: M | F48: 1 | G48: 5.383333333 | H48: 5.383333333 | I48: 5.38 | J48: 5.38
G49: 0 | H49: 0 | I49: 0 | J49: 0
G50: 0 | H50: 0 | I50: 0 | J50: 0
B51: MATERIAL (C) - TOTAL | I51: 5.38 | J51: 5.38
A53: 49 | B53: FONTE | C53: CÓDIGO | D53: DESCRIÇÃO | E53: UNIDADE | F53: COEFIC. | G53: CUSTO UNITÁRIO | I53: CUSTO TOTAL (A) + (B) + (C) + (D) + (E)
G54: DESONERADO | H54: NÃO DESONER. | I54: DESONERADO | J54: NÃO DESONER.
B55: COMPOSIÇÃO | C55: COMP 049_SEE | D55: PORCA SEXTAVADA 3/8" | E55: UN | I55: 0.2 | J55: 0.22
B56: AGETOP_I | C56: 8 | D56: AJUDANTE | E56: h | F56: 0.009 | G56: 8.2 | H56: 9.51 | I56: 0.07 | J56: 0.09
G57: 0 | H57: 0 | I57: 0 | J57: 0
G58: 0 | H58: 0 | I58: 0 | J58: 0
B59: MÃO DE OBRA (B) - TOTAL | I59: 0.07 | J59: 0.09
B60: COTAÇÃO | C60: COT 013_SEE | D60: PORCA SEXTAVADA 3/8" | E60: UN | F60: 1 | G60: 0.13 | H60: 0.13 | I60: 0.13 | J60: 0.13
G61: 0 | H61: 0 | I61: 0 | J61: 0
G62: 0 | H62: 0 | I62: 0 | J62: 0
B63: MATERIAL (C) - TOTAL | I63: 0.13 | J63: 0.13
A65: 24 | B65: FONTE | C65: CÓDIGO | D65: DESCRIÇÃO | E65: UNIDADE | F65: COEFIC. | G65: CUSTO UNITÁRIO | I65: CUSTO TOTAL (A) + (B) + (C) + (D) + (E)
G66: DESONERADO | H66: NÃO DESONER. | I66: DESONERADO | J66: NÃO DESONER.
B67: COMPOSIÇÃO | C67: COMP 024_SEE | D67: SINALIZADOR FOTOLUMINESCENTE PARA EXTINTOR | E67: UN | G67: - | H67: - | I67: 25.27 | J67: 25.39
B68: AGETOP_I | C68: 5 | D68: SERVENTE | E68: h | F68: 0.09 | G68: 8.2 | H68: 9.51 | I68: 0.74 | J68: 0.86
G69: 0 | H69: 0 | I69: 0 | J69: 0
G70: 0 | H70: 0 | I70: 0 | J70: 0
B71: MÃO DE OBRA (B) - TOTAL | I71: 0.74 | J71: 0.86
B72: AGETOP_I | C72: 3070 | D72: BUCHA DE NYLON S-6 | E72: un | F72: 2 | G72: 0.04 | H72: 0.04 | I72: 0.08 | J72: 0.08
B73: AGETOP_I | C73: 3393 | D73: PARAFUSO P/BUCHA S-6 | E73: un | F73: 2 | G73: 0.08 | H73: 0.08 | I73: 0.16 | J73: 0.16
B74: SINAPI_I | C74: 37556 | D74: PLACA DE SINALIZACAO DE SEGURANCA CONTRA INCENDIO, FOTOLUMINESCENTE, QUADRADA, *20 X 20* CM, EM PVC *2* MM ANTI-CHAMAS (SIMBOLOS, CORES E PICTOGRAMAS CONFORME NBR 13434) | E74: UN | F74: 1 | G74: 24.29 | H74: 24.29 | I74: 24.29 | J74: 24.29
B75: MATERIAL (C) - TOTAL | I75: 24.53 | J75: 24.53
A77: 25 | B77: FONTE | C77: CÓDIGO | D77: DESCRIÇÃO | E77: UNIDADE | F77: COEFIC. | G77: CUSTO UNITÁRIO | I77: CUSTO TOTAL (A) + (B) + (C) + (D) + (E)
G78: DESONERADO | H78: NÃO DESONER. | I78: DESONERADO | J78: NÃO DESONER.
B79: COMPOSIÇÃO | C79: COMP 025_SEE | D79: SINALIZADOR FOTOLUMINESCENTE DE EMERGÊNCIA | E79: UN | G79: - | H79: - | I79: 25.27 | J79: 25.39
B80: AGETOP_I | C80: 5 | D80: SERVENTE | E80: h | F80: 0.09 | G80: 8.2 | H80: 9.51 | I80: 0.74 | J80: 0.86
B81: MÃO DE OBRA (B) - TOTAL | I81: 0.74 | J81: 0.86
B82: AGETOP_I | C82: 3070 | D82: BUCHA DE NYLON S-6 | E82: un | F82: 2 | G82: 0.04 | H82: 0.04 | I82: 0.08 | J82: 0.08
B83: AGETOP_I | C83: 3393 | D83: PARAFUSO P/BUCHA S-6 | E83: un | F83: 2 | G83: 0.08 | H83: 0.08 | I83: 0.16 | J83: 0.16
B84: SINAPI_I | C84: 37556 | D84: PLACA DE SINALIZACAO DE SEGURANCA CONTRA INCENDIO, FOTOLUMINESCENTE, QUADRADA, *20 X 20* CM, EM PVC *2* MM ANTI-CHAMAS (SIMBOLOS, CORES E PICTOGRAMAS CONFORME NBR 13434) | E84: UN | F84: 1 | G84: 24.29 | H84: 24.29 | I84: 24.29 | J84: 24.29
B85: MATERIAL (C) - TOTAL | I85: 24.53 | J85: 24.53
A87: 277 | B87: FONTE | C87: CÓDIGO | D87: DESCRIÇÃO | E87: UNIDADE | F87: COEFIC. | G87: CUSTO UNITÁRIO | I87: CUSTO TOTAL (A) + (B) + (C) + (D) + (E)
G88: DESONERADO | H88: NÃO DESONER. | I88: DESONERADO | J88: NÃO DESONER.
B89: COMPOSIÇÃO | C89: COMP 277_SEE | D89: MARCAÇÃO NO PISO - 1X1 M PARA EXTINTOR | E89: M2 | I89: 26.5 | J89: 26.57
B90: AGETOP_I | C90: 5 | D90: SERVENTE | E90: h | F90: 0.0333 | G90: 8.2 | H90: 9.51 | I90: 0.27 | J90: 0.32
G91: 0 | H91: 0 | I91: 0 | J91: 0
G92: 0 | H92: 0 | I92: 0 | J92: 0
B93: MÃO DE OBRA (B) - TOTAL | I93: 0.27 | J93: 0.32
B94: SINAPI_I | C94: 5318 | D94: SOLVENTE DILUENTE A BASE DE AGUARRAS | E94: L | F94: 0.13 | G94: 11.4 | H94: 11.4 | I94: 1.48 | J94: 1.48
B95: SINAPI | C95: 5824 | D95: CAMINHÃO TOCO, PBT 16.000 KG, CARGA ÚTIL MÁX. 10.685 KG, DIST. ENTRE EIXOS 4,8 M, POTÊNCIA 189 CV, INCLUSIVE CARROCERIA FIXA ABERTA DE MADEIRA P/ TRANSPORTE GERAL DE CARGA SECA, DIMEN. APROX. 2,5 X 7,00 X 0,50 M - CHP DIURNO. AF_06/2014 | E95: CHP | F95: 0.0033 | G95: 133.51 | H95: 136.72 | I95: 0.44 | J95: 0.45
B96: SINAPI_I | C96: 7343 | D96: TINTA A BASE DE RESINA ACRILICA, PARA SINALIZACAO HORIZONTAL VIARIA (NBR 11862) | E96: L | F96: 0.6 | G96: 11.58 | H96: 11.58 | I96: 6.95 | J96: 6.95
B97: SINAPI_I | C97: 7348 | D97: TINTA ACRILICA PREMIUM PARA PISO | E97: L | F97: 0.03 | G97: 12.39 | H97: 12.39 | I97: 0.37 | J97: 0.37
B98: SINAPI_I | C98: 25972 | D98: MICROESFERAS DE VIDRO PARA SINALIZACAO HORIZONTAL VIARIA, TIPO I-B (PREMIX) - NBR 16184 | E98: KG | F98: 2.14 | G98: 7.77 | H98: 7.77 | I98: 16.63 | J98: 16.63
B99: SINAPI | C99: 95133 | D99: MÁQUINA DEMARCADORA DE FAIXA DE TRÁFEGO À FRIO, AUTOPROPELIDA, POTÊNCIA 38 HP - CHP DIURNO. AF_07/2016 | E99: CHP | F99: 0.0033 | G99: 109.71 | H99: 113.29 | I99: 0.36 | J99: 0.37
B100: MATERIAL (C) - TOTAL | I100: 26.23 | J100: 26.25
A102: 382 | B102: FONTE | C102: CÓDIGO | D102: DESCRIÇÃO | E102: UNIDADE | F102: COEFIC. | G102: CUSTO UNITÁRIO | I102: CUSTO TOTAL (A) + (B) + (C) + (D) + (E)
G103: DESONERADO | H103: NÃO DESONER. | I103: DESONERADO | J103: NÃO DESONER.
B104: COMPOSIÇÃO | C104: COMP 382_SEE | D104: TE DE REDUCAO DE FERRO GALVANIZADO, COM ROSCA BSP, DE 3/4" X 1/2" | E104: UN | I104: 21.83 | J104: 23.92
B105: AGETOP_I | C105: 8 | D105: AJUDANTE | E105: h | F105: 0.6 | G105: 8.2 | H105: 9.51 | I105: 4.92 | J105: 5.71
B106: AGETOP_I | C106: 11 | D106: ENCANADOR | E106: h | F106: 0.6105 | G106: 13.4 | H106: 15.53 | I106: 8.18 | J106: 9.48
G107: 0 | H107: 0 | I107: 0 | J107: 0
B108: MÃO DE OBRA (B) - TOTAL | I108: 13.1 | J108: 15.19
B109: SINAPI_I | C109: 3146 | D109: FITA VEDA ROSCA EM ROLOS DE 18 MM X 10 M (L X C) | E109: UN | F109: 0.120754717 | G109: 3.48 | H109: 3.48 | I109: 0.42 | J109: 0.42
B110: SINAPI_I | C110: 6302 | D110: TE DE REDUCAO DE FERRO GALVANIZADO, COM ROSCA BSP, DE 3/4" X 1/2" | E110: UN | F110: 1 | G110: 8.31 | H110: 8.31 | I110: 8.31 | J110: 8.31
G111: 0 | H111: 0 | I111: 0 | J111: 0
B112: MATERIAL (C) - TOTAL | I112: 8.73 | J112: 8.73
A114: 383 | B114: FONTE | C114: CÓDIGO | D114: DESCRIÇÃO | E114: UNIDADE | F114: COEFIC. | G114: CUSTO UNITÁRIO | I114: CUSTO TOTAL (A) + (B) + (C) + (D) + (E)
G115: DESONERADO | H115: NÃO DESONER. | I115: DESONERADO | J115: NÃO DESONER.
B116: COMPOSIÇÃO | C116: COMP 383_SEE | D116: BUCHA DE REDUCAO DE FERRO GALVANIZADO, COM ROSCA BSP, DE 1/2" X 1/4" | E116: UN | I116: 6.85 | J116: 7.4
B117: AGETOP_I | C117: 8 | D117: AJUDANTE | E117: h | F117: 0.16 | G117: 8.2 | H117: 9.51 | I117: 1.31 | J117: 1.52
B118: AGETOP_I | C118: 11 | D118: ENCANADOR | E118: h | F118: 0.16 | G118: 13.4 | H118: 15.53 | I118: 2.14 | J118: 2.48
G119: 0 | H119: 0 | I119: 0 | J119: 0
B120: MÃO DE OBRA (B) - TOTAL | I120: 3.45 | J120: 4
B121: AGETOP_I | C121: H689 | D121: FITA VEDAROSCA 12 MM | E121: m | F121: 1.2 | G121: 0.28 | H121: 0.28 | I121: 0.34 | J121: 0.34
B122: SINAPI_I | C122: 770 | D122: BUCHA DE REDUCAO DE FERRO GALVANIZADO, COM ROSCA BSP, DE 1/2" X 1/4" | E122: UN | F122: 1 | G122: 3.06 | H122: 3.06 | I122: 3.06 | J122: 3.06
G123: 0 | H123: 0 | I123: 0 | J123: 0
B124: MATERIAL (C) - TOTAL | I124: 3.4 | J124: 3.4
A126: 212 | B126: FONTE | C126: CÓDIGO | D126: DESCRIÇÃO | E126: UNIDADE | F126: COEFIC. | G126: CUSTO UNITÁRIO | I126: CUSTO TOTAL (A) + (B) + (C) + (D) + (E)
G127: DESONERADO | H127: NÃO DESONER. | I127: DESONERADO | J127: NÃO DESONER.
B128: COMPOSIÇÃO | C128: COMP 212_SEE | D128: NIPLE DE REDUÇÃO 1/2" X 1/4" BSP | E128: UN | I128: 9.5 | J128: 10.05
B129: AGETOP_I | C129: 8 | D129: AJUDANTE | E129: h | F129: 0.16 | G129: 8.2 | H129: 9.51 | I129: 1.31 | J129: 1.52
B130: AGETOP_I | C130: 11 | D130: ENCANADOR | E130: h | F130: 0.16 | G130: 13.4 | H130: 15.53 | I130: 2.14 | J130: 2.48
G131: 0 | H131: 0 | I131: 0 | J131: 0
B132: MÃO DE OBRA (B) - TOTAL | I132: 3.45 | J132: 4
B133: COTAÇÃO | C133: COT 103_SEE | D133: NIPLE DE REDUÇÃO 1/2" X 1/4" BSP | E133: UN | F133: 1 | G133: 6.053333333 | H133: 6.053333333 | I133: 6.05 | J133: 6.05
G134: 0 | H134: 0 | I134: 0 | J134: 0
G135: 0 | H135: 0 | I135: 0 | J135: 0
B136: MATERIAL (C) - TOTAL | I136: 6.05 | J136: 6.05
A138: 213 | B138: FONTE | C138: CÓDIGO | D138: DESCRIÇÃO | E138: UNIDADE | F138: COEFIC. | G138: CUSTO UNITÁRIO | I138: CUSTO TOTAL (A) + (B) + (C) + (D) + (E)
G139: DESONERADO | H139: NÃO DESONER. | I139: DESONERADO | J139: NÃO DESONER.
B140: COMPOSIÇÃO | C140: COMP 213_SEE | D140: NIPLE DE REDUÇÃO 3/4" X 1/2" BSP | E140: UN | I140: 13.16 | J140: 13.71
B141: AGETOP_I | C141: 8 | D141: AJUDANTE | E141: h | F141: 0.16 | G141: 8.2 | H141: 9.51 | I141: 1.31 | J141: 1.52
B142: AGETOP_I | C142: 11 | D142: ENCANADOR | E142: h | F142: 0.16 | G142: 13.4 | H142: 15.53 | I142: 2.14 | J142: 2.48
G143: 0 | H143: 0 | I143: 0 | J143: 0
B144: MÃO DE OBRA (B) - TOTAL | I144: 3.45 | J144: 4
B145: COTAÇÃO | C145: COT 104_SEE | D145: NIPLE DE REDUÇÃO 3/4" X 1/2" BSP | E145: UN | F145: 1 | G145: 9.71 | H145: 9.71 | I145: 9.71 | J145: 9.71
G146: 0 | H146: 0 | I146: 0 | J146: 0
G147: 0 | H147: 0 | I147: 0 | J147: 0
B148: MATERIAL (C) - TOTAL | I148: 9.71 | J148: 9.71
A150: 237 | B150: FONTE | C150: CÓDIGO | D150: DESCRIÇÃO | E150: UNIDADE | F150: COEFIC. | G150: CUSTO UNITÁRIO | I150: CUSTO TOTAL (A) + (B) + (C) + (D) + (E)
G151: DESONERADO | H151: NÃO DESONER. | I151: DESONERADO | J151: NÃO DESONER.
B152: COMPOSIÇÃO | C152: COMP 237_SEE | D152: FITA ANTICORROSIVA | E152: M | I152: 11.1 | J152: 11.79
B153: AGETOP_I | C153: 8 | D153: AJUDANTE | E153: h | F153: 0.2 | G153: 8.2 | H153: 9.51 | I153: 1.64 | J153: 1.9
B154: AGETOP_I | C154: 12 | D154: ELETRICISTA | E154: h | F154: 0.2 | G154: 13.4 | H154: 15.53 | I154: 2.68 | J154: 3.11
G155: 0 | H155: 0 | I155: 0 | J155: 0
B156: MÃO DE OBRA (B) - TOTAL | I156: 4.32 | J156: 5.01
B157: SINAPI_I | C157: 39634 | D157: FITA ADESIVA ANTICORROSIVA DE PVC FLEXIVEL, COR PRETA, PARA PROTECAO TUBULACAO, 50 MM X 30 M (L X C), E= *0,25* MM | E157: M | F157: 1 | G157: 6.78 | H157: 6.78 | I157: 6.78 | J157: 6.78
G158: 0 | H158: 0 | I158: 0 | J158: 0
G159: 0 | H159: 0 | I159: 0 | J159: 0
B160: MATERIAL (C) - TOTAL | I160: 6.78 | J160: 6.78
A162: 542 | B162: FONTE | C162: CÓDIGO | D162: DESCRIÇÃO | E162: UNIDADE | F162: COEFIC. | G162: CUSTO UNITÁRIO | I162: CUSTO TOTAL (A) + (B) + (C) + (D) + (E)
G163: DESONERADO | H163: NÃO DESONER. | I163: DESONERADO | J163: NÃO DESONER.
B164: COMPOSIÇÃO | C164: COMP 542_SEE | D164: VÁLVULA UGV 3/4" (S) LATÃO | E164: UN | I164: 25.17 | J164: 26.66
B165: AGETOP_I | C165: 8 | D165: AJUDANTE | E165: h | F165: 0.432 | G165: 8.2 | H165: 9.51 | I165: 3.54 | J165: 4.11
B166: AGETOP_I | C166: 11 | D166: ENCANADOR | E166: h | F166: 0.432 | G166: 13.4 | H166: 15.53 | I166: 5.79 | J166: 6.71
G167: 0 | H167: 0 | I167: 0 | J167: 0
B168: MÃO DE OBRA (B) - TOTAL | I168: 9.33 | J168: 10.82
B169: COTAÇÃO | C169: COT 281_SEE | D169: VÁLVULA UGV 3/4" (S) LATÃO | E169: UN | F169: 1 | G169: 15.83666667 | H169: 15.83666667 | I169: 15.84 | J169: 15.84
G170: 0 | H170: 0 | I170: 0 | J170: 0
G171: 0 | H171: 0 | I171: 0 | J171: 0
B172: MATERIAL (C) - TOTAL | I172: 15.84 | J172: 15.84
A174: 543 | B174: FONTE | C174: CÓDIGO | D174: DESCRIÇÃO | E174: UNIDADE | F174: COEFIC. | G174: CUSTO UNITÁRIO | I174: CUSTO TOTAL (A) + (B) + (C) + (D) + (E)
G175: DESONERADO | H175: NÃO DESONER. | I175: DESONERADO | J175: NÃO DESONER.
B176: COMPOSIÇÃO | C176: COMP 543_SEE | D176: VÁLVULA UGV 1/2" (S) LATÃO | E176: UN | I176: 24.5 | J176: 25.99
B177: AGETOP_I | C177: 8 | D177: AJUDANTE | E177: h | F177: 0.432 | G177: 8.2 | H177: 9.51 | I177: 3.54 | J177: 4.11
B178: AGETOP_I | C178: 11 | D178: ENCANADOR | E178: h | F178: 0.432 | G178: 13.4 | H178: 15.53 | I178: 5.79 | J178: 6.71
G179: 0 | H179: 0 | I179: 0 | J179: 0
B180: MÃO DE OBRA (B) - TOTAL | I180: 9.33 | J180: 10.82
B181: COTAÇÃO | C181: COT 282_SEE | D181: VÁLVULA UGV 1/2" (S) LATÃO | E181: UN | F181: 1 | G181: 15.16666667 | H181: 15.16666667 | I181: 15.17 | J181: 15.17
G182: 0 | H182: 0 | I182: 0 | J182: 0
G183: 0 | H183: 0 | I183: 0 | J183: 0
B184: MATERIAL (C) - TOTAL | I184: 15.17 | J184: 15.17
A186: 211 | B186: FONTE | C186: CÓDIGO | D186: DESCRIÇÃO | E186: UNIDADE | F186: COEFIC. | G186: CUSTO UNITÁRIO | I186: CUSTO TOTAL (A) + (B) + (C) + (D) + (E)
G187: DESONERADO | H187: NÃO DESONER. | I187: DESONERADO | J187: NÃO DESONER.
B188: COMPOSIÇÃO | C188: COMP 211_SEE | D188: REGULADOR DE 2º ESTÁGIO 5KG/H | E188: UN | I188: 85.46 | J188: 89.42
B189: AGETOP_I | C189: 8 | D189: AJUDANTE | E189: h | F189: 1.15 | G189: 8.2 | H189: 9.51 | I189: 9.43 | J189: 10.94
B190: AGETOP_I | C190: 11 | D190: ENCANADOR | E190: h | F190: 1.15 | G190: 13.4 | H190: 15.53 | I190: 15.41 | J190: 17.86
G191: 0 | H191: 0 | I191: 0 | J191: 0
B192: MÃO DE OBRA (B) - TOTAL | I192: 24.84 | J192: 28.8
B193: COTAÇÃO | C193: COT 102_SEE | D193: REGULADOR DE 2º ESTÁGIO 5KG/H | E193: UN | F193: 1 | G193: 59.83333333 | H193: 59.83333333 | I193: 59.83 | J193: 59.83
B194: AGETOP_I | C194: H689 | D194: FITA VEDAROSCA 12 MM | E194: m | F194: 2.82 | G194: 0.28 | H194: 0.28 | I194: 0.79 | J194: 0.79
G195: 0 | H195: 0 | I195: 0 | J195: 0
B196: MATERIAL (C) - TOTAL | I196: 60.62 | J196: 60.62
A198: 210 | B198: FONTE | C198: CÓDIGO | D198: DESCRIÇÃO | E198: UNIDADE | F198: COEFIC. | G198: CUSTO UNITÁRIO | I198: CUSTO TOTAL (A) + (B) + (C) + (D) + (E)
G199: DESONERADO | H199: NÃO DESONER. | I199: DESONERADO | J199: NÃO DESONER.
B200: COMPOSIÇÃO | C200: COMP 210_SEE | D200: REGULADOR DE 1º ESTÁGIO 60KG/H MODELO AP-40 COM MANÔMETRO | E200: UN | I200: 231.21 | J200: 235.17
B201: AGETOP_I | C201: 8 | D201: AJUDANTE | E201: h | F201: 1.15 | G201: 8.2 | H201: 9.51 | I201: 9.43 | J201: 10.94
B202: AGETOP_I | C202: 11 | D202: ENCANADOR | E202: h | F202: 1.15 | G202: 13.4 | H202: 15.53 | I202: 15.41 | J202: 17.86
G203: 0 | H203: 0 | I203: 0 | J203: 0
B204: MÃO DE OBRA (B) - TOTAL | I204: 24.84 | J204: 28.8
B205: COTAÇÃO | C205: COT 101_SEE | D205: REGULADOR DE 1º ESTÁGIO 60KG/H MODELO AP-40 COM MANÔMETRO | E205: UN | F205: 1 | G205: 205.5766667 | H205: 205.5766667 | I205: 205.58 | J205: 205.58
B206: AGETOP_I | C206: H689 | D206: FITA VEDAROSCA 12 MM | E206: m | F206: 2.82 | G206: 0.28 | H206: 0.28 | I206: 0.79 | J206: 0.79
G207: 0 | H207: 0 | I207: 0 | J207: 0
B208: MATERIAL (C) - TOTAL | I208: 206.37 | J208: 206.37
A210: 235 | B210: FONTE | C210: CÓDIGO | D210: DESCRIÇÃO | E210: UNIDADE | F210: COEFIC. | G210: CUSTO UNITÁRIO | I210: CUSTO TOTAL (A) + (B) + (C) + (D) + (E)
G211: DESONERADO | H211: NÃO DESONER. | I211: DESONERADO | J211: NÃO DESONER.
B212: COMPOSIÇÃO | C212: COMP 235_SEE | D212: PLACA DE SINALIZAÇÃO EM PVC COD 01 - (300X300) PROIBIDO FUMAR | E212: UN | I212: 25.27 | J212: 25.39
B213: AGETOP_I | C213: 5 | D213: SERVENTE | E213: h | F213: 0.09 | G213: 8.2 | H213: 9.51 | I213: 0.74 | J213: 0.86
G214: 0 | H214: 0 | I214: 0 | J214: 0
G215: 0 | H215: 0 | I215: 0 | J215: 0
B216: MÃO DE OBRA (B) - TOTAL | I216: 0.74 | J216: 0.86
B217: AGETOP_I | C217: 3070 | D217: BUCHA DE NYLON S-6 | E217: un | F217: 2 | G217: 0.04 | H217: 0.04 | I217: 0.08 | J217: 0.08
B218: AGETOP_I | C218: 3393 | D218: PARAFUSO P/BUCHA S-6 | E218: un | F218: 2 | G218: 0.08 | H218: 0.08 | I218: 0.16 | J218: 0.16
B219: SINAPI_I | C219: 37556 | D219: PLACA DE SINALIZACAO DE SEGURANCA CONTRA INCENDIO, FOTOLUMINESCENTE, QUADRADA, *20 X 20* CM, EM PVC *2* MM ANTI-CHAMAS (SIMBOLOS, CORES E PICTOGRAMAS CONFORME NBR 13434) | E219: UN | F219: 1 | G219: 24.29 | H219: 24.29 | I219: 24.29 | J219: 24.29
B220: MATERIAL (C) - TOTAL | I220: 24.53 | J220: 24.53
A222: 236 | B222: FONTE | C222: CÓDIGO | D222: DESCRIÇÃO | E222: UNIDADE | F222: COEFIC. | G222: CUSTO UNITÁRIO | I222: CUSTO TOTAL (A) + (B) + (C) + (D) + (E)
G223: DESONERADO | H223: NÃO DESONER. | I223: DESONERADO | J223: NÃO DESONER.
B224: COMPOSIÇÃO | C224: COMP 236_SEE | D224: PLACA DE SINALIZAÇÃO EM PVC COD 06 - (300X300) PERIGO INFLAMÁVEL | E224: UN | I224: 25.27 | J224: 25.39
... 41 more rows

Sheet Cotações
A4: UNIDADE ESCOLAR | H4: CÓDIGO INEP
A5: =Orçamento!$O$4 -> CENTRO DE ENSINO EM PERÍODO INTEGRAL JOAQUIM EDSON DE CAMARGO | H5: =Orçamento!$V$4 -> 52035182
A7: OBRA | H7: CIDADE
A8: =Orçamento!$O$7 -> REFORMA E AMPLIAÇÃO | H8: =Orçamento!$V$7 -> GOIÂNIA
A10: CRE | D10: ENDEREÇO | H10: REFERÊNCIA AGETOP
A11: =Orçamento!$O$10 -> GOIÂNIA | D11: =Orçamento!$R$10 -> RUA SANTIAGO QD. 232 S/N PCA JARDIM DA INFÂNC, JD NOVO MUNDO, CEP:74705-060 | H11: =Orçamento!$V$10 -> DEZ/18 | I11: =Orçamento!$W$10 -> NÃO DESONERADA
A13: DATA | D13: ÁREA TOTAL CONSTRUÍDA (M²) | H13: REFERÊNCIA SINAPI
A14: =Orçamento!$S$7 -> 2020-04-08 | D14: =Orçamento!$S$13 -> 2081.99 | H14: =Orçamento!$V$13 -> FEV/19 | I14: =Orçamento!$W$13 -> NÃO DESONERADA
A16: COTAÇÕES DE PREÇOS - SEE-GO
B17: FONTE | C17: CÓDIGO | D17: DESCRIÇÃO | E17: UNIDADE | F17: MÉDIA | H17: ÍNDICE RETROAÇÃO
F18: DESONERADA | G18: ONERADA
A19: 10 | B19: COTAÇÃO | C19: COT 010_SEE | D19: CAPUZ PARA PROTEÇÃO DOS PARA RAIOS | E19: UN | F19: 15.81 | G19: 15.81
C20: EMPRESA | D20: NOME DA EMPRESA | F20: COTAÇÕES | H20: DATA COTAÇÃO
C21: E013 - ELETRO... | D21: ELETROTRANSOL | F21: 15.81 | G21: 15.81 | H21: 06/02/2019
C26: OBSERVAÇÕES:
B28: FONTE | C28: CÓDIGO | D28: DESCRIÇÃO | E28: UNIDADE | F28: MÉDIA | H28: ÍNDICE RETROAÇÃO
F29: DESONERADA | G29: ONERADA
A30: 11 | B30: COTAÇÃO | C30: COT 011_SEE | D30: CAPUZ DE PROTEÇÃO PARA BUCHA DE TRANSFORMADOR | E30: UN | F30: 15.81 | G30: 15.81
C31: EMPRESA | D31: NOME DA EMPRESA | F31: COTAÇÕES | H31: DATA COTAÇÃO
C32: E013 - ELETRO... | D32: ELETROTRANSOL | F32: 15.81 | G32: 15.81 | H32: 06/02/2019
C37: OBSERVAÇÕES:
B39: FONTE | C39: CÓDIGO | D39: DESCRIÇÃO | E39: UNIDADE | F39: MÉDIA | H39: ÍNDICE RETROAÇÃO
F40: DESONERADA | G40: ONERADA
A41: 12 | B41: COTAÇÃO | C41: COT 012_SEE | D41: HASTE ROSQUEADA "TIRANTE" 3/8" | E41: M | F41: 5.383333333 | G41: 5.383333333
C42: EMPRESA | D42: NOME DA EMPRESA | F42: COTAÇÕES | H42: DATA COTAÇÃO
C43: E013 - ELETRO... | D43: ELETROTRANSOL | F43: 5.383333333 | G43: 5.383333333 | H43: 06/02/2019
C48: OBSERVAÇÕES:
B50: FONTE | C50: CÓDIGO | D50: DESCRIÇÃO | E50: UNIDADE | F50: MÉDIA | H50: ÍNDICE RETROAÇÃO
F51: DESONERADA | G51: ONERADA
A52: 13 | B52: COTAÇÃO | C52: COT 013_SEE | D52: PORCA SEXTAVADA 3/8" | E52: UN | F52: 0.13 | G52: 0.13
C53: EMPRESA | D53: NOME DA EMPRESA | F53: COTAÇÕES | H53: DATA COTAÇÃO
C54: E013 - ELETRO... | D54: ELETROTRANSOL | F54: 0.12 | G54: 0.12 | H54: 06/02/2019
C55: E055 - SANETA... | D55: SANETAM COMERCIO DE TUBOS E CONEXOES LTDA. | F55: 0.13 | G55: 0.13 | H55: 06/02/2019
C56: E056 - AC COM... | D56: AC COMERCIO DE FERRAMENTAS E PRODUTOS PARA FIXACAO EIRE | F56: 0.14 | G56: 0.14 | H56: 06/02/2019
C59: OBSERVAÇÕES:
B61: FONTE | C61: CÓDIGO | D61: DESCRIÇÃO | E61: UNIDADE | F61: MÉDIA | H61: ÍNDICE RETROAÇÃO
F62: DESONERADA | G62: ONERADA
A63: 103 | B63: COTAÇÃO | C63: COT 103_SEE | D63: NIPLE DE REDUÇÃO 1/2" X 1/4" BSP | E63: UN | F63: 6.053333333 | G63: 6.053333333
C64: EMPRESA | D64: NOME DA EMPRESA | F64: COTAÇÕES | H64: DATA COTAÇÃO
C65: E070 - FOCO R... | D65: FOCO REPRESENTAÇÃO E CONSULTORIA LTDA-ME | F65: 4.46 | G65: 4.46 | H65: 12/02/2019
C66: E071 - CASA D... | D66: CASA DAS PEÇAS COM E INDUSTRIA DE FOGOES LTDA | F66: 3.9 | G66: 3.9 | H66: 11/02/2019
C67: E072 - AMIG I... | D67: AMIG INSTALAÇÃO DE REDE DE GÁS E INCÊNDIO | F67: 9.8 | G67: 9.8 | H67: 08/02/2019
C70: OBSERVAÇÕES:
B72: FONTE | C72: CÓDIGO | D72: DESCRIÇÃO | E72: UNIDADE | F72: MÉDIA | H72: ÍNDICE RETROAÇÃO
F73: DESONERADA | G73: ONERADA
A74: 104 | B74: COTAÇÃO | C74: COT 104_SEE | D74: NIPLE DE REDUÇÃO 3/4" X 1/2" BSP | E74: UN | F74: 9.71 | G74: 9.71
C75: EMPRESA | D75: NOME DA EMPRESA | F75: COTAÇÕES | H75: DATA COTAÇÃO
C76: E070 - FOCO R... | D76: FOCO REPRESENTAÇÃO E CONSULTORIA LTDA-ME | F76: 10.93 | G76: 10.93 | H76: 12/02/2019
C77: E071 - CASA D... | D77: CASA DAS PEÇAS COM E INDUSTRIA DE FOGOES LTDA | F77: 5.5 | G77: 5.5 | H77: 11/02/2019
C78: E072 - AMIG I... | D78: AMIG INSTALAÇÃO DE REDE DE GÁS E INCÊNDIO | F78: 12.7 | G78: 12.7 | H78: 08/02/2019
C81: OBSERVAÇÕES:
B83: FONTE | C83: CÓDIGO | D83: DESCRIÇÃO | E83: UNIDADE | F83: MÉDIA | H83: ÍNDICE RETROAÇÃO
F84: DESONERADA | G84: ONERADA
A85: 281 | B85: COTAÇÃO | C85: COT 281_SEE | D85: VÁLVULA UGV 3/4" (S) LATÃO | E85: UN | F85: 15.83666667 | G85: 15.83666667
C86: EMPRESA | D86: NOME DA EMPRESA | F86: COTAÇÕES | H86: DATA COTAÇÃO
C87: E070 - FOCO R... | D87: FOCO REPRESENTAÇÃO E CONSULTORIA LTDA-ME | F87: 12.51 | G87: 12.51 | H87: 12/02/2019
C88: E071 - CASA D... | D88: CASA DAS PEÇAS COM E INDUSTRIA DE FOGOES LTDA | F88: 17.5 | G88: 17.5 | H88: 11/02/2019
C89: E072 - AMIG I... | D89: AMIG INSTALAÇÃO DE REDE DE GÁS E INCÊNDIO | F89: 17.5 | G89: 17.5 | H89: 08/02/2019
C92: OBSERVAÇÕES:
B94: FONTE | C94: CÓDIGO | D94: DESCRIÇÃO | E94: UNIDADE | F94: MÉDIA | H94: ÍNDICE RETROAÇÃO
F95: DESONERADA | G95: ONERADA
A96: 282 | B96: COTAÇÃO | C96: COT 282_SEE | D96: VÁLVULA UGV 1/2" (S) LATÃO | E96: UN | F96: 15.16666667 | G96: 15.16666667
C97: EMPRESA | D97: NOME DA EMPRESA | F97: COTAÇÕES | H97: DATA COTAÇÃO
C98: E070 - FOCO R... | D98: FOCO REPRESENTAÇÃO E CONSULTORIA LTDA-ME | F98: 11.2 | G98: 11.2 | H98: 12/02/2019
C99: E071 - CASA D... | D99: CASA DAS PEÇAS COM E INDUSTRIA DE FOGOES LTDA | F99: 17.5 | G99: 17.5 | H99: 11/02/2019
C100: E072 - AMIG I... | D100: AMIG INSTALAÇÃO DE REDE DE GÁS E INCÊNDIO | F100: 16.8 | G100: 16.8 | H100: 08/02/2019
C103: OBSERVAÇÕES:
B105: FONTE | C105: CÓDIGO | D105: DESCRIÇÃO | E105: UNIDADE | F105: MÉDIA | H105: ÍNDICE RETROAÇÃO
F106: DESONERADA | G106: ONERADA
A107: 102 | B107: COTAÇÃO | C107: COT 102_SEE | D107: REGULADOR DE 2º ESTÁGIO 5KG/H | E107: UN | F107: 59.83333333 | G107: 59.83333333
C108: EMPRESA | D108: NOME DA EMPRESA | F108: COTAÇÕES | H108: DATA COTAÇÃO
C109: E070 - FOCO R... | D109: FOCO REPRESENTAÇÃO E CONSULTORIA LTDA-ME | F109: 38.9 | G109: 38.9 | H109: 12/02/2019
C110: E071 - CASA D... | D110: CASA DAS PEÇAS COM E INDUSTRIA DE FOGOES LTDA | F110: 55.6 | G110: 55.6 | H110: 11/02/2019
C111: E072 - AMIG I... | D111: AMIG INSTALAÇÃO DE REDE DE GÁS E INCÊNDIO | F111: 85 | G111: 85 | H111: 08/02/2019
C114: OBSERVAÇÕES: | D114: AMIG enviou cotação de regulador de 2º estágio de 12kg/h.
B116: FONTE | C116: CÓDIGO | D116: DESCRIÇÃO | E116: UNIDADE | F116: MÉDIA | H116: ÍNDICE RETROAÇÃO
F117: DESONERADA | G117: ONERADA
A118: 101 | B118: COTAÇÃO | C118: COT 101_SEE | D118: REGULADOR DE 1º ESTÁGIO 60KG/H MODELO AP-40 COM MANÔMETRO | E118: UN | F118: 205.5766667 | G118: 205.5766667
C119: EMPRESA | D119: NOME DA EMPRESA | F119: COTAÇÕES | H119: DATA COTAÇÃO
C120: E070 - FOCO R... | D120: FOCO REPRESENTAÇÃO E CONSULTORIA LTDA-ME | F120: 148.73 | G120: 148.73 | H120: 12/02/2019
C121: E071 - CASA D... | D121: CASA DAS PEÇAS COM E INDUSTRIA DE FOGOES LTDA | F121: 198 | G121: 198 | H121: 11/02/2019
C122: E072 - AMIG I... | D122: AMIG INSTALAÇÃO DE REDE DE GÁS E INCÊNDIO | F122: 270 | G122: 270 | H122: 08/02/2019
C125: OBSERVAÇÕES:
B127: FONTE | C127: CÓDIGO | D127: DESCRIÇÃO | E127: UNIDADE | F127: MÉDIA | H127: ÍNDICE RETROAÇÃO
F128: DESONERADA | G128: ONERADA
A129: 195 | B129: COTAÇÃO | C129: COT 195_SEE | D129: LÂMPADA LED TUBULAR 18W | E129: UN | F129: 21.96 | G129: 21.96
C130: EMPRESA | D130: NOME DA EMPRESA | F130: COTAÇÕES | H130: DATA COTAÇÃO
C131: E030 - AJEL M... | D131: AJEL MATERIAIS ELÉTRICOS | F131: 19.89 | G131: 19.89
C132: E013 - ELETRO... | D132: ELETROTRANSOL | F132: 25.99 | G132: 25.99
C133: E014 - MAKRO ... | D133: MAKRO SERVICE | F133: 20 | G133: 20
C136: OBSERVAÇÕES:
